Workbook

Sheet Redacted
B3: Redacted Version
B6: Redacted Version

Sheet BEGIN HERE
B2: Please note that many of the worksheets are linked and cells automated
B3: The roadmap durations for example automatically generate the timeline in the Roadmap worksheet and distribute cost to the timeline in the "Modified costs" worksheet
B4: If a cell is highlighted in yellow, it means that the formula has been modified or a hard value over-written the formula - [please do not do this without conferring with Ryan Lambert first]
B5: Orange highlights are 'to do' items, or incomplete items with additional changes to be made.
B6: IF YOU MAKE ANY CHANGES….
B7: Please utilize the change log for any changes you have made to the roadmap spreadsheet. This will help ensure that we are all on the same page when changes are made.
B9: Change Log:
B11: Name | C11: Date | D11: Changes | E11: Reason
A12: Example | B12: Jennifer Creekpaum | C12: 2016-08-04 | D12: 1. Updated colors on roadmap timeline to reflect work stream owner 2. Added RFP column 3. Added Priority level column based on call volumes to help prioritize work | E12: Provide better visibility to project ownership. Help facilitate RFP discussions and prioritize the work
B13: Joe Beer | C13: 2016-08-10 | D13: 4. Had scenario names populate via formula, from cost page to roadmap page. Added data group for some columns in the Roadmap tab to ease viewing | E13: Make roadmap more understandable
B14: Jennifer Creekpaum | C14: 2016-08-10 | D14: Updated RFP assumptions including RFP type.
B15: Jennifer Creekpaum | C15: 2016-08-11 | D15: 1. Moved ESB to 2017 (products; SI) 2. Added - Software Upgrade after 4 yrs O&M (10%) (Margaret) 3. Changed the name of PM-6: From “Planning Mobilization and Program Initiation” To “Program mobilization and planning” | E15: 1. Decision was made to move the project to 2017 2. Craig asked to change name of PM-6
B16: Ryan Lambert | C16: 2016-08-12 | D16: 1. Modified benefit realization for call reduction to start in 2018 rather than 2017. 2. Modified assumed services/capex ratio for significant number of projects. In general, the ratio changed from 85% to 90% for projects Also modified Program Management (60% to 90%), OCM (0% to 30%), and data management (25% to 35%). 3. Updated IWM benefit numbers based on input from Vesta. | E16: 1. Lars provided direction that there's a heavy lift expected in 2017 and doesn't expect significant call volume changes. 2. Change in costs were based on guidance from Mike Stranik in a meeting on 8/10/2016. Previously, the team was under the impression that all OCM efforts had to be O&M; however, Mike provided guidance that OCM efforts can be capitalized if they're around training for a new asset. Mike also provided guidance that design and requirements gathering prior to issuance of an RFP can also be capitalized.
B17: Jennifer Creekpaum | C17: 2016-08-12 | D17: Added "Technology Refresh" Table | E17: 10% of capital spending three years after the technology has been implemented. This increased the year 2020's capital spending
B18: Jennifer Creekpaum | C18: 2016-08-16 | D18: Created V65 | E18: Made timeline updates based on IT managers meeting on 8/15 Corrected some formatting on the roadmap grouping and Super 5 titles
B19: Ryan Lambert | C19: 2016-08-19 | D19: Modified benefits worksheet to provided more detail
B20: Joe Beer | C20: 2016-08-22 | D20: On the Modified Costs Tab: Added spacer column between HW and SW costs. Added Group-by for HW, to just show HW total when grouped. Added "Total Tech Costs" and total IT CapEx column to end of XLS
B21: Art Balajthy | C21: 2016-08-23 | D21: Changed dates DCIII-9 to match FF relationship with S5-7 | E21: Updated bars on Page-2 Visio, check with Kassidy
B22: Art Balajthy | C22: 2016-08-23 | D22: Moved description of S4-2 to S4-1. Need to develop new S4-2 description with Joe or Ryan. | E22: Email from Jennifer
B23: Art Balajthy | C23: 2016-08-23 | D23: DCI-9 split to two projects. Rules Engine and HANA Predictive. Need to split descriptions, deliverables and dollars | E23: Email from Jennifer
B24: Art Balajthy | C24: 2016-08-24 | D24: Removed PM-7 and DCI-13 from Cost Summary | E24: Not in Modified costs, and was giving N/A in Cost Summary
B25: Ryan Lambert | C25: 2016-08-26 | D25: Updated benefits
B26: Art Balajthy | C26: 2016-09-01 | D26: DCIII-5 Workforce Mobility to start 4th quarter 2016, extended timeline but not costs. Costs will be covered under Vesta's 2016 work order.
B27: Arthur Balajthy | C27: 2016-09-01 | D27: Created 'Timeline Worksheet' and sent to Lara to complete more detail on milestones and project phases (scope, design, build, deploy) | E27: Due Wednesday 9/7 - Lara may develop her own worksheet format.
B28: Arthur Balajthy | C28: 2016-09-07 | D28: Changed Predictive IVR to start 4Q2107 end 1Q2018 | E28: as per Joe Beer, based on IBM recommendations as of 8/29/16. Scott and Marcus will work with PSE voice team to refine
B29: Arthur Balajthy | C29: 2016-09-07 | D29: Removed Account Balance Clarity line item. Should verbiage for multiple accounts be added to another S1 item? | E29: email from Tanmay Suri, need approval from Joe. Created new version. Need to check with Tanmay re $ and moving to another item.
B30: Arthur Balajthy | C30: 2016-09-08 | D30: Updated 'Timeline Worksheet' with data from Lara (in green) and also updated timeline Visio.
B31: Jennifer Creekpaum | C31: 2016-09-12 | D31: Added to S1-4 description; Changed name of DCI-5 from 'Customer 360 Data Centralization' to 'Customer 360 Data View' . Moved ESB from CI work stream to Data | E31: Name change from the 2017 RFP meeting on 9/12.
B32: Jennifer Creekpaum | C32: 2016-09-13 | D32: Removed duplicated projects DCI-10 & DCI-12. Split costs for Hana Predictive and Rules engine projects (A & B). Added the tab "Board Vs. Today (9_13) to review cost changes easily.
B33: Jennifer Creekpaum | C33: 2016-09-14 | D33: Added back in PM-7 to the modified costs tab with the dollars that were in V63
B34: Ryan Lambert | C34: 2016-09-14 | D34: Added costs back in for DCI-11 ESB with the dollars that were in V63
B35: Jennifer Creekpaum | C35: 2016-09-15 | D35: Added a Impact tab | E35: For IT management review on 9/16
B36: Lara Ringness | C36: 2016-09-16 | D36: Added description, deliverables, dependencies, etc. to DCV-6
B37: Jennifer Creekpaum | C37: 2016-09-20 | D37: Added notes from IT managers meeting on 9/16/16 to the Impact tab
B38: Jennifer Creekpaum | C38: 2016-09-21 | D38: Added an X to all projects under the QA column in the 'Impact' tab | E38: Per email received from Mark Oliveto on 9/21
B39: Jennifer Creekpaum | C39: 2016-09-21 | D39: Added Software purchase tab. Added two additional benefit scenarios one medium (75% of org.) another Small (50% of org).
B40: Ryan Lambert | C40: 2016-09-29 | D40: Moved end date of customer 360 to 1Q18 to align with deployment of web based on conversation with Craig & Lars; updated "roadmap" worksheet to pull total cost information rather than just services.
B41: Lara Ringness | C41: 2016-10-03 | D41: Added description, deliverables, dependencies, etc. to DCV-1, Project name change for DCV-2.
B42: Jennifer Coulson | C42: 2016-10-03 | D42: Added an Actuals Tab for project funding vs. roadmap estimate
B43: Lara Ringness | C43: 2016-10-25 | D43: Added Deliverables detail to DCI-9B
B44: Lara Ringness | C44: 2016-10-26 | D44: Updated "Dependent Projects" (incl timing ) info for DCV-2 as it relats to G1 and G2 | E44: Per email from Al Ledesma 10/26/16

Sheet Board. Vs. Today (9_13) (hidden)
A3: 2016-09-13
A4: GTZ Roadmap Costs
A5: Category | B5: 2016 Capex | C5: 2016 Opex | D5: 2016 Total | F5: 2017 Capex | G5: 2017 Opex | H5: 2017 Total | J5: 2018 Capex | K5: 2018 Opex | L5: 2018 Total | N5: 2019 Capex | O5: 2019 Opex | P5: 2019 Total | R5: 2020 Capex | S5: 2020 Opex | T5: 2020 Total | V5: Overall Capex | W5: Overall Opex | X5: Overall Total
A6: Software | B6: 3500000 | C6: 0 | D6: 3500000 | F6: 6720000 | G6: 0 | H6: 6720000 | J6: 8974000 | K6: 1904000 | L6: 10878000 | N6: 5554000 | O6: 3458000 | P6: 9012000 | R6: 800000 | S6: 4258000 | T6: 5058000 | V6: 25548000 | W6: 9620000 | X6: 35168000
A7: Hardware | B7: 2637000 | C7: 0 | D7: 2637000 | F7: 5981500 | G7: 0 | H7: 5981500 | J7: 1061500 | K7: 1120405 | L7: 2181905 | N7: 723000 | O7: 1258400 | P7: 1981400 | R7: 369000 | S7: 1352390 | T7: 1721390 | V7: 10772000 | W7: 3731195 | X7: 14503195
A8: Services | B8: 10361821.48 | C8: 1685585.916 | D8: 12047407.4 | F8: 45261091.56 | G8: 14387832.14 | H8: 59648923.7 | J8: 42486395 | K8: 15155645.4 | L8: 57642040.4 | N8: 23390291.93 | O8: 14776940.93 | P8: 38167232.86 | R8: 17386042.73 | S8: 15217325.45 | T8: 32603368.18 | V8: 138885642.7 | W8: 61223329.84 | X8: 200108972.5
A9: Contingency | B9: 0 | C9: 0 | D9: 0 | F9: 5796259.156 | G9: 1399595.407 | H9: 7195854.563 | J9: 5252189.5 | K9: 1283625.415 | L9: 6535814.915 | N9: 2966729.193 | O9: 1065801.455 | P9: 4032530.648 | R9: 1855504.273 | S9: 999087.5754 | T9: 2854591.848 | V9: 15870682.12 | W9: 4748109.853 | X9: 20618791.97
A10: Total | B10: 16498821.48 | C10: 1685585.916 | D10: 18184407.4 | F10: 63758850.72 | G10: 15787427.54 | H10: 79546278.26 | J10: 57774084.5 | K10: 19463675.82 | L10: 77237760.31 | N10: 32634021.12 | O10: 20559142.39 | P10: 53193163.51 | R10: 20410547 | S10: 21826803.02 | T10: 42237350.03 | V10: 191076324.8 | W10: 79322634.69 | X10: 270398959.5
A12: Board
A13: GTZ Roadmap Costs
A14: Category | B14: 2016 Capex | C14: 2016 Opex | D14: 2016 Total | F14: 2017 Capex | G14: 2017 Opex | H14: 2017 Total | J14: 2018 Capex | K14: 2018 Opex | L14: 2018 Total | N14: 2019 Capex | O14: 2019 Opex | P14: 2019 Total | R14: 2020 Capex | S14: 2020 Opex | T14: 2020 Total | V14: Overall Capex | W14: Overall Opex | X14: Overall Total
A15: Software | B15: 2400000 | C15: 0 | D15: 2400000 | F15: 8420000 | G15: 480000 | H15: 8900000 | J15: 10238000 | K15: 2068000 | L15: 12306000 | N15: 4530000 | O15: 3798000 | P15: 8328000 | R15: 560000 | S15: 4358000 | T15: 4918000 | V15: 26148000 | W15: 10704000 | X15: 36852000
A16: Hardware | B16: 2091000 | C16: 0 | D16: 2091000 | F16: 6727500 | G16: 271830 | H16: 6999330 | J16: 1553500 | K16: 1146405 | L16: 2699905 | N16: 523000 | O16: 1348360 | P16: 1871360 | R16: 369000 | S16: 1416350 | T16: 1785350 | V16: 11264000 | W16: 4182945 | X16: 15446945
A17: Services | B17: 8284695.949 | C17: 2469114.783 | D17: 10753810.73 | F17: 49086001.34 | G17: 20784323.58 | H17: 69870324.92 | J17: 43950418.06 | K17: 21350594.68 | L17: 65301012.74 | N17: 22968024.13 | O17: 19686994.69 | P17: 42655018.82 | R17: 13597011 | S17: 19269502.72 | T17: 32866513.71 | V17: 137886150.5 | W17: 83560530.45 | X17: 221446680.9
A18: Contingency | B18: 0 | C18: 0 | D18: 0 | F18: 6423350.134 | G18: 2043452.363 | H18: 8466802.496 | J18: 5574191.806 | K18: 1873943.109 | L18: 7448134.915 | N18: 2802102.413 | O18: 1503665.569 | P18: 4305767.982 | R18: 1452601.1 | S18: 1338294.749 | T18: 2790895.848 | V18: 16252245.45 | W18: 6759355.789 | X18: 23011601.24
A19: Total | B19: 12775695.95 | C19: 2469114.783 | D19: 15244810.73 | F19: 70656851.47 | G19: 23579605.94 | H19: 94236457.42 | J19: 61316109.87 | K19: 26438942.79 | L19: 87755052.66 | N19: 30823126.54 | O19: 26337020.26 | P19: 57160146.8 | R19: 15978612.1 | S19: 26382147.47 | T19: 42360759.56 | V19: 191550395.9 | W19: 105206831.2 | X19: 296757227.2
A21: Difference | B21: =B10-B19 -> 3723125.533 | C21: =C10-C19 -> -783528.8667 | D21: 2939596.667 | F21: -6898000.754 | G21: -7792178.401 | H21: -14690179.15 | J21: -3542025.373 | K21: -6975266.97 | L21: -10517292.34 | N21: 1810894.58 | O21: -5777877.872 | P21: -3966983.292 | R21: 4431934.907 | S21: -4555344.443 | T21: -123409.5368 | V21: -474071.1069 | W21: -25884196.55 | X21: -26358267.66
A23: Corrections 9/14
A24: GTZ Roadmap Costs
A25: Category | B25: 2016 Capex | C25: 2016 Opex | D25: 2016 Total | F25: 2017 Capex | G25: 2017 Opex | H25: 2017 Total | J25: 2018 Capex | K25: 2018 Opex | L25: 2018 Total | N25: 2019 Capex | O25: 2019 Opex | P25: 2019 Total | R25: 2020 Capex | S25: 2020 Opex | T25: 2020 Total | V25: Overall Capex | W25: Overall Opex | X25: Overall Total
A26: Software | B26: 3500000 | C26: 0 | D26: 3500000 | F26: 6720000 | G26: 0 | H26: 6720000 | J26: 8974000 | K26: 1904000 | L26: 10878000 | N26: 5554000 | O26: 3458000 | P26: 9012000 | R26: 800000 | S26: 4258000 | T26: 5058000 | V26: 25548000 | W26: 9620000 | X26: 35168000
A27: Hardware | B27: 2637000 | C27: 0 | D27: 2637000 | F27: 5981500 | G27: 0 | H27: 5981500 | J27: 1061500 | K27: 1120405 | L27: 2181905 | N27: 723000 | O27: 1258400 | P27: 1981400 | R27: 369000 | S27: 1352390 | T27: 1721390 | V27: 10772000 | W27: 3731195 | X27: 14503195
A28: Services | B28: 10361821.48 | C28: 1685585.916 | D28: 12047407.4 | F28: 48498067.56 | G28: 14747496.14 | H28: 63245563.7 | J28: 45723371 | K28: 15632300.91 | L28: 61355671.9 | N28: 26627267.93 | O28: 15370587.95 | P28: 41997855.88 | R28: 20623018.73 | S28: 15927963.96 | T28: 36550982.69 | V28: 151833546.7 | W28: 63363934.87 | X28: 215197481.6
A29: Contingency | B29: 0 | C29: 0 | D29: 0 | F29: 6119956.756 | G29: 1435561.807 | H29: 7555518.563 | J29: 5575887.1 | K29: 1319591.815 | L29: 6895478.915 | N29: 3290426.793 | O29: 1101767.855 | P29: 4392194.648 | R29: 2179201.873 | S29: 1035053.975 | T29: 3214255.848 | V29: 17165472.52 | W29: 4891975.453 | X29: 22057447.97
A30: Total | B30: 16498821.48 | C30: 1685585.916 | D30: 18184407.4 | F30: 67319524.32 | G30: 16183057.94 | H30: 83502582.26 | J30: 61334758.1 | K30: 19976297.72 | L30: 81311055.82 | N30: 36194694.72 | O30: 21188755.8 | P30: 57383450.52 | R30: 23971220.6 | S30: 22573407.94 | T30: 46544628.54 | V30: 205319019.2 | W30: 81607105.33 | X30: 286926124.5
A32: Difference 914 - Board | B32: =B30-B19 -> 3723125.533 | C32: =C30-C19 -> -783528.8667 | D32: 2939596.667 | F32: -3337327.154 | G32: -7396548.001 | H32: -10733875.15 | J32: 18648.22667 | K32: -6462645.064 | L32: -6443996.837 | N32: 5371568.18 | O32: -5148264.46 | P32: 223303.7202 | R32: 7992608.507 | S32: -3808739.526 | T32: 4183868.981 | V32: 13768623.29 | W32: -23599725.92 | X32: -9831102.624
A33: Difference 913 - 914 (PM-7) | B33: =B10-B30 -> 0 | C33: =C10-C30 -> 0 | D33: 0 | F33: -3560673.6 | G33: -395630.4 | H33: -3956304 | J33: -3560673.6 | K33: -512621.9059 | L33: -4073295.506 | N33: -3560673.6 | O33: -629613.4118 | P33: -4190287.012 | R33: -3560673.6 | S33: -746604.9178 | T33: -4307278.518 | V33: -14242694.4 | W33: -2284470.636 | X33: -16527165.04

Sheet Exec Table
A1: GTZ Roadmap & Cost Summary | W1: Suzanne's IT Notes
B2: ID | C2: Project | D2: Description | E2: Start Date | F2: End Date | G2: Services Capex Ratio | H2: 2017 Software | I2: 2017 Hardware | J2: 2017 Services | K2: 2017 Contingency | L2: 2017 Capex | M2: 2017 Opex | N2: 2017 Total | O2: Overall Software | P2: Overall Hardware | Q2: Overall Services | R2: Overall Contingency | S2: Overall Capex | T2: Overall Opex | U2: Overall Total | W2: Dependency | X2: Environments | Y2: Resources | Z2: Questions?
B3: Program Management and Governance
B4: PM-1 | C4: =VLOOKUP(B4,ProjectMatrix,2,0) -> Program Management | D4: =VLOOKUP(B4,ProjectMatrix,3,0) -> Funding of PMO resources to fully staff required roles with competent and qualified resources. Training and on-boarding will occur as necessary and performance plans, performance management and coaching/mentoring will be standard activities. (includes Cost Center Costs) | E4: =VLOOKUP(B4,ProjectMatrix,13,0) -> 3Q16 | F4: =VLOOKUP(B4,ProjectMatrix,14,0) -> 2020 | G4: =VLOOKUP(B4,'Modified Costs (R) '!ProjectCostMatrix,8,0) -> 0.9 | H4: =VLOOKUP($B4,'Modified Costs (R) '!ProjectCostMatrix,30,0) -> 0 | I4: =VLOOKUP($B4,'Modified Costs (R) '!ProjectCostMatrix,23,0) -> 0 | J4: =VLOOKUP($B4,'Modified Costs (R) '!ProjectCostMatrix,47,0)+VLOOKUP($B4,'Modified Costs (R) '!ProjectCostMatrix,48,0) -> 4573297.778 | K4: =SUM(H4:J4)*'Modified Costs (R) '!$C$228 -> 457329.7778 | L4: =(H4+I4+G4*J4)*(1+'Modified Costs (R) '!$C$228) -> 4527564.8 | M4: =((1-G4)*J4)*(1+'Modified Costs (R) '!$C$228) -> 503062.7556 | N4: =SUM(L4:M4) -> 5030627.556 | O4: =VLOOKUP($B4,'Modified Costs (R) '!ProjectCostMatrix,35,0) -> 0 | P4: =VLOOKUP($B4,'Modified Costs (R) '!ProjectCostMatrix,21,0) -> 0 | Q4: =VLOOKUP($B4,'Modified Costs (R) '!ProjectCostMatrix,42,0) -> XXXXXX | R4: =SUM(O4:Q4)*'Modified Costs (R) '!$C$228 -> 0 | S4: =(O4+P4+G4*Q4)*(1+'Modified Costs (R) '!$C$228) ->  | T4: =((1-G4)*Q4)*(1+'Modified Costs (R) '!$C$228) ->  | U4: =SUM(S4:T4) ->  | V4: =IFERROR(IF(VLOOKUP(F4,QuarterTable,5,0)=2017,1,0),"") -> 0
B5: PM-2 | C5: =VLOOKUP(B5,ProjectMatrix,2,0) -> Organization Change Management & Customer Communications strategy | D5: The capability to support change within the business and to our customers. Includes: - Stakeholder identification - Program-wide OCM strategy - Training plan - Communications strategy (internal and external) - On-going change assessments and analyses | E5: =VLOOKUP(B5,ProjectMatrix,13,0) -> 1Q17 | F5: =VLOOKUP(B5,ProjectMatrix,14,0) -> 2020 | G5: =VLOOKUP(B5,'Modified Costs (R) '!ProjectCostMatrix,8,0) -> 0.3 | H5: =VLOOKUP($B5,'Modified Costs (R) '!ProjectCostMatrix,30,0) -> 0 | I5: =VLOOKUP($B5,'Modified Costs (R) '!ProjectCostMatrix,23,0) -> 0 | J5: =VLOOKUP($B5,'Modified Costs (R) '!ProjectCostMatrix,47,0)+VLOOKUP($B5,'Modified Costs (R) '!ProjectCostMatrix,48,0) -> 3596640 | K5: =SUM(H5:J5)*'Modified Costs (R) '!$C$228 -> 359664 | L5: =(H5+I5+G5*J5)*(1+'Modified Costs (R) '!$C$228) -> 1186891.2 | M5: =((1-G5)*J5)*(1+'Modified Costs (R) '!$C$228) -> 2769412.8 | N5: =SUM(L5:M5) -> 3956304 | O5: =VLOOKUP($B5,'Modified Costs (R) '!ProjectCostMatrix,35,0) -> 0 | P5: =VLOOKUP($B5,'Modified Costs (R) '!ProjectCostMatrix,21,0) -> 0 | Q5: =VLOOKUP($B5,'Modified Costs (R) '!ProjectCostMatrix,42,0) -> XXXXXX | R5: =SUM(O5:Q5)*'Modified Costs (R) '!$C$228 -> 0 | S5: =(O5+P5+G5*Q5)*(1+'Modified Costs (R) '!$C$228) ->  | T5: =((1-G5)*Q5)*(1+'Modified Costs (R) '!$C$228) ->  | U5: =SUM(S5:T5) ->  | V5: 0
B6: PM-3 | C6: Customer rollout - communications execution | D6: External communication and marketing to customers as capabilities become enabled through the GTZ project plan. Strategy developed as part of PM-2. | E6: 1Q17 | F6: 2020 | G6: =VLOOKUP(B6,'Modified Costs (R) '!ProjectCostMatrix,8,0) -> 0 | H6: =VLOOKUP($B6,'Modified Costs (R) '!ProjectCostMatrix,30,0) -> 0 | I6: =VLOOKUP($B6,'Modified Costs (R) '!ProjectCostMatrix,23,0) -> 0 | J6: =VLOOKUP($B6,'Modified Costs (R) '!ProjectCostMatrix,47,0)+VLOOKUP($B6,'Modified Costs (R) '!ProjectCostMatrix,48,0) -> 0 | K6: =SUM(H6:J6)*'Modified Costs (R) '!$C$228 -> 0 | L6: =(H6+I6+G6*J6)*(1+'Modified Costs (R) '!$C$228) -> 0 | M6: =((1-G6)*J6)*(1+'Modified Costs (R) '!$C$228) -> 0 | N6: 0 | O6: =VLOOKUP($B6,'Modified Costs (R) '!ProjectCostMatrix,35,0) -> 0 | P6: =VLOOKUP($B6,'Modified Costs (R) '!ProjectCostMatrix,21,0) -> 0 | Q6: =VLOOKUP($B6,'Modified Costs (R) '!ProjectCostMatrix,42,0) -> XXXXXX | R6: =SUM(O6:Q6)*'Modified Costs (R) '!$C$228 -> 0 | S6: =(O6+P6+G6*Q6)*(1+'Modified Costs (R) '!$C$228) ->  | T6: =((1-G6)*Q6)*(1+'Modified Costs (R) '!$C$228) ->  | V6: 0
B7: PM-4 | C7: GTZ Benefits & Balance Scorecard | D7: Creating the dashboard to capture the GTZ benefits realization & balance scorecard | E7: 1Q17 | F7: 2020 | G7: =VLOOKUP(B7,'Modified Costs (R) '!ProjectCostMatrix,8,0) -> 0 | H7: =VLOOKUP($B7,'Modified Costs (R) '!ProjectCostMatrix,30,0) -> 0 | I7: =VLOOKUP($B7,'Modified Costs (R) '!ProjectCostMatrix,23,0) -> 0 | J7: =VLOOKUP($B7,'Modified Costs (R) '!ProjectCostMatrix,47,0)+VLOOKUP($B7,'Modified Costs (R) '!ProjectCostMatrix,48,0) -> 449580 | K7: =SUM(H7:J7)*'Modified Costs (R) '!$C$228 -> 44958 | L7: =(H7+I7+G7*J7)*(1+'Modified Costs (R) '!$C$228) -> 0 | M7: =((1-G7)*J7)*(1+'Modified Costs (R) '!$C$228) -> 494538 | N7: 494538 | O7: =VLOOKUP($B7,'Modified Costs (R) '!ProjectCostMatrix,35,0) -> 0 | P7: =VLOOKUP($B7,'Modified Costs (R) '!ProjectCostMatrix,21,0) -> 0 | Q7: =VLOOKUP($B7,'Modified Costs (R) '!ProjectCostMatrix,42,0) -> XXXXXX | R7: =SUM(O7:Q7)*'Modified Costs (R) '!$C$228 -> 0 | S7: =(O7+P7+G7*Q7)*(1+'Modified Costs (R) '!$C$228) ->  | T7: =((1-G7)*Q7)*(1+'Modified Costs (R) '!$C$228) ->  | V7: 0
B8: PM-5 | C8: Regulatory Work stream | D8: Regulatory Support: GTZ to continuously work with Regulatory, compliance and other governing organization like the WA State Department of Commerce. GTZ team will have to complete the research to provide supporting materials to regulatory departments. Potential areas of change are payment arrangements, budget payments, disconnect notice delivery method, increase disconnect fee, deposit collection in the field, SSN for account setup and collections, correspondence changes for self-service, and Bill Payment Assistance for Low Income Customers. | E8: 1Q17 | F8: 2020 | G8: =VLOOKUP(B8,'Modified Costs (R) '!ProjectCostMatrix,8,0) -> 0 | H8: =VLOOKUP($B8,'Modified Costs (R) '!ProjectCostMatrix,30,0) -> 0 | I8: =VLOOKUP($B8,'Modified Costs (R) '!ProjectCostMatrix,23,0) -> 0 | J8: =VLOOKUP($B8,'Modified Costs (R) '!ProjectCostMatrix,47,0)+VLOOKUP($B8,'Modified Costs (R) '!ProjectCostMatrix,48,0) -> 59944 | K8: =SUM(H8:J8)*'Modified Costs (R) '!$C$228 -> 5994.4 | L8: =(H8+I8+G8*J8)*(1+'Modified Costs (R) '!$C$228) -> 0 | M8: =((1-G8)*J8)*(1+'Modified Costs (R) '!$C$228) -> 65938.4 | N8: 65938.4 | O8: =VLOOKUP($B8,'Modified Costs (R) '!ProjectCostMatrix,35,0) -> 0 | P8: =VLOOKUP($B8,'Modified Costs (R) '!ProjectCostMatrix,21,0) -> 0 | Q8: =VLOOKUP($B8,'Modified Costs (R) '!ProjectCostMatrix,42,0) -> XXXXXX | R8: =SUM(O8:Q8)*'Modified Costs (R) '!$C$228 -> 0 | S8: =(O8+P8+G8*Q8)*(1+'Modified Costs (R) '!$C$228) ->  | T8: =((1-G8)*Q8)*(1+'Modified Costs (R) '!$C$228) ->  | V8: 0
B9: PM-6 | C9: Program Mobilization and Planning | D9: This includes the funding and resources for the GTZ program initiation. | E9: 4Q16 | F9: 2Q17 | G9: =VLOOKUP(B9,'Modified Costs (R) '!ProjectCostMatrix,8,0) -> 0 | H9: =VLOOKUP($B9,'Modified Costs (R) '!ProjectCostMatrix,30,0) -> 0 | I9: =VLOOKUP($B9,'Modified Costs (R) '!ProjectCostMatrix,23,0) -> 0 | J9: =VLOOKUP($B9,'Modified Costs (R) '!ProjectCostMatrix,47,0)+VLOOKUP($B9,'Modified Costs (R) '!ProjectCostMatrix,48,0) -> 841386.6667 | K9: =SUM(H9:J9)*'Modified Costs (R) '!$C$228 -> 84138.66667 | L9: =(H9+I9+G9*J9)*(1+'Modified Costs (R) '!$C$228) -> 0 | M9: =((1-G9)*J9)*(1+'Modified Costs (R) '!$C$228) -> 925525.3333 | N9: 925525.3333 | O9: =VLOOKUP($B9,'Modified Costs (R) '!ProjectCostMatrix,35,0) -> 0 | P9: =VLOOKUP($B9,'Modified Costs (R) '!ProjectCostMatrix,21,0) -> 0 | Q9: =VLOOKUP($B9,'Modified Costs (R) '!ProjectCostMatrix,42,0) -> XXXXXX | R9: =SUM(O9:Q9)*'Modified Costs (R) '!$C$228 -> 0 | S9: =(O9+P9+G9*Q9)*(1+'Modified Costs (R) '!$C$228) ->  | T9: =((1-G9)*Q9)*(1+'Modified Costs (R) '!$C$228) ->  | V9: 1
B10: PM-8 | C10: Customer Experience Journey Mapping | D10: Stand-up internal journey mapping capability. | E10: 1Q17 | F10: 2020 | G10: =VLOOKUP(B10,'Modified Costs (R) '!ProjectCostMatrix,8,0) -> 0 | H10: =VLOOKUP($B10,'Modified Costs (R) '!ProjectCostMatrix,30,0) -> 0 | I10: =VLOOKUP($B10,'Modified Costs (R) '!ProjectCostMatrix,23,0) -> 0 | J10: =VLOOKUP($B10,'Modified Costs (R) '!ProjectCostMatrix,47,0)+VLOOKUP($B10,'Modified Costs (R) '!ProjectCostMatrix,48,0) -> 209804 | K10: =SUM(H10:J10)*'Modified Costs (R) '!$C$228 -> 20980.4 | L10: =(H10+I10+G10*J10)*(1+'Modified Costs (R) '!$C$228) -> 0 | M10: =((1-G10)*J10)*(1+'Modified Costs (R) '!$C$228) -> 230784.4 | N10: 230784.4 | O10: =VLOOKUP($B10,'Modified Costs (R) '!ProjectCostMatrix,35,0) -> 0 | P10: =VLOOKUP($B10,'Modified Costs (R) '!ProjectCostMatrix,21,0) -> 0 | Q10: =VLOOKUP($B10,'Modified Costs (R) '!ProjectCostMatrix,42,0) -> XXXXXX | R10: =SUM(O10:Q10)*'Modified Costs (R) '!$C$228 -> 0 | S10: =(O10+P10+G10*Q10)*(1+'Modified Costs (R) '!$C$228) ->  | T10: =((1-G10)*Q10)*(1+'Modified Costs (R) '!$C$228) ->  | V10: 0
B11: Super 5
B12: 1) Explain my Bill
B13: S1-2 | C13: Bill Code Enhancement CSA - Phase 2 | D13: =VLOOKUP(B13,ProjectMatrix,3,0) -> Identify accurate description of the Miscellaneous Adjustments (MA) on residential & collective accounts bills for approximately 18 scenarios. Missing or unclear information on bills Decrease cost of postage due to the number of bill pages and resolve overage print charges received System checks to prevent inaccurate data being entered into fields (converting free form to drop-down menus) for non-consumption and SAP Sales and Distribution (SD) charges created by employees | E13: =VLOOKUP(B13,ProjectMatrix,13,0) -> 2Q16 | F13: =VLOOKUP(B13,ProjectMatrix,14,0) -> 2Q17 | G13: =VLOOKUP(B13,'Modified Costs (R) '!ProjectCostMatrix,8,0) -> 0.9 | H13: =VLOOKUP($B13,'Modified Costs (R) '!ProjectCostMatrix,30,0) -> 0 | I13: =VLOOKUP($B13,'Modified Costs (R) '!ProjectCostMatrix,23,0) -> 0 | J13: =VLOOKUP($B13,'Modified Costs (R) '!ProjectCostMatrix,47,0)+VLOOKUP($B13,'Modified Costs (R) '!ProjectCostMatrix,48,0) -> 258624 | K13: =SUM(H13:J13)*'Modified Costs (R) '!$C$228 -> 25862.4 | L13: =(H13+I13+G13*J13)*(1+'Modified Costs (R) '!$C$228) -> 256037.76 | M13: =((1-G13)*J13)*(1+'Modified Costs (R) '!$C$228) -> 28448.64 | N13: =SUM(L13:M13) -> 284486.4 | O13: =VLOOKUP($B13,'Modified Costs (R) '!ProjectCostMatrix,35,0) -> 0 | P13: =VLOOKUP($B13,'Modified Costs (R) '!ProjectCostMatrix,21,0) -> 0 | Q13: =VLOOKUP($B13,'Modified Costs (R) '!ProjectCostMatrix,42,0) -> XXXXXX | R13: =SUM(O13:Q13)*'Modified Costs (R) '!$C$228 -> 0 | S13: =(O13+P13+G13*Q13)*(1+'Modified Costs (R) '!$C$228) ->  | T13: =((1-G13)*Q13)*(1+'Modified Costs (R) '!$C$228) ->  | U13: =SUM(S13:T13) ->  | V13: 1 | W13: Underway now - should go live right after HANA on ECC/CRM (this is not dependent on Hana, it has its own envirornment. We're not building on top of a Hana plateform just building on SAP) | X13: May be tied to environments for HANA work but should be doable per Tim F
B14: S1-3 | C14: Full realization of Energy Usage across Digital Core | D14: =VLOOKUP(B14,ProjectMatrix,3,0) -> Refine Billing and Usage Process to utilize Digital Core capabilities and develop business and functional requirements for implementation by DC team. Thereby provide consistent Billing Explanation experience across all customer facing channels as well as enabling CSR. | E14: 1Q17 | F14: 4Q18 | G14: =VLOOKUP(B14,'Modified Costs (R) '!ProjectCostMatrix,8,0) -> 0.9 | H14: =VLOOKUP($B14,'Modified Costs (R) '!ProjectCostMatrix,30,0) -> 0 | I14: =VLOOKUP($B14,'Modified Costs (R) '!ProjectCostMatrix,23,0) -> 0 | J14: =VLOOKUP($B14,'Modified Costs (R) '!ProjectCostMatrix,47,0)+VLOOKUP($B14,'Modified Costs (R) '!ProjectCostMatrix,48,0) -> 169888 | K14: =SUM(H14:J14)*'Modified Costs (R) '!$C$228 -> 16988.8 | L14: =(H14+I14+G14*J14)*(1+'Modified Costs (R) '!$C$228) -> 168189.12 | M14: =((1-G14)*J14)*(1+'Modified Costs (R) '!$C$228) -> 18687.68 | N14: 186876.8 | O14: =VLOOKUP($B14,'Modified Costs (R) '!ProjectCostMatrix,35,0) -> 0 | P14: =VLOOKUP($B14,'Modified Costs (R) '!ProjectCostMatrix,21,0) -> 0 | Q14: =VLOOKUP($B14,'Modified Costs (R) '!ProjectCostMatrix,42,0) -> XXXXXX | R14: =SUM(O14:Q14)*'Modified Costs (R) '!$C$228 -> 0 | S14: =(O14+P14+G14*Q14)*(1+'Modified Costs (R) '!$C$228) ->  | T14: =((1-G14)*Q14)*(1+'Modified Costs (R) '!$C$228) ->  | V14: 0 | W14: Dependency on HANA for ECC/CRM. Ties also to preference center, communication gateway and data platform. (these have to go to help deliver the capabilities as the projects move forward, cannot push this money out) | Z14: This is a placeholder - potential to delay
B15: S1-4 | C15: Full realization of energy efficiency across Digital Core | D15: =VLOOKUP(B15,ProjectMatrix,3,0) -> Linking EE systems to the digital core (NEXANT, OPower, SAP and others). Customer is proactively notified of high usage through preferred channel and are directed to self service resource that identifies specific areas whereby customer can become more energy and cost efficient. Specifically, late paying customers are directly marketed to based on channel preferences with regard to energy efficiency / savings opportunities. Provide API for residential and business customers to pull PSE energy usage date into the system of their choice? | E15: 1Q17 | F15: 4Q18 | G15: =VLOOKUP(B15,'Modified Costs (R) '!ProjectCostMatrix,8,0) -> 0.9 | H15: =VLOOKUP($B15,'Modified Costs (R) '!ProjectCostMatrix,30,0) -> 0 | I15: =VLOOKUP($B15,'Modified Costs (R) '!ProjectCostMatrix,23,0) -> 0 | J15: =VLOOKUP($B15,'Modified Costs (R) '!ProjectCostMatrix,47,0)+VLOOKUP($B15,'Modified Costs (R) '!ProjectCostMatrix,48,0) -> 1061800 | K15: =SUM(H15:J15)*'Modified Costs (R) '!$C$228 -> 106180 | L15: =(H15+I15+G15*J15)*(1+'Modified Costs (R) '!$C$228) -> 1051182 | M15: =((1-G15)*J15)*(1+'Modified Costs (R) '!$C$228) -> 116798 | N15: 1167980 | O15: =VLOOKUP($B15,'Modified Costs (R) '!ProjectCostMatrix,35,0) -> 0 | P15: =VLOOKUP($B15,'Modified Costs (R) '!ProjectCostMatrix,21,0) -> 0 | Q15: =VLOOKUP($B15,'Modified Costs (R) '!ProjectCostMatrix,42,0) -> XXXXXX | R15: =SUM(O15:Q15)*'Modified Costs (R) '!$C$228 -> 0 | S15: =(O15+P15+G15*Q15)*(1+'Modified Costs (R) '!$C$228) ->  | T15: =((1-G15)*Q15)*(1+'Modified Costs (R) '!$C$228) ->  | V15: 0 | W15: Dependency on HANA for ECC/CRM. Ties also to preference center, communication gateway and data platform. (this is a catch all placeholder. There's new functionality that comes on board and leveraging this for each process and explicitly (EE & SL we moved projects into this line item) | Z15: This is a placeholder - potential to delay
B16: 2)Pay my Bill
B17: S2-1 | C17: No Fee Bank Card | D17: =VLOOKUP(B17,ProjectMatrix,3,0) -> This project was identified as a result of the Billing and Payment Roadmap completion in April and UTC’s approval of the no fee bank card processing on 3/26/2016. This project is addressing the Bill Matrix payment channel that processes 1.2 million transactions annually. The forecast is to grow this channel 64% to 2.2 million transactions the first year. The no-fee bank card processing capabilities completion by August 2016 is included in Docket UE-160203 and Docket UG-160204 order 01 Granting the Amended Accounting Petition, which includes rate recover of the fee-free payment program. | E17: =VLOOKUP(B17,ProjectMatrix,13,0) -> 2Q16 | F17: =VLOOKUP(B17,ProjectMatrix,14,0) -> 3Q16 | G17: =VLOOKUP(B17,'Modified Costs (R) '!ProjectCostMatrix,8,0) -> 0.9 | H17: =VLOOKUP($B17,'Modified Costs (R) '!ProjectCostMatrix,30,0) -> 0 | I17: =VLOOKUP($B17,'Modified Costs (R) '!ProjectCostMatrix,23,0) -> 0 | J17: =VLOOKUP($B17,'Modified Costs (R) '!ProjectCostMatrix,47,0)+VLOOKUP($B17,'Modified Costs (R) '!ProjectCostMatrix,48,0) -> 0 | K17: =SUM(H17:J17)*'Modified Costs (R) '!$C$228 -> 0 | L17: =(H17+I17+G17*J17)*(1+'Modified Costs (R) '!$C$228) -> 0 | M17: =((1-G17)*J17)*(1+'Modified Costs (R) '!$C$228) -> 0 | N17: =SUM(L17:M17) -> 0 | O17: =VLOOKUP($B17,'Modified Costs (R) '!ProjectCostMatrix,35,0) -> 0 | P17: =VLOOKUP($B17,'Modified Costs (R) '!ProjectCostMatrix,21,0) -> 0 | Q17: =VLOOKUP($B17,'Modified Costs (R) '!ProjectCostMatrix,42,0) -> XXXXXX | R17: =SUM(O17:Q17)*'Modified Costs (R) '!$C$228 -> 0 | S17: =(O17+P17+G17*Q17)*(1+'Modified Costs (R) '!$C$228) ->  | T17: =((1-G17)*Q17)*(1+'Modified Costs (R) '!$C$228) ->  | U17: =SUM(S17:T17) ->  | V17: 0 | W17: None - completing in 2016
B18: S2-2 | C18: Billing Performance Improvements | D18: Reduce the number of billing exceptions from 22,000 per year to approximately 7,000 EMMA Cases and correct within the new 60 day billing rule. There are management processes, training along with Metering and SAP system enhancements required to achieve this goal. | E18: 2Q16 | F18: 4Q16 | G18: =VLOOKUP(B18,'Modified Costs (R) '!ProjectCostMatrix,8,0) -> 0.9 | H18: =VLOOKUP($B18,'Modified Costs (R) '!ProjectCostMatrix,30,0) -> 0 | I18: =VLOOKUP($B18,'Modified Costs (R) '!ProjectCostMatrix,23,0) -> 0 | J18: =VLOOKUP($B18,'Modified Costs (R) '!ProjectCostMatrix,47,0)+VLOOKUP($B18,'Modified Costs (R) '!ProjectCostMatrix,48,0) -> 0 | K18: =SUM(H18:J18)*'Modified Costs (R) '!$C$228 -> 0 | L18: =(H18+I18+G18*J18)*(1+'Modified Costs (R) '!$C$228) -> 0 | M18: =((1-G18)*J18)*(1+'Modified Costs (R) '!$C$228) -> 0 | N18: 0 | O18: =VLOOKUP($B18,'Modified Costs (R) '!ProjectCostMatrix,35,0) -> 0 | P18: =VLOOKUP($B18,'Modified Costs (R) '!ProjectCostMatrix,21,0) -> 0 | Q18: =VLOOKUP($B18,'Modified Costs (R) '!ProjectCostMatrix,42,0) -> XXXXXX | R18: =SUM(O18:Q18)*'Modified Costs (R) '!$C$228 -> 0 | S18: =(O18+P18+G18*Q18)*(1+'Modified Costs (R) '!$C$228) ->  | T18: =((1-G18)*Q18)*(1+'Modified Costs (R) '!$C$228) ->  | V18: 0 | W18: None - completing in 2016
B19: S2-3 | C19: Bill Due Reminder | D19: Provide a notification to users who have not paid or scheduled a payment within 5 days of their due date that their payment date is approaching, along with a prompt to pay now for Fiserv customers. | E19: 2Q16 | F19: 3Q16 | G19: =VLOOKUP(B19,'Modified Costs (R) '!ProjectCostMatrix,8,0) -> 0.9 | H19: =VLOOKUP($B19,'Modified Costs (R) '!ProjectCostMatrix,30,0) -> 0 | I19: =VLOOKUP($B19,'Modified Costs (R) '!ProjectCostMatrix,23,0) -> 0 | J19: =VLOOKUP($B19,'Modified Costs (R) '!ProjectCostMatrix,47,0)+VLOOKUP($B19,'Modified Costs (R) '!ProjectCostMatrix,48,0) -> 0 | K19: =SUM(H19:J19)*'Modified Costs (R) '!$C$228 -> 0 | L19: =(H19+I19+G19*J19)*(1+'Modified Costs (R) '!$C$228) -> 0 | M19: =((1-G19)*J19)*(1+'Modified Costs (R) '!$C$228) -> 0 | N19: 0 | O19: =VLOOKUP($B19,'Modified Costs (R) '!ProjectCostMatrix,35,0) -> 0 | P19: =VLOOKUP($B19,'Modified Costs (R) '!ProjectCostMatrix,21,0) -> 0 | Q19: =VLOOKUP($B19,'Modified Costs (R) '!ProjectCostMatrix,42,0) -> XXXXXX | R19: =SUM(O19:Q19)*'Modified Costs (R) '!$C$228 -> 0 | S19: =(O19+P19+G19*Q19)*(1+'Modified Costs (R) '!$C$228) ->  | T19: =((1-G19)*Q19)*(1+'Modified Costs (R) '!$C$228) ->  | V19: 0 | W19: None - completing in 2016
B20: S2-4 | C20: Fiserv Balance | D20: Display a real time balance, explanation of type of account (active or closed) and remove closed accounts if they are paid in full through the Bank Withdrawal Pay Page through FISERV. | E20: 2Q16 | F20: 3Q16 | G20: =VLOOKUP(B20,'Modified Costs (R) '!ProjectCostMatrix,8,0) -> 0.9 | H20: =VLOOKUP($B20,'Modified Costs (R) '!ProjectCostMatrix,30,0) -> 0 | I20: =VLOOKUP($B20,'Modified Costs (R) '!ProjectCostMatrix,23,0) -> 0 | J20: =VLOOKUP($B20,'Modified Costs (R) '!ProjectCostMatrix,47,0)+VLOOKUP($B20,'Modified Costs (R) '!ProjectCostMatrix,48,0) -> 0 | K20: =SUM(H20:J20)*'Modified Costs (R) '!$C$228 -> 0 | L20: =(H20+I20+G20*J20)*(1+'Modified Costs (R) '!$C$228) -> 0 | M20: =((1-G20)*J20)*(1+'Modified Costs (R) '!$C$228) -> 0 | N20: 0 | O20: =VLOOKUP($B20,'Modified Costs (R) '!ProjectCostMatrix,35,0) -> 0 | P20: =VLOOKUP($B20,'Modified Costs (R) '!ProjectCostMatrix,21,0) -> 0 | Q20: =VLOOKUP($B20,'Modified Costs (R) '!ProjectCostMatrix,42,0) -> XXXXXX | R20: =SUM(O20:Q20)*'Modified Costs (R) '!$C$228 -> 0 | S20: =(O20+P20+G20*Q20)*(1+'Modified Costs (R) '!$C$228) ->  | T20: =((1-G20)*Q20)*(1+'Modified Costs (R) '!$C$228) ->  | V20: 0 | W20: None - completing in 2016
B21: S2-5 | C21: Non Consumption Billing | D21: Enhance the SAP system and automate the process to provide a comprehensive billing experience for customers who receive, make payment and collections for non-consumption bills. | E21: 4Q17 | F21: 1Q18 | G21: =VLOOKUP(B21,'Modified Costs (R) '!ProjectCostMatrix,8,0) -> 0.9 | H21: =VLOOKUP($B21,'Modified Costs (R) '!ProjectCostMatrix,30,0) -> 0 | I21: =VLOOKUP($B21,'Modified Costs (R) '!ProjectCostMatrix,23,0) -> 0 | J21: =VLOOKUP($B21,'Modified Costs (R) '!ProjectCostMatrix,47,0)+VLOOKUP($B21,'Modified Costs (R) '!ProjectCostMatrix,48,0) -> 264312 | K21: =SUM(H21:J21)*'Modified Costs (R) '!$C$228 -> 26431.2 | L21: =(H21+I21+G21*J21)*(1+'Modified Costs (R) '!$C$228) -> 261668.88 | M21: =((1-G21)*J21)*(1+'Modified Costs (R) '!$C$228) -> 29074.32 | N21: 290743.2 | O21: =VLOOKUP($B21,'Modified Costs (R) '!ProjectCostMatrix,35,0) -> 0 | P21: =VLOOKUP($B21,'Modified Costs (R) '!ProjectCostMatrix,21,0) -> 0 | Q21: =VLOOKUP($B21,'Modified Costs (R) '!ProjectCostMatrix,42,0) -> XXXXXX | R21: =SUM(O21:Q21)*'Modified Costs (R) '!$C$228 -> 0 | S21: =(O21+P21+G21*Q21)*(1+'Modified Costs (R) '!$C$228) ->  | T21: =((1-G21)*Q21)*(1+'Modified Costs (R) '!$C$228) ->  | V21: 0 | W21: Risk - tied to Fiserver and web replatform which have tight schedules. Also dependent on ECC and CRM environment systems (No not tied to Fiserv)
B22: S2-6 | C22: Customer Pre-payment (incl real time presentment, bill on-demand) | D22: The customer will have the ability to pre-pay their energy bill, ensuring they are always within their budget. | E22: 2Q18 | F22: 1Q19 | G22: =VLOOKUP(B22,'Modified Costs (R) '!ProjectCostMatrix,8,0) -> 0.9 | H22: =VLOOKUP($B22,'Modified Costs (R) '!ProjectCostMatrix,30,0) -> 0 | I22: =VLOOKUP($B22,'Modified Costs (R) '!ProjectCostMatrix,23,0) -> 0 | J22: =VLOOKUP($B22,'Modified Costs (R) '!ProjectCostMatrix,47,0)+VLOOKUP($B22,'Modified Costs (R) '!ProjectCostMatrix,48,0) -> 0 | K22: =SUM(H22:J22)*'Modified Costs (R) '!$C$228 -> 0 | L22: =(H22+I22+G22*J22)*(1+'Modified Costs (R) '!$C$228) -> 0 | M22: =((1-G22)*J22)*(1+'Modified Costs (R) '!$C$228) -> 0 | N22: 0 | O22: =VLOOKUP($B22,'Modified Costs (R) '!ProjectCostMatrix,35,0) -> 0 | P22: =VLOOKUP($B22,'Modified Costs (R) '!ProjectCostMatrix,21,0) -> 0 | Q22: =VLOOKUP($B22,'Modified Costs (R) '!ProjectCostMatrix,42,0) -> XXXXXX | R22: =SUM(O22:Q22)*'Modified Costs (R) '!$C$228 -> 0 | S22: =(O22+P22+G22*Q22)*(1+'Modified Costs (R) '!$C$228) ->  | T22: =((1-G22)*Q22)*(1+'Modified Costs (R) '!$C$228) ->  | V22: 0 | W22: AMI Advanced functionality required. (need to determine the order of our AMI functionaility sequencing. Only dependent on Meter, likley more dependent on SAP) | Z22: AMI Dependency - can we really start in 2Q 18 - seems like too early
B23: S2-7 | C23: Billing and Payment Improvement (M2C) | D23: SAP changes to support Billing Exception Processing, payment arrangement, budget billing, installment and deposit plans. Business Rule changes to optimize the meter to cash process within SAP Quality Control Dashboards from source information | E23: 1Q17 | F23: 4Q17 | G23: =VLOOKUP(B23,'Modified Costs (R) '!ProjectCostMatrix,8,0) -> 0.9 | H23: =VLOOKUP($B23,'Modified Costs (R) '!ProjectCostMatrix,30,0) -> 0 | I23: =VLOOKUP($B23,'Modified Costs (R) '!ProjectCostMatrix,23,0) -> 0 | J23: =VLOOKUP($B23,'Modified Costs (R) '!ProjectCostMatrix,47,0)+VLOOKUP($B23,'Modified Costs (R) '!ProjectCostMatrix,48,0) -> 472304 | K23: =SUM(H23:J23)*'Modified Costs (R) '!$C$228 -> 47230.4 | L23: =(H23+I23+G23*J23)*(1+'Modified Costs (R) '!$C$228) -> 467580.96 | M23: =((1-G23)*J23)*(1+'Modified Costs (R) '!$C$228) -> 51953.44 | N23: 519534.4 | O23: =VLOOKUP($B23,'Modified Costs (R) '!ProjectCostMatrix,35,0) -> 0 | P23: =VLOOKUP($B23,'Modified Costs (R) '!ProjectCostMatrix,21,0) -> 0 | Q23: =VLOOKUP($B23,'Modified Costs (R) '!ProjectCostMatrix,42,0) -> XXXXXX | R23: =SUM(O23:Q23)*'Modified Costs (R) '!$C$228 -> 0 | S23: =(O23+P23+G23*Q23)*(1+'Modified Costs (R) '!$C$228) ->  | T23: =((1-G23)*Q23)*(1+'Modified Costs (R) '!$C$228) ->  | V23: 1 | W23: Tied to HANA for ECC/CRM. (NO, not web)
B24: S2-8 | C24: Enable Digital Billing and Payment Capabilities (Mobile, IVR, Web) | D24: Billing and Payment transactions via all self serve channels Decommission and Convert customers from previous provider service Consolidated Bills for Customers Customer Notification Preference E-wallet for customer bank card - reoccurring payments Payment History Clarity | E24: 1Q17 | F24: 4Q17 | G24: =VLOOKUP(B24,'Modified Costs (R) '!ProjectCostMatrix,8,0) -> 0.9 | H24: =VLOOKUP($B24,'Modified Costs (R) '!ProjectCostMatrix,30,0) -> 0 | I24: =VLOOKUP($B24,'Modified Costs (R) '!ProjectCostMatrix,23,0) -> 369000 | J24: =VLOOKUP($B24,'Modified Costs (R) '!ProjectCostMatrix,47,0)+VLOOKUP($B24,'Modified Costs (R) '!ProjectCostMatrix,48,0) -> 1484384 | K24: =SUM(H24:J24)*'Modified Costs (R) '!$C$228 -> 185338.4 | L24: =(H24+I24+G24*J24)*(1+'Modified Costs (R) '!$C$228) -> 1875440.16 | M24: =((1-G24)*J24)*(1+'Modified Costs (R) '!$C$228) -> 163282.24 | N24: 2038722.4 | O24: =VLOOKUP($B24,'Modified Costs (R) '!ProjectCostMatrix,35,0) -> 0 | P24: =VLOOKUP($B24,'Modified Costs (R) '!ProjectCostMatrix,21,0) -> 369000 | Q24: =VLOOKUP($B24,'Modified Costs (R) '!ProjectCostMatrix,42,0) -> XXXXXX | R24: =SUM(O24:Q24)*'Modified Costs (R) '!$C$228 -> 36900 | S24: =(O24+P24+G24*Q24)*(1+'Modified Costs (R) '!$C$228) ->  | T24: =((1-G24)*Q24)*(1+'Modified Costs (R) '!$C$228) ->  | V24: 1 | W24: Fiserv 4.0 part of scope. Assumption is this will need to be a managed or packaged service. Tied to S2-7.. This is where MCF imp should be. (MCF is not apart of this) | Z24: Need to add in costs for MCF imp. Can we stand up MCF this year?
B25: S2-9 | C25: Faster Pmt Posting | D25: Posting the payment to the customer account in real time from the Customer and Field Collections workforce mobility | E25: 1Q17 | F25: 4Q17 | G25: =VLOOKUP(B25,'Modified Costs (R) '!ProjectCostMatrix,8,0) -> 0.9 | H25: =VLOOKUP($B25,'Modified Costs (R) '!ProjectCostMatrix,30,0) -> 0 | I25: =VLOOKUP($B25,'Modified Costs (R) '!ProjectCostMatrix,23,0) -> 0 | J25: =VLOOKUP($B25,'Modified Costs (R) '!ProjectCostMatrix,47,0)+VLOOKUP($B25,'Modified Costs (R) '!ProjectCostMatrix,48,0) -> 674720 | K25: =SUM(H25:J25)*'Modified Costs (R) '!$C$228 -> 67472 | L25: =(H25+I25+G25*J25)*(1+'Modified Costs (R) '!$C$228) -> 667972.8 | M25: =((1-G25)*J25)*(1+'Modified Costs (R) '!$C$228) -> 74219.2 | N25: 742192 | O25: =VLOOKUP($B25,'Modified Costs (R) '!ProjectCostMatrix,35,0) -> 0 | P25: =VLOOKUP($B25,'Modified Costs (R) '!ProjectCostMatrix,21,0) -> 0 | Q25: =VLOOKUP($B25,'Modified Costs (R) '!ProjectCostMatrix,42,0) -> XXXXXX | R25: =SUM(O25:Q25)*'Modified Costs (R) '!$C$228 -> 0 | S25: =(O25+P25+G25*Q25)*(1+'Modified Costs (R) '!$C$228) ->  | T25: =((1-G25)*Q25)*(1+'Modified Costs (R) '!$C$228) ->  | V25: 1 | W25: Tied to S2-8
B26: S2-10 | C26: Full realization of bill and make / manage payment across Digital Core | D26: Refine Billing and Payment processes to utilize Digital Core capabilities and develop business and functional requirements for implementation by DC team. Thereby providing consistent Billing and Payment experiences across all customer facing channels as well as enabling CSR. | E26: 1Q17 | F26: 4Q17 | G26: =VLOOKUP(B26,'Modified Costs (R) '!ProjectCostMatrix,8,0) -> 0.9 | H26: =VLOOKUP($B26,'Modified Costs (R) '!ProjectCostMatrix,30,0) -> 0 | I26: =VLOOKUP($B26,'Modified Costs (R) '!ProjectCostMatrix,23,0) -> 0 | J26: =VLOOKUP($B26,'Modified Costs (R) '!ProjectCostMatrix,47,0)+VLOOKUP($B26,'Modified Costs (R) '!ProjectCostMatrix,48,0) -> 337360 | K26: =SUM(H26:J26)*'Modified Costs (R) '!$C$228 -> 33736 | L26: =(H26+I26+G26*J26)*(1+'Modified Costs (R) '!$C$228) -> 333986.4 | M26: =((1-G26)*J26)*(1+'Modified Costs (R) '!$C$228) -> 37109.6 | N26: 371096 | O26: =VLOOKUP($B26,'Modified Costs (R) '!ProjectCostMatrix,35,0) -> 0 | P26: =VLOOKUP($B26,'Modified Costs (R) '!ProjectCostMatrix,21,0) -> 0 | Q26: =VLOOKUP($B26,'Modified Costs (R) '!ProjectCostMatrix,42,0) -> XXXXXX | R26: =SUM(O26:Q26)*'Modified Costs (R) '!$C$228 -> 0 | S26: =(O26+P26+G26*Q26)*(1+'Modified Costs (R) '!$C$228) ->  | T26: =((1-G26)*Q26)*(1+'Modified Costs (R) '!$C$228) ->  | V26: 1 | W26: Tied to S2-8
B27: 3 )Financial Assistance
B28: S3-1 | C28: TSI Dunning | D28: =VLOOKUP(B28,ProjectMatrix,3,0) -> The “TSI–Dunning” Project will implement a behavioral scoring software solution purchased from Total Solutions Inc. (“TSI”) leveraging a vendor-hosted strategy. This will result in eliminating the customers who have a high propensity to pay although late. The actual customers who are likely not to pay are acted upon in the collection process immediately. | E28: =VLOOKUP(B28,ProjectMatrix,13,0) -> 2Q16 | F28: =VLOOKUP(B28,ProjectMatrix,14,0) -> 2Q16 | G28: =VLOOKUP(B28,'Modified Costs (R) '!ProjectCostMatrix,8,0) -> 0.9 | H28: =VLOOKUP($B28,'Modified Costs (R) '!ProjectCostMatrix,30,0) -> 0 | I28: =VLOOKUP($B28,'Modified Costs (R) '!ProjectCostMatrix,23,0) -> 0 | J28: =VLOOKUP($B28,'Modified Costs (R) '!ProjectCostMatrix,47,0)+VLOOKUP($B28,'Modified Costs (R) '!ProjectCostMatrix,48,0) -> 0 | K28: =SUM(H28:J28)*'Modified Costs (R) '!$C$228 -> 0 | L28: =(H28+I28+G28*J28)*(1+'Modified Costs (R) '!$C$228) -> 0 | M28: =((1-G28)*J28)*(1+'Modified Costs (R) '!$C$228) -> 0 | N28: =SUM(L28:M28) -> 0 | O28: =VLOOKUP($B28,'Modified Costs (R) '!ProjectCostMatrix,35,0) -> 0 | P28: =VLOOKUP($B28,'Modified Costs (R) '!ProjectCostMatrix,21,0) -> 0 | Q28: =VLOOKUP($B28,'Modified Costs (R) '!ProjectCostMatrix,42,0) -> XXXXXX | R28: =SUM(O28:Q28)*'Modified Costs (R) '!$C$228 -> 0 | S28: =(O28+P28+G28*Q28)*(1+'Modified Costs (R) '!$C$228) ->  | T28: =((1-G28)*Q28)*(1+'Modified Costs (R) '!$C$228) ->  | U28: =SUM(S28:T28) ->  | V28: 0 | W28: Done
B29: S3-2 | C29: Payment Arrangement/Budget/Deposit | D29: Auto -Payment Arrangement/Budget/Deposit via all self serve channels - This includes account set-up requirements and management of account changes. This will allow PSE to leverage SSN's with Experian and TSI to determine deposit requirements. | E29: 2Q17 | F29: 1Q18 | G29: =VLOOKUP(B29,'Modified Costs (R) '!ProjectCostMatrix,8,0) -> 0.9 | H29: =VLOOKUP($B29,'Modified Costs (R) '!ProjectCostMatrix,30,0) -> 0 | I29: =VLOOKUP($B29,'Modified Costs (R) '!ProjectCostMatrix,23,0) -> 0 | J29: =VLOOKUP($B29,'Modified Costs (R) '!ProjectCostMatrix,47,0)+VLOOKUP($B29,'Modified Costs (R) '!ProjectCostMatrix,48,0) -> 1163892 | K29: =SUM(H29:J29)*'Modified Costs (R) '!$C$228 -> 116389.2 | L29: =(H29+I29+G29*J29)*(1+'Modified Costs (R) '!$C$228) -> 1152253.08 | M29: =((1-G29)*J29)*(1+'Modified Costs (R) '!$C$228) -> 128028.12 | N29: 1280281.2 | O29: =VLOOKUP($B29,'Modified Costs (R) '!ProjectCostMatrix,35,0) -> 0 | P29: =VLOOKUP($B29,'Modified Costs (R) '!ProjectCostMatrix,21,0) -> 0 | Q29: =VLOOKUP($B29,'Modified Costs (R) '!ProjectCostMatrix,42,0) -> XXXXXX | R29: =SUM(O29:Q29)*'Modified Costs (R) '!$C$228 -> 0 | S29: =(O29+P29+G29*Q29)*(1+'Modified Costs (R) '!$C$228) ->  | T29: =((1-G29)*Q29)*(1+'Modified Costs (R) '!$C$228) ->  | V29: 0 | W29: Tied to web replatform and MCF. If assumption is we are storing SSN in SAP - this timeline will not be supported. Need infra in place to support PII before this can occur. If PII needed, add pre-cursor project to build platform. Need to also consider what we are storing in IVR as part of PII compliance (Existing timeframe is good, SSN is a conversation they will be having) | Z29: Shift completion to Q1 2018. Need follow up with Eileen on where SSN will be stored - tons of security considerations and PII compliance must be met
B30: S3-3 | C30: Collection Cycle Improvement & Agency Integration | D30: Expedite Collection activities and payment application (reduce cycle time from 111 days to 45 days) and integration with the collection agencies. | E30: 1Q17 | F30: 4Q17 | G30: =VLOOKUP(B30,'Modified Costs (R) '!ProjectCostMatrix,8,0) -> 0.9 | H30: =VLOOKUP($B30,'Modified Costs (R) '!ProjectCostMatrix,30,0) -> 0 | I30: =VLOOKUP($B30,'Modified Costs (R) '!ProjectCostMatrix,23,0) -> 0 | J30: =VLOOKUP($B30,'Modified Costs (R) '!ProjectCostMatrix,47,0)+VLOOKUP($B30,'Modified Costs (R) '!ProjectCostMatrix,48,0) -> 728697.6 | K30: =SUM(H30:J30)*'Modified Costs (R) '!$C$228 -> 72869.76 | L30: =(H30+I30+G30*J30)*(1+'Modified Costs (R) '!$C$228) -> 721410.624 | M30: =((1-G30)*J30)*(1+'Modified Costs (R) '!$C$228) -> 80156.736 | N30: 801567.36 | O30: =VLOOKUP($B30,'Modified Costs (R) '!ProjectCostMatrix,35,0) -> 0 | P30: =VLOOKUP($B30,'Modified Costs (R) '!ProjectCostMatrix,21,0) -> 0 | Q30: =VLOOKUP($B30,'Modified Costs (R) '!ProjectCostMatrix,42,0) -> XXXXXX | R30: =SUM(O30:Q30)*'Modified Costs (R) '!$C$228 -> 0 | S30: =(O30+P30+G30*Q30)*(1+'Modified Costs (R) '!$C$228) ->  | T30: =((1-G30)*Q30)*(1+'Modified Costs (R) '!$C$228) ->  | V30: 1 | W30: Tied to AMI? (NO) If so, need to move out. Tied to Web platform? If so, need to move out at least to end Q1 2018. | Z30: Confirmed this is TSI Phase II
B31: S3-4 | C31: Full realization across Digital Core | D31: Refine Financial Assistance processes to utilize Digital Core capabilities and develop business and functional requirements for implementation by Digital Core team. Thereby provide consistent experience across all customer facing channels, as well as enabling CSR for customer propensity to pay, budgeting, arrangements and C&C | E31: 3Q17 | F31: 4Q18 | G31: =VLOOKUP(B31,'Modified Costs (R) '!ProjectCostMatrix,8,0) -> 0.9 | H31: =VLOOKUP($B31,'Modified Costs (R) '!ProjectCostMatrix,30,0) -> 0 | I31: =VLOOKUP($B31,'Modified Costs (R) '!ProjectCostMatrix,23,0) -> 61500 | J31: =VLOOKUP($B31,'Modified Costs (R) '!ProjectCostMatrix,47,0)+VLOOKUP($B31,'Modified Costs (R) '!ProjectCostMatrix,48,0) -> 101610.6667 | K31: =SUM(H31:J31)*'Modified Costs (R) '!$C$228 -> 16311.06667 | L31: =(H31+I31+G31*J31)*(1+'Modified Costs (R) '!$C$228) -> 168244.56 | M31: =((1-G31)*J31)*(1+'Modified Costs (R) '!$C$228) -> 11177.17333 | N31: 179421.7333 | O31: =VLOOKUP($B31,'Modified Costs (R) '!ProjectCostMatrix,35,0) -> 0 | P31: =VLOOKUP($B31,'Modified Costs (R) '!ProjectCostMatrix,21,0) -> 61500 | Q31: =VLOOKUP($B31,'Modified Costs (R) '!ProjectCostMatrix,42,0) -> XXXXXX | R31: =SUM(O31:Q31)*'Modified Costs (R) '!$C$228 -> 6150 | S31: =(O31+P31+G31*Q31)*(1+'Modified Costs (R) '!$C$228) ->  | T31: =((1-G31)*Q31)*(1+'Modified Costs (R) '!$C$228) ->  | V31: 0 | W31: Placeholder bucket
B32: S3-5 | C32: Energy Assistance (Low Income) | D32: Improve Customer Access to Low Income Funds (LIHEAP, PSE HELP and WARM funds) along with timely Application of Customer Pledge Credits to Active Accounts. This real-time integration with the agencies enables on-line customer scheduling, application and status checking. There is also a data component to identify candidate customers who may qualify for bill payment assistance, performance of the agencies and relationship between low income customers and delinquency. | E32: 4Q16 | F32: 4Q17 | G32: =VLOOKUP(B32,'Modified Costs (R) '!ProjectCostMatrix,8,0) -> 0.9 | H32: =VLOOKUP($B32,'Modified Costs (R) '!ProjectCostMatrix,30,0) -> 0 | I32: =VLOOKUP($B32,'Modified Costs (R) '!ProjectCostMatrix,23,0) -> 0 | J32: =VLOOKUP($B32,'Modified Costs (R) '!ProjectCostMatrix,47,0)+VLOOKUP($B32,'Modified Costs (R) '!ProjectCostMatrix,48,0) -> 1149440 | K32: =SUM(H32:J32)*'Modified Costs (R) '!$C$228 -> 114944 | L32: =(H32+I32+G32*J32)*(1+'Modified Costs (R) '!$C$228) -> 1137945.6 | M32: =((1-G32)*J32)*(1+'Modified Costs (R) '!$C$228) -> 126438.4 | N32: 1264384 | O32: =VLOOKUP($B32,'Modified Costs (R) '!ProjectCostMatrix,35,0) -> 0 | P32: =VLOOKUP($B32,'Modified Costs (R) '!ProjectCostMatrix,21,0) -> 0 | Q32: =VLOOKUP($B32,'Modified Costs (R) '!ProjectCostMatrix,42,0) -> XXXXXX | R32: =SUM(O32:Q32)*'Modified Costs (R) '!$C$228 -> 0 | S32: =(O32+P32+G32*Q32)*(1+'Modified Costs (R) '!$C$228) ->  | T32: =((1-G32)*Q32)*(1+'Modified Costs (R) '!$C$228) ->  | V32: 1 | W32: Tied to web platform and ESB. Need to understand integrations required to develop tech direction, which will determine timeline. Need to understand what Partner networks can support and when. (Still TBD, not clearly tied to the web plateform. Currently in initation to determine what this will include) | Z32: Need to shift out - feels like this won't start until mid 2017 given lack of clarity. Joe mentioned that there is some training for the agencies that would be O&M. Joe was unsure of technical approach needed. Concern that this is too early in the roadmap to do in 2017 given the lack of clarify around this. At a min, end would be Q1 2018
B33: S3-6 | C33: Full realization of leveraging low energy assistance programs across Digital Core | D33: Refine Energy Assistance Programs to utilize Digital Core capabilities and develop business and functional requirements for implementation by Digital Core team. Thereby provide consistent experience across all customer facing channels, as well as enabling CSR for customer propensity to pay, budgeting, arrangements and C&C | E33: 3Q17 | F33: 4Q18 | G33: =VLOOKUP(B33,'Modified Costs (R) '!ProjectCostMatrix,8,0) -> 0.9 | H33: =VLOOKUP($B33,'Modified Costs (R) '!ProjectCostMatrix,30,0) -> 0 | I33: =VLOOKUP($B33,'Modified Costs (R) '!ProjectCostMatrix,23,0) -> 61500 | J33: =VLOOKUP($B33,'Modified Costs (R) '!ProjectCostMatrix,47,0)+VLOOKUP($B33,'Modified Costs (R) '!ProjectCostMatrix,48,0) -> 101610.6667 | K33: =SUM(H33:J33)*'Modified Costs (R) '!$C$228 -> 16311.06667 | L33: =(H33+I33+G33*J33)*(1+'Modified Costs (R) '!$C$228) -> 168244.56 | M33: =((1-G33)*J33)*(1+'Modified Costs (R) '!$C$228) -> 11177.17333 | N33: 179421.7333 | O33: =VLOOKUP($B33,'Modified Costs (R) '!ProjectCostMatrix,35,0) -> 0 | P33: =VLOOKUP($B33,'Modified Costs (R) '!ProjectCostMatrix,21,0) -> 61500 | Q33: =VLOOKUP($B33,'Modified Costs (R) '!ProjectCostMatrix,42,0) -> XXXXXX | R33: =SUM(O33:Q33)*'Modified Costs (R) '!$C$228 -> 6150 | S33: =(O33+P33+G33*Q33)*(1+'Modified Costs (R) '!$C$228) ->  | T33: =((1-G33)*Q33)*(1+'Modified Costs (R) '!$C$228) ->  | V33: 0 | W33: Placeholder bucket
B34: 4) Unexpected Service Interruption
B35: S4-1 | C35: Manage Outage Orders | D35: =VLOOKUP(B35,ProjectMatrix,3,0) -> Outage orders captured from initiation to resolution presented to the customer across all channels. This would be the process of designing the UX for outage management (planned and unplanned) for all channels. It would include the user flow for submission of outages as well as what notifications customers ideally want, what kind of updates and how often, etc. this would be part of the Customer Experience Design project. This should occur before providing interim solutions that could fall short of customer expectations and erode trust. A process and tools to create and execute proactive outage notifications to customers across all applicable channels. The channel and type of outage notification will be maintained through "Manage Outage Preferences" (Preference Center DCI-7). Physical comm to customers will be via Comm Gateway service (DCI-8) | E35: =VLOOKUP(B35,ProjectMatrix,13,0) -> 2Q17 | F35: =VLOOKUP(B35,ProjectMatrix,14,0) -> 1Q18 | G35: =VLOOKUP(B35,'Modified Costs (R) '!ProjectCostMatrix,8,0) -> 0.9 | H35: =VLOOKUP($B35,'Modified Costs (R) '!ProjectCostMatrix,30,0) -> 0 | I35: =VLOOKUP($B35,'Modified Costs (R) '!ProjectCostMatrix,23,0) -> 246000 | J35: =VLOOKUP($B35,'Modified Costs (R) '!ProjectCostMatrix,47,0)+VLOOKUP($B35,'Modified Costs (R) '!ProjectCostMatrix,48,0) -> 759060 | K35: =SUM(H35:J35)*'Modified Costs (R) '!$C$228 -> 100506 | L35: =(H35+I35+G35*J35)*(1+'Modified Costs (R) '!$C$228) -> 1022069.4 | M35: =((1-G35)*J35)*(1+'Modified Costs (R) '!$C$228) -> 83496.6 | N35: =SUM(L35:M35) -> 1105566 | O35: =VLOOKUP($B35,'Modified Costs (R) '!ProjectCostMatrix,35,0) -> 0 | P35: =VLOOKUP($B35,'Modified Costs (R) '!ProjectCostMatrix,21,0) -> 246000 | Q35: =VLOOKUP($B35,'Modified Costs (R) '!ProjectCostMatrix,42,0) -> XXXXXX | R35: =SUM(O35:Q35)*'Modified Costs (R) '!$C$228 -> 24600 | S35: =(O35+P35+G35*Q35)*(1+'Modified Costs (R) '!$C$228) ->  | T35: =((1-G35)*Q35)*(1+'Modified Costs (R) '!$C$228) ->  | U35: =SUM(S35:T35) ->  | V35: =IFERROR(IF(VLOOKUP(F35,QuarterTable,5,0)=2017,1,0),"") -> 0 | W35: Tied to web replatform. OMS interface currently isn't robust enough - need to consider work to re-do this. Was that included? Thought is this is part of S4-4. OMS rearchitecture is pre-cursor of this work - may need to add new project to support this if S4-4 isn't doing this. May be able to mitigate all concerns with packaged purchase - but still would have OMS interface work. (right archt but not the business processes) | Z35: Completion needs to shift to at least Q1 2018 due to web tie. Need to follow up on OMS architecture work to make sure we've considered this STRONG CONCERN that too many items are tied to replatform launch. We need to launch the replatform before the rest go live - not do all at same time. Too easy to collide
B36: S4-2 | C36: SAP Mutli Channel Foundation for Utilities (MCF) | D36: Develop new description with Joe | E36: 3Q16 | F36: 4Q16 | G36: =VLOOKUP(B36,'Modified Costs (R) '!ProjectCostMatrix,8,0) -> 0.9 | H36: =VLOOKUP($B36,'Modified Costs (R) '!ProjectCostMatrix,30,0) -> 0 | I36: =VLOOKUP($B36,'Modified Costs (R) '!ProjectCostMatrix,23,0) -> 0 | J36: =VLOOKUP($B36,'Modified Costs (R) '!ProjectCostMatrix,47,0)+VLOOKUP($B36,'Modified Costs (R) '!ProjectCostMatrix,48,0) -> 0 | K36: =SUM(H36:J36)*'Modified Costs (R) '!$C$228 -> 0 | L36: =(H36+I36+G36*J36)*(1+'Modified Costs (R) '!$C$228) -> 0 | M36: =((1-G36)*J36)*(1+'Modified Costs (R) '!$C$228) -> 0 | N36: 0 | O36: =VLOOKUP($B36,'Modified Costs (R) '!ProjectCostMatrix,35,0) -> 0 | P36: =VLOOKUP($B36,'Modified Costs (R) '!ProjectCostMatrix,21,0) -> 246000 | Q36: =VLOOKUP($B36,'Modified Costs (R) '!ProjectCostMatrix,42,0) -> XXXXXX | R36: =SUM(O36:Q36)*'Modified Costs (R) '!$C$228 -> 24600 | S36: =(O36+P36+G36*Q36)*(1+'Modified Costs (R) '!$C$228) ->  | T36: =((1-G36)*Q36)*(1+'Modified Costs (R) '!$C$228) ->  | V36: 0 | W36: Tied to comm gateway and customer preference center (2Q 2017 planned completion) | Z36: What was "tax" applied to cost to come up with HA/DR and other environment builds?
B37: S4-3 | C37: P15 - OMS-AMI (Outage Support) | D37: To interface AMI meter exception data (power on / power off messages) with the Electric Operations OMS to augment the outage prediction models in OMS. To proactively manage communication to AMI enabled customers regarding outage occurrences and restoration. | E37: 4Q19 | F37: 2020 | G37: =VLOOKUP(B37,'Modified Costs (R) '!ProjectCostMatrix,8,0) -> 0.9 | H37: =VLOOKUP($B37,'Modified Costs (R) '!ProjectCostMatrix,30,0) -> 0 | I37: =VLOOKUP($B37,'Modified Costs (R) '!ProjectCostMatrix,23,0) -> 0 | J37: =VLOOKUP($B37,'Modified Costs (R) '!ProjectCostMatrix,47,0)+VLOOKUP($B37,'Modified Costs (R) '!ProjectCostMatrix,48,0) -> 0 | K37: =SUM(H37:J37)*'Modified Costs (R) '!$C$228 -> 0 | L37: =(H37+I37+G37*J37)*(1+'Modified Costs (R) '!$C$228) -> 0 | M37: =((1-G37)*J37)*(1+'Modified Costs (R) '!$C$228) -> 0 | N37: 0 | O37: =VLOOKUP($B37,'Modified Costs (R) '!ProjectCostMatrix,35,0) -> 1200000 | P37: =VLOOKUP($B37,'Modified Costs (R) '!ProjectCostMatrix,21,0) -> 200000 | Q37: =VLOOKUP($B37,'Modified Costs (R) '!ProjectCostMatrix,42,0) -> XXXXXX | R37: =SUM(O37:Q37)*'Modified Costs (R) '!$C$228 -> 140000 | S37: =(O37+P37+G37*Q37)*(1+'Modified Costs (R) '!$C$228) ->  | T37: =((1-G37)*Q37)*(1+'Modified Costs (R) '!$C$228) ->  | V37: 0
B38: S4-4 | C38: P1 - AMR to OMS Integration | D38: Integration of residential electric meter "last gasp" indications though the AMR MDMS system with the Power On Outage Management system to provide indication of power outage to a meter and groupings of meters. | E38: 3Q16 | F38: 4Q16 | G38: =VLOOKUP(B38,'Modified Costs (R) '!ProjectCostMatrix,8,0) -> 1 | H38: =VLOOKUP($B38,'Modified Costs (R) '!ProjectCostMatrix,30,0) -> 0 | I38: =VLOOKUP($B38,'Modified Costs (R) '!ProjectCostMatrix,23,0) -> 0 | J38: =VLOOKUP($B38,'Modified Costs (R) '!ProjectCostMatrix,47,0)+VLOOKUP($B38,'Modified Costs (R) '!ProjectCostMatrix,48,0) -> 0 | K38: =SUM(H38:J38)*'Modified Costs (R) '!$C$228 -> 0 | L38: =(H38+I38+G38*J38)*(1+'Modified Costs (R) '!$C$228) -> 0 | M38: =((1-G38)*J38)*(1+'Modified Costs (R) '!$C$228) -> 0 | N38: 0 | O38: =VLOOKUP($B38,'Modified Costs (R) '!ProjectCostMatrix,35,0) -> 0 | P38: =VLOOKUP($B38,'Modified Costs (R) '!ProjectCostMatrix,21,0) -> 0 | Q38: =VLOOKUP($B38,'Modified Costs (R) '!ProjectCostMatrix,42,0) -> XXXXXX | R38: =SUM(O38:Q38)*'Modified Costs (R) '!$C$228 -> 0 | S38: =(O38+P38+G38*Q38)*(1+'Modified Costs (R) '!$C$228) ->  | T38: =((1-G38)*Q38)*(1+'Modified Costs (R) '!$C$228) ->  | V38: 0 | W38: Complete in 2016
B39: S4-5 | C39: Full realization of outage and restoration across Digital Core | D39: Refine Outage and Restoration Process to utilize Digital Core capabilities and develop business and functional requirements for implementation by Digital Core team. Thereby provide consistent experience across all customer facing channels, as well as enabling CSR for customer propensity to pay, budgeting, arrangements and C&C. | E39: 1Q17 | F39: 4Q18 | G39: =VLOOKUP(B39,'Modified Costs (R) '!ProjectCostMatrix,8,0) -> 0.9 | H39: =VLOOKUP($B39,'Modified Costs (R) '!ProjectCostMatrix,30,0) -> 0 | I39: =VLOOKUP($B39,'Modified Costs (R) '!ProjectCostMatrix,23,0) -> 246000 | J39: =VLOOKUP($B39,'Modified Costs (R) '!ProjectCostMatrix,47,0)+VLOOKUP($B39,'Modified Costs (R) '!ProjectCostMatrix,48,0) -> 169888 | K39: =SUM(H39:J39)*'Modified Costs (R) '!$C$228 -> 41588.8 | L39: =(H39+I39+G39*J39)*(1+'Modified Costs (R) '!$C$228) -> 438789.12 | M39: =((1-G39)*J39)*(1+'Modified Costs (R) '!$C$228) -> 18687.68 | N39: 457476.8 | O39: =VLOOKUP($B39,'Modified Costs (R) '!ProjectCostMatrix,35,0) -> 0 | P39: =VLOOKUP($B39,'Modified Costs (R) '!ProjectCostMatrix,21,0) -> 246000 | Q39: =VLOOKUP($B39,'Modified Costs (R) '!ProjectCostMatrix,42,0) -> XXXXXX | R39: =SUM(O39:Q39)*'Modified Costs (R) '!$C$228 -> 24600 | S39: =(O39+P39+G39*Q39)*(1+'Modified Costs (R) '!$C$228) ->  | T39: =((1-G39)*Q39)*(1+'Modified Costs (R) '!$C$228) ->  | V39: 0 | W39: Placeholder bucket
B40: S4-6 | C40: Full realization of street light across Digital Core | D40: Refine Street Light processes to utilize Digital Core capabilities and develop business and functional requirements for implementation by Digital Core team. Thereby provide consistent experience across all customer facing channels, as well as enabling CSR. 1. Automate Street Light Request 2. Street Light Online Reporting Sys. 3. GIS Updates 4. Street Light Outage Map | E40: 2020 | F40: 2020 | G40: =VLOOKUP(B40,'Modified Costs (R) '!ProjectCostMatrix,8,0) -> 0.9 | H40: =VLOOKUP($B40,'Modified Costs (R) '!ProjectCostMatrix,30,0) -> 0 | I40: =VLOOKUP($B40,'Modified Costs (R) '!ProjectCostMatrix,23,0) -> 0 | J40: =VLOOKUP($B40,'Modified Costs (R) '!ProjectCostMatrix,47,0)+VLOOKUP($B40,'Modified Costs (R) '!ProjectCostMatrix,48,0) -> 0 | K40: =SUM(H40:J40)*'Modified Costs (R) '!$C$228 -> 0 | L40: =(H40+I40+G40*J40)*(1+'Modified Costs (R) '!$C$228) -> 0 | M40: =((1-G40)*J40)*(1+'Modified Costs (R) '!$C$228) -> 0 | N40: 0 | O40: =VLOOKUP($B40,'Modified Costs (R) '!ProjectCostMatrix,35,0) -> 0 | P40: =VLOOKUP($B40,'Modified Costs (R) '!ProjectCostMatrix,21,0) -> 369000 | Q40: =VLOOKUP($B40,'Modified Costs (R) '!ProjectCostMatrix,42,0) -> XXXXXX | R40: =SUM(O40:Q40)*'Modified Costs (R) '!$C$228 -> 36900 | S40: =(O40+P40+G40*Q40)*(1+'Modified Costs (R) '!$C$228) ->  | T40: =((1-G40)*Q40)*(1+'Modified Costs (R) '!$C$228) ->  | V40: 0 | W40: Placeholder bucket
B41: 5) Planned Service Event
B42: S5-1 | C42: Self Service for customer, ability to add additional authorized user | D42: =VLOOKUP(B42,ProjectMatrix,3,0) -> A self service process that allows the customer to add an authorized user to their account. | E42: =VLOOKUP(B42,ProjectMatrix,13,0) -> 4Q17 | F42: =VLOOKUP(B42,ProjectMatrix,14,0) -> 1Q18 | G42: =VLOOKUP(B42,'Modified Costs (R) '!ProjectCostMatrix,8,0) -> 0.9 | H42: =VLOOKUP($B42,'Modified Costs (R) '!ProjectCostMatrix,30,0) -> 0 | I42: =VLOOKUP($B42,'Modified Costs (R) '!ProjectCostMatrix,23,0) -> 0 | J42: =VLOOKUP($B42,'Modified Costs (R) '!ProjectCostMatrix,47,0)+VLOOKUP($B42,'Modified Costs (R) '!ProjectCostMatrix,48,0) -> 146840 | K42: =SUM(H42:J42)*'Modified Costs (R) '!$C$228 -> 14684 | L42: =(H42+I42+G42*J42)*(1+'Modified Costs (R) '!$C$228) -> 145371.6 | M42: =((1-G42)*J42)*(1+'Modified Costs (R) '!$C$228) -> 16152.4 | N42: =SUM(L42:M42) -> 161524 | O42: =VLOOKUP($B42,'Modified Costs (R) '!ProjectCostMatrix,35,0) -> 0 | P42: =VLOOKUP($B42,'Modified Costs (R) '!ProjectCostMatrix,21,0) -> 0 | Q42: =VLOOKUP($B42,'Modified Costs (R) '!ProjectCostMatrix,42,0) -> XXXXXX | R42: =SUM(O42:Q42)*'Modified Costs (R) '!$C$228 -> 0 | S42: =(O42+P42+G42*Q42)*(1+'Modified Costs (R) '!$C$228) ->  | T42: =((1-G42)*Q42)*(1+'Modified Costs (R) '!$C$228) ->  | U42: =SUM(S42:T42) ->  | V42: 0 | W42: Tied to web replatform, has backend SAP, MCF implementation. IVR must be able to support as well. (should be tied to web) | Z42: Need to move out to at least q1 2018 completion - may be longer depending on conversation related to what can go with new web replatform.. Or can we do now and the migrate to new web platform as part of that project
B43: S5-3 | C43: Manage Account(s) and Profile | D43: A self service process for a new customer to create, manage and setup an account online - the integration aspect with SAP data must also be considered | E43: 1Q17 | F43: 1Q18 | G43: =VLOOKUP(B43,'Modified Costs (R) '!ProjectCostMatrix,8,0) -> 0.9 | H43: =VLOOKUP($B43,'Modified Costs (R) '!ProjectCostMatrix,30,0) -> 0 | I43: =VLOOKUP($B43,'Modified Costs (R) '!ProjectCostMatrix,23,0) -> 0 | J43: =VLOOKUP($B43,'Modified Costs (R) '!ProjectCostMatrix,47,0)+VLOOKUP($B43,'Modified Costs (R) '!ProjectCostMatrix,48,0) -> 287360 | K43: =SUM(H43:J43)*'Modified Costs (R) '!$C$228 -> 28736 | L43: =(H43+I43+G43*J43)*(1+'Modified Costs (R) '!$C$228) -> 284486.4 | M43: =((1-G43)*J43)*(1+'Modified Costs (R) '!$C$228) -> 31609.6 | N43: 316096 | O43: =VLOOKUP($B43,'Modified Costs (R) '!ProjectCostMatrix,35,0) -> 0 | P43: =VLOOKUP($B43,'Modified Costs (R) '!ProjectCostMatrix,21,0) -> 0 | Q43: =VLOOKUP($B43,'Modified Costs (R) '!ProjectCostMatrix,42,0) -> XXXXXX | R43: =SUM(O43:Q43)*'Modified Costs (R) '!$C$228 -> 0 | S43: =(O43+P43+G43*Q43)*(1+'Modified Costs (R) '!$C$228) ->  | T43: =((1-G43)*Q43)*(1+'Modified Costs (R) '!$C$228) ->  | V43: 0 | W43: Tied to web replatform so timing shift required (should be tied to web)
B44: S5-4 | C44: Stop, Start, and Transfer for property managers and business customer | D44: The Start Stop Transfer project delivered a new self service web experience focused on residential customers. Commercial accounts and landlords have complexities that could not be addressed in the original project but would mitigate additional call volume. | E44: 3Q17 | F44: 1Q18 | G44: =VLOOKUP(B44,'Modified Costs (R) '!ProjectCostMatrix,8,0) -> 0.9 | H44: =VLOOKUP($B44,'Modified Costs (R) '!ProjectCostMatrix,30,0) -> 0 | I44: =VLOOKUP($B44,'Modified Costs (R) '!ProjectCostMatrix,23,0) -> 0 | J44: =VLOOKUP($B44,'Modified Costs (R) '!ProjectCostMatrix,47,0)+VLOOKUP($B44,'Modified Costs (R) '!ProjectCostMatrix,48,0) -> 210346.6667 | K44: =SUM(H44:J44)*'Modified Costs (R) '!$C$228 -> 21034.66667 | L44: =(H44+I44+G44*J44)*(1+'Modified Costs (R) '!$C$228) -> 208243.2 | M44: =((1-G44)*J44)*(1+'Modified Costs (R) '!$C$228) -> 23138.13333 | N44: 231381.3333 | O44: =VLOOKUP($B44,'Modified Costs (R) '!ProjectCostMatrix,35,0) -> 0 | P44: =VLOOKUP($B44,'Modified Costs (R) '!ProjectCostMatrix,21,0) -> 0 | Q44: =VLOOKUP($B44,'Modified Costs (R) '!ProjectCostMatrix,42,0) -> XXXXXX | R44: =SUM(O44:Q44)*'Modified Costs (R) '!$C$228 -> 0 | S44: =(O44+P44+G44*Q44)*(1+'Modified Costs (R) '!$C$228) ->  | T44: =((1-G44)*Q44)*(1+'Modified Costs (R) '!$C$228) ->  | V44: 0 | W44: Why tied to web replatform? If so, timing is not correct Q1 2018
B45: S5-6 | C45: Full realization SST across Digital Core | D45: Refine Start, Stop and Transfer processes to utilize Digital Core capabilities and develop business and functional requirements for implementation by Digital Core team. Thereby provide consistent experience across all customer facing channels, as well as enabling CSR for Start, Stop and Transfer. | E45: 1Q17 | F45: 4Q18 | G45: =VLOOKUP(B45,'Modified Costs (R) '!ProjectCostMatrix,8,0) -> 0.9 | H45: =VLOOKUP($B45,'Modified Costs (R) '!ProjectCostMatrix,30,0) -> 0 | I45: =VLOOKUP($B45,'Modified Costs (R) '!ProjectCostMatrix,23,0) -> 123000 | J45: =VLOOKUP($B45,'Modified Costs (R) '!ProjectCostMatrix,47,0)+VLOOKUP($B45,'Modified Costs (R) '!ProjectCostMatrix,48,0) -> 169888 | K45: =SUM(H45:J45)*'Modified Costs (R) '!$C$228 -> 29288.8 | L45: =(H45+I45+G45*J45)*(1+'Modified Costs (R) '!$C$228) -> 303489.12 | M45: =((1-G45)*J45)*(1+'Modified Costs (R) '!$C$228) -> 18687.68 | N45: 322176.8 | O45: =VLOOKUP($B45,'Modified Costs (R) '!ProjectCostMatrix,35,0) -> 0 | P45: =VLOOKUP($B45,'Modified Costs (R) '!ProjectCostMatrix,21,0) -> 123000 | Q45: =VLOOKUP($B45,'Modified Costs (R) '!ProjectCostMatrix,42,0) -> XXXXXX | R45: =SUM(O45:Q45)*'Modified Costs (R) '!$C$228 -> 12300 | S45: =(O45+P45+G45*Q45)*(1+'Modified Costs (R) '!$C$228) ->  | T45: =((1-G45)*Q45)*(1+'Modified Costs (R) '!$C$228) ->  | V45: 0 | W45: Placeholder bucket
B46: S5-7 | C46: Create/Change Service Orders | D46: A self service process for customers to create (schedule) and change service order requests through pse.com. Will include access to multiple types of services including appliance service, re-lights, etc. This is the web front end work for project DCIII-9 (P8). | E46: 3Q17 | F46: 1Q18 | G46: =VLOOKUP(B46,'Modified Costs (R) '!ProjectCostMatrix,8,0) -> 0.9 | H46: =VLOOKUP($B46,'Modified Costs (R) '!ProjectCostMatrix,30,0) -> 0 | I46: =VLOOKUP($B46,'Modified Costs (R) '!ProjectCostMatrix,23,0) -> 0 | J46: =VLOOKUP($B46,'Modified Costs (R) '!ProjectCostMatrix,47,0)+VLOOKUP($B46,'Modified Costs (R) '!ProjectCostMatrix,48,0) -> 631040 | K46: =SUM(H46:J46)*'Modified Costs (R) '!$C$228 -> 63104 | L46: =(H46+I46+G46*J46)*(1+'Modified Costs (R) '!$C$228) -> 624729.6 | M46: =((1-G46)*J46)*(1+'Modified Costs (R) '!$C$228) -> 69414.4 | N46: 694144 | O46: =VLOOKUP($B46,'Modified Costs (R) '!ProjectCostMatrix,35,0) -> 0 | P46: =VLOOKUP($B46,'Modified Costs (R) '!ProjectCostMatrix,21,0) -> 0 | Q46: =VLOOKUP($B46,'Modified Costs (R) '!ProjectCostMatrix,42,0) -> XXXXXX | R46: =SUM(O46:Q46)*'Modified Costs (R) '!$C$228 -> 0 | S46: =(O46+P46+G46*Q46)*(1+'Modified Costs (R) '!$C$228) ->  | T46: =((1-G46)*Q46)*(1+'Modified Costs (R) '!$C$228) ->  | V46: 0 | W46: Need to have F-F relationship with DCIII-9 (P8) | Z46: How is this different from S5-9?
B47: S5-8 | C47: Remote Disconnect/Reconnect (Elec. only) for service/construction | D47: PSE will utilize AMI technology to allow for self service remote disconnect/reconnect for electric customers for service/construction - across all digital channels. | E47: 1Q19 | F47: 4Q19 | G47: =VLOOKUP(B47,'Modified Costs (R) '!ProjectCostMatrix,8,0) -> 0.9 | H47: =VLOOKUP($B47,'Modified Costs (R) '!ProjectCostMatrix,30,0) -> 0 | I47: =VLOOKUP($B47,'Modified Costs (R) '!ProjectCostMatrix,23,0) -> 0 | J47: =VLOOKUP($B47,'Modified Costs (R) '!ProjectCostMatrix,47,0)+VLOOKUP($B47,'Modified Costs (R) '!ProjectCostMatrix,48,0) -> 0 | K47: =SUM(H47:J47)*'Modified Costs (R) '!$C$228 -> 0 | L47: =(H47+I47+G47*J47)*(1+'Modified Costs (R) '!$C$228) -> 0 | M47: =((1-G47)*J47)*(1+'Modified Costs (R) '!$C$228) -> 0 | N47: 0 | O47: =VLOOKUP($B47,'Modified Costs (R) '!ProjectCostMatrix,35,0) -> 0 | P47: =VLOOKUP($B47,'Modified Costs (R) '!ProjectCostMatrix,21,0) -> 0 | Q47: =VLOOKUP($B47,'Modified Costs (R) '!ProjectCostMatrix,42,0) -> XXXXXX | R47: =SUM(O47:Q47)*'Modified Costs (R) '!$C$228 -> 0 | S47: =(O47+P47+G47*Q47)*(1+'Modified Costs (R) '!$C$228) ->  | T47: =((1-G47)*Q47)*(1+'Modified Costs (R) '!$C$228) ->  | V47: 0
B48: S5-9 | C48: Customer self-service scheduling process | D48: Implementing the PSE process to support customer self service and the ability for customers to schedule their service with PSE online with updates on their request status. | E48: 2Q18 | F48: 4Q18 | G48: =VLOOKUP(B48,'Modified Costs (R) '!ProjectCostMatrix,8,0) -> 0.9 | H48: =VLOOKUP($B48,'Modified Costs (R) '!ProjectCostMatrix,30,0) -> 0 | I48: =VLOOKUP($B48,'Modified Costs (R) '!ProjectCostMatrix,23,0) -> 0 | J48: =VLOOKUP($B48,'Modified Costs (R) '!ProjectCostMatrix,47,0)+VLOOKUP($B48,'Modified Costs (R) '!ProjectCostMatrix,48,0) -> 0 | K48: =SUM(H48:J48)*'Modified Costs (R) '!$C$228 -> 0 | L48: =(H48+I48+G48*J48)*(1+'Modified Costs (R) '!$C$228) -> 0 | M48: =((1-G48)*J48)*(1+'Modified Costs (R) '!$C$228) -> 0 | N48: 0 | O48: =VLOOKUP($B48,'Modified Costs (R) '!ProjectCostMatrix,35,0) -> 0 | P48: =VLOOKUP($B48,'Modified Costs (R) '!ProjectCostMatrix,21,0) -> 0 | Q48: =VLOOKUP($B48,'Modified Costs (R) '!ProjectCostMatrix,42,0) -> XXXXXX | R48: =SUM(O48:Q48)*'Modified Costs (R) '!$C$228 -> 0 | S48: =(O48+P48+G48*Q48)*(1+'Modified Costs (R) '!$C$228) ->  | T48: =((1-G48)*Q48)*(1+'Modified Costs (R) '!$C$228) ->  | V48: 0 | W48: Should this be before S5-7? Need to re-do description to show differentiation
B49: S5-10 | C49: Full realization make and manage service orders across Digital Core | D49: Refine Make and Manage Service Order processes to utilize Digital Core capabilities and develop business and functional requirements for implementation by Digital Core team. Thereby provide consistent experience across all customer facing channels, as well as enabling CSR for Make and Manage Service Order. | E49: 1Q17 | F49: 4Q18 | G49: =VLOOKUP(B49,'Modified Costs (R) '!ProjectCostMatrix,8,0) -> 0.9 | H49: =VLOOKUP($B49,'Modified Costs (R) '!ProjectCostMatrix,30,0) -> 0 | I49: =VLOOKUP($B49,'Modified Costs (R) '!ProjectCostMatrix,23,0) -> 61500 | J49: =VLOOKUP($B49,'Modified Costs (R) '!ProjectCostMatrix,47,0)+VLOOKUP($B49,'Modified Costs (R) '!ProjectCostMatrix,48,0) -> 169888 | K49: =SUM(H49:J49)*'Modified Costs (R) '!$C$228 -> 23138.8 | L49: =(H49+I49+G49*J49)*(1+'Modified Costs (R) '!$C$228) -> 235839.12 | M49: =((1-G49)*J49)*(1+'Modified Costs (R) '!$C$228) -> 18687.68 | N49: 254526.8 | O49: =VLOOKUP($B49,'Modified Costs (R) '!ProjectCostMatrix,35,0) -> 0 | P49: =VLOOKUP($B49,'Modified Costs (R) '!ProjectCostMatrix,21,0) -> 61500 | Q49: =VLOOKUP($B49,'Modified Costs (R) '!ProjectCostMatrix,42,0) -> XXXXXX | R49: =SUM(O49:Q49)*'Modified Costs (R) '!$C$228 -> 6150 | S49: =(O49+P49+G49*Q49)*(1+'Modified Costs (R) '!$C$228) ->  | T49: =((1-G49)*Q49)*(1+'Modified Costs (R) '!$C$228) ->  | V49: 0
B50: S5-11 | C50: Remote Disconnect/Reconnect for Payment (Elec. only) | D50: PSE will utilize AMI technology to allow for remote disconnect/reconnect for delinquent electric customers. This will eliminate 205,000 truck rolls to either disconnect and/or collect overdue bills in the field. There are another 55,000 truck rolls eliminated for re-connect in the field. | E50: 3Q18 | F50: 2Q19 | G50: =VLOOKUP(B50,'Modified Costs (R) '!ProjectCostMatrix,8,0) -> 0.9 | H50: =VLOOKUP($B50,'Modified Costs (R) '!ProjectCostMatrix,30,0) -> 0 | I50: =VLOOKUP($B50,'Modified Costs (R) '!ProjectCostMatrix,23,0) -> 0 | J50: =VLOOKUP($B50,'Modified Costs (R) '!ProjectCostMatrix,47,0)+VLOOKUP($B50,'Modified Costs (R) '!ProjectCostMatrix,48,0) -> 0 | K50: =SUM(H50:J50)*'Modified Costs (R) '!$C$228 -> 0 | L50: =(H50+I50+G50*J50)*(1+'Modified Costs (R) '!$C$228) -> 0 | M50: =((1-G50)*J50)*(1+'Modified Costs (R) '!$C$228) -> 0 | N50: 0 | O50: =VLOOKUP($B50,'Modified Costs (R) '!ProjectCostMatrix,35,0) -> 0 | P50: =VLOOKUP($B50,'Modified Costs (R) '!ProjectCostMatrix,21,0) -> 61500 | Q50: =VLOOKUP($B50,'Modified Costs (R) '!ProjectCostMatrix,42,0) -> XXXXXX | R50: =SUM(O50:Q50)*'Modified Costs (R) '!$C$228 -> 6150 | S50: =(O50+P50+G50*Q50)*(1+'Modified Costs (R) '!$C$228) ->  | T50: =((1-G50)*Q50)*(1+'Modified Costs (R) '!$C$228) ->  | V50: 0
B51: S5-12 | C51: Full realization dis(re)connect across Digital Core | D51: Refine Disconnect and Reconnect processes to utilize Digital Core capabilities and develop business and functional requirements for implementation by Digital Core team. Thereby provide consistent experience across all customer facing channels, as well as enabling CSR for Make and Manage Service Order. | E51: 1Q17 | F51: 4Q18 | G51: =VLOOKUP(B51,'Modified Costs (R) '!ProjectCostMatrix,8,0) -> 0.9 | H51: =VLOOKUP($B51,'Modified Costs (R) '!ProjectCostMatrix,30,0) -> 0 | I51: =VLOOKUP($B51,'Modified Costs (R) '!ProjectCostMatrix,23,0) -> 0 | J51: =VLOOKUP($B51,'Modified Costs (R) '!ProjectCostMatrix,47,0)+VLOOKUP($B51,'Modified Costs (R) '!ProjectCostMatrix,48,0) -> 169888 | K51: =SUM(H51:J51)*'Modified Costs (R) '!$C$228 -> 16988.8 | L51: =(H51+I51+G51*J51)*(1+'Modified Costs (R) '!$C$228) -> 168189.12 | M51: =((1-G51)*J51)*(1+'Modified Costs (R) '!$C$228) -> 18687.68 | N51: 186876.8 | O51: =VLOOKUP($B51,'Modified Costs (R) '!ProjectCostMatrix,35,0) -> 0 | P51: =VLOOKUP($B51,'Modified Costs (R) '!ProjectCostMatrix,21,0) -> 0 | Q51: =VLOOKUP($B51,'Modified Costs (R) '!ProjectCostMatrix,42,0) -> XXXXXX | R51: =SUM(O51:Q51)*'Modified Costs (R) '!$C$228 -> 0 | S51: =(O51+P51+G51*Q51)*(1+'Modified Costs (R) '!$C$228) ->  | T51: =((1-G51)*Q51)*(1+'Modified Costs (R) '!$C$228) ->  | V51: 0
B52: S5-13 | C52: Manage Services & Products e.g. Leasing | D52: A PSE customer can utilize self service options for information pertaining to all of their services with PSE in one place. | E52: 1Q19 | F52: 2Q19 | G52: =VLOOKUP(B52,'Modified Costs (R) '!ProjectCostMatrix,8,0) -> 0.9 | H52: =VLOOKUP($B52,'Modified Costs (R) '!ProjectCostMatrix,30,0) -> 0 | I52: =VLOOKUP($B52,'Modified Costs (R) '!ProjectCostMatrix,23,0) -> 0 | J52: =VLOOKUP($B52,'Modified Costs (R) '!ProjectCostMatrix,47,0)+VLOOKUP($B52,'Modified Costs (R) '!ProjectCostMatrix,48,0) -> 0 | K52: =SUM(H52:J52)*'Modified Costs (R) '!$C$228 -> 0 | L52: =(H52+I52+G52*J52)*(1+'Modified Costs (R) '!$C$228) -> 0 | M52: =((1-G52)*J52)*(1+'Modified Costs (R) '!$C$228) -> 0 | N52: 0 | O52: =VLOOKUP($B52,'Modified Costs (R) '!ProjectCostMatrix,35,0) -> 0 | P52: =VLOOKUP($B52,'Modified Costs (R) '!ProjectCostMatrix,21,0) -> 0 | Q52: =VLOOKUP($B52,'Modified Costs (R) '!ProjectCostMatrix,42,0) -> XXXXXX | R52: =SUM(O52:Q52)*'Modified Costs (R) '!$C$228 -> 0 | S52: =(O52+P52+G52*Q52)*(1+'Modified Costs (R) '!$C$228) ->  | T52: =((1-G52)*Q52)*(1+'Modified Costs (R) '!$C$228) ->  | V52: 0
B53: S5-14 | C53: Manage Energy Efficiency programs | D53: A PSE customer can utilize self service options for information pertaining to all of their EE services with PSE in one place. | E53: 2Q16 | F53: 3Q16 | G53: =VLOOKUP(B53,'Modified Costs (R) '!ProjectCostMatrix,8,0) -> 0.9 | H53: =VLOOKUP($B53,'Modified Costs (R) '!ProjectCostMatrix,30,0) -> 0 | I53: =VLOOKUP($B53,'Modified Costs (R) '!ProjectCostMatrix,23,0) -> 0 | J53: =VLOOKUP($B53,'Modified Costs (R) '!ProjectCostMatrix,47,0)+VLOOKUP($B53,'Modified Costs (R) '!ProjectCostMatrix,48,0) -> 0 | K53: =SUM(H53:J53)*'Modified Costs (R) '!$C$228 -> 0 | L53: =(H53+I53+G53*J53)*(1+'Modified Costs (R) '!$C$228) -> 0 | M53: =((1-G53)*J53)*(1+'Modified Costs (R) '!$C$228) -> 0 | N53: 0 | O53: =VLOOKUP($B53,'Modified Costs (R) '!ProjectCostMatrix,35,0) -> 0 | P53: =VLOOKUP($B53,'Modified Costs (R) '!ProjectCostMatrix,21,0) -> 0 | Q53: =VLOOKUP($B53,'Modified Costs (R) '!ProjectCostMatrix,42,0) -> XXXXXX | R53: =SUM(O53:Q53)*'Modified Costs (R) '!$C$228 -> 0 | S53: =(O53+P53+G53*Q53)*(1+'Modified Costs (R) '!$C$228) ->  | T53: =((1-G53)*Q53)*(1+'Modified Costs (R) '!$C$228) ->  | V53: 0 | W53: What is this?
B54: S5-15 | C54: Intelligent migration of web content (learn about PSE and community) | D54: Migration of PSE.com static content to the new web platform in a more user-friendly format. | E54: 4Q17 | F54: 1Q18 | G54: =VLOOKUP(B54,'Modified Costs (R) '!ProjectCostMatrix,8,0) -> 0.9 | H54: =VLOOKUP($B54,'Modified Costs (R) '!ProjectCostMatrix,30,0) -> 0 | I54: =VLOOKUP($B54,'Modified Costs (R) '!ProjectCostMatrix,23,0) -> 0 | J54: =VLOOKUP($B54,'Modified Costs (R) '!ProjectCostMatrix,47,0)+VLOOKUP($B54,'Modified Costs (R) '!ProjectCostMatrix,48,0) -> 146840 | K54: =SUM(H54:J54)*'Modified Costs (R) '!$C$228 -> 14684 | L54: =(H54+I54+G54*J54)*(1+'Modified Costs (R) '!$C$228) -> 145371.6 | M54: =((1-G54)*J54)*(1+'Modified Costs (R) '!$C$228) -> 16152.4 | N54: 161524 | O54: =VLOOKUP($B54,'Modified Costs (R) '!ProjectCostMatrix,35,0) -> 0 | P54: =VLOOKUP($B54,'Modified Costs (R) '!ProjectCostMatrix,21,0) -> 0 | Q54: =VLOOKUP($B54,'Modified Costs (R) '!ProjectCostMatrix,42,0) -> XXXXXX | R54: =SUM(O54:Q54)*'Modified Costs (R) '!$C$228 -> 0 | S54: =(O54+P54+G54*Q54)*(1+'Modified Costs (R) '!$C$228) ->  | T54: =((1-G54)*Q54)*(1+'Modified Costs (R) '!$C$228) ->  | V54: 0 | W54: Tied to web platform - need to shift timing to occur after | Z54: Why is this not included in web replatform project?
B55: S5-16 | C55: Veg. Management Online Reporting Sys. | D55: A Self service guided process for customers to submit vegetation management concerns. This will include the back-end process development as well as the technology interface between the veg. management group and the customer. | E55: 1Q19 | F55: 2Q19 | G55: =VLOOKUP(B55,'Modified Costs (R) '!ProjectCostMatrix,8,0) -> 0.9 | H55: =VLOOKUP($B55,'Modified Costs (R) '!ProjectCostMatrix,30,0) -> 0 | I55: =VLOOKUP($B55,'Modified Costs (R) '!ProjectCostMatrix,23,0) -> 0 | J55: =VLOOKUP($B55,'Modified Costs (R) '!ProjectCostMatrix,47,0)+VLOOKUP($B55,'Modified Costs (R) '!ProjectCostMatrix,48,0) -> 0 | K55: =SUM(H55:J55)*'Modified Costs (R) '!$C$228 -> 0 | L55: =(H55+I55+G55*J55)*(1+'Modified Costs (R) '!$C$228) -> 0 | M55: =((1-G55)*J55)*(1+'Modified Costs (R) '!$C$228) -> 0 | N55: 0 | O55: =VLOOKUP($B55,'Modified Costs (R) '!ProjectCostMatrix,35,0) -> 0 | P55: =VLOOKUP($B55,'Modified Costs (R) '!ProjectCostMatrix,21,0) -> 0 | Q55: =VLOOKUP($B55,'Modified Costs (R) '!ProjectCostMatrix,42,0) -> XXXXXX | R55: =SUM(O55:Q55)*'Modified Costs (R) '!$C$228 -> 0 | S55: =(O55+P55+G55*Q55)*(1+'Modified Costs (R) '!$C$228) ->  | T55: =((1-G55)*Q55)*(1+'Modified Costs (R) '!$C$228) ->  | V55: 0
B56: S5-17 | C56: Full realization of customer services across Digital Core | D56: Alignment with digital core's foundational capabilities. | E56: 1Q17 | F56: 4Q18 | G56: =VLOOKUP(B56,'Modified Costs (R) '!ProjectCostMatrix,8,0) -> 0.9 | H56: =VLOOKUP($B56,'Modified Costs (R) '!ProjectCostMatrix,30,0) -> 0 | I56: =VLOOKUP($B56,'Modified Costs (R) '!ProjectCostMatrix,23,0) -> 0 | J56: =VLOOKUP($B56,'Modified Costs (R) '!ProjectCostMatrix,47,0)+VLOOKUP($B56,'Modified Costs (R) '!ProjectCostMatrix,48,0) -> 169888 | K56: =SUM(H56:J56)*'Modified Costs (R) '!$C$228 -> 16988.8 | L56: =(H56+I56+G56*J56)*(1+'Modified Costs (R) '!$C$228) -> 168189.12 | M56: =((1-G56)*J56)*(1+'Modified Costs (R) '!$C$228) -> 18687.68 | N56: 186876.8 | O56: =VLOOKUP($B56,'Modified Costs (R) '!ProjectCostMatrix,35,0) -> 0 | P56: =VLOOKUP($B56,'Modified Costs (R) '!ProjectCostMatrix,21,0) -> 0 | Q56: =VLOOKUP($B56,'Modified Costs (R) '!ProjectCostMatrix,42,0) -> XXXXXX | R56: =SUM(O56:Q56)*'Modified Costs (R) '!$C$228 -> 0 | S56: =(O56+P56+G56*Q56)*(1+'Modified Costs (R) '!$C$228) ->  | T56: =((1-G56)*Q56)*(1+'Modified Costs (R) '!$C$228) ->  | V56: 0
B57: Digital Core
B58: I. Consistent Cross Channel Experience
B59: DCI-1 | C59: Web, Mobile App and Content Management (including responsive web mobile) | D59: =VLOOKUP(B59,ProjectMatrix,3,0) -> The project involves revamping PSE.com customer facing web and content management platform - includes basic design aspects, customer experience and other supported functionalities on web and mobile web. This enables customer to easily navigate to PSE information, Account Management and Usage. The mobile application platform will enable design and development of both native and hybrid customer facing as well as integrate with backend systems for services. Provides mobile native functions for billing, payment, usage, account maintenance and geolocation capability of field employees. (DCI-2 will inform the look and feel of the content, but it is standalone in regards to content that will be included. The feature content of the app will be determined in the initiation phase of the project). | E59: =VLOOKUP(B59,ProjectMatrix,13,0) -> 4Q16 | F59: =VLOOKUP(B59,ProjectMatrix,14,0) -> 3Q18 | G59: =VLOOKUP(B59,'Modified Costs (R) '!ProjectCostMatrix,8,0) -> 0.9 | H59: =VLOOKUP($B59,'Modified Costs (R) '!ProjectCostMatrix,30,0) -> 0 | I59: =VLOOKUP($B59,'Modified Costs (R) '!ProjectCostMatrix,23,0) -> 0 | J59: =VLOOKUP($B59,'Modified Costs (R) '!ProjectCostMatrix,47,0)+VLOOKUP($B59,'Modified Costs (R) '!ProjectCostMatrix,48,0) -> 6370800 | K59: =SUM(H59:J59)*'Modified Costs (R) '!$C$228 -> 637080 | L59: =(H59+I59+G59*J59)*(1+'Modified Costs (R) '!$C$228) -> 6307092 | M59: =((1-G59)*J59)*(1+'Modified Costs (R) '!$C$228) -> 700788 | N59: =SUM(L59:M59) -> 7007880 | O59: =VLOOKUP($B59,'Modified Costs (R) '!ProjectCostMatrix,35,0) -> 1200000 | P59: =VLOOKUP($B59,'Modified Costs (R) '!ProjectCostMatrix,21,0) -> 615000 | Q59: =VLOOKUP($B59,'Modified Costs (R) '!ProjectCostMatrix,42,0) -> XXXXXX | R59: =SUM(O59:Q59)*'Modified Costs (R) '!$C$228 -> 181500 | S59: =(O59+P59+G59*Q59)*(1+'Modified Costs (R) '!$C$228) ->  | T59: =((1-G59)*Q59)*(1+'Modified Costs (R) '!$C$228) ->  | U59: =SUM(S59:T59) ->  | V59: 0 | W59: 1Q 2018 is Go live with add 'l functionality thru 3Q 2018
B60: DCI-2 | C60: Customer Experience Design for all channels | D60: Provide a consistent design for customer interactions across Super 5 programs for all the channels, so that customer experience is seamless across all channels. The external consultant would initiate and run all required workshops to gather requirements. Guidelines, visual prototypes or prompts of each channel. | E60: 4Q16 | F60: 1Q17 | G60: =VLOOKUP(B60,'Modified Costs (R) '!ProjectCostMatrix,8,0) -> 0.9 | H60: =VLOOKUP($B60,'Modified Costs (R) '!ProjectCostMatrix,30,0) -> 0 | I60: =VLOOKUP($B60,'Modified Costs (R) '!ProjectCostMatrix,23,0) -> 0 | J60: =VLOOKUP($B60,'Modified Costs (R) '!ProjectCostMatrix,47,0)+VLOOKUP($B60,'Modified Costs (R) '!ProjectCostMatrix,48,0) -> 881040 | K60: =SUM(H60:J60)*'Modified Costs (R) '!$C$228 -> 88104 | L60: =(H60+I60+G60*J60)*(1+'Modified Costs (R) '!$C$228) -> 872229.6 | M60: =((1-G60)*J60)*(1+'Modified Costs (R) '!$C$228) -> 96914.4 | N60: 969144 | O60: =VLOOKUP($B60,'Modified Costs (R) '!ProjectCostMatrix,35,0) -> 0 | P60: =VLOOKUP($B60,'Modified Costs (R) '!ProjectCostMatrix,21,0) -> 0 | Q60: =VLOOKUP($B60,'Modified Costs (R) '!ProjectCostMatrix,42,0) -> XXXXXX | R60: =SUM(O60:Q60)*'Modified Costs (R) '!$C$228 -> 0 | S60: =(O60+P60+G60*Q60)*(1+'Modified Costs (R) '!$C$228) ->  | T60: =((1-G60)*Q60)*(1+'Modified Costs (R) '!$C$228) ->  | V60: 1 | W60: Why is this year long project? Shouldn't this be done Q1 2017? | Z60: Design work for all environments
B61: DCI-3 | C61: Campaign Management | D61: A PSE driven platform (i.e. PSE would initiate the information vs. Preference center (DCI-7)) that allows for centralization of all communication tools for segmentation based on customers parameters. The management of email and text messaging to individual and segmented customer(s) based on pre-defined business rules or predictive engine. This helps to consolidate and enhance customer communication, increase customer out-reach, provide details on usage and other account related information. | E61: 1Q18 | F61: 3Q18 | G61: =VLOOKUP(B61,'Modified Costs (R) '!ProjectCostMatrix,8,0) -> 0.9 | H61: =VLOOKUP($B61,'Modified Costs (R) '!ProjectCostMatrix,30,0) -> 0 | I61: =VLOOKUP($B61,'Modified Costs (R) '!ProjectCostMatrix,23,0) -> 0 | J61: =VLOOKUP($B61,'Modified Costs (R) '!ProjectCostMatrix,47,0)+VLOOKUP($B61,'Modified Costs (R) '!ProjectCostMatrix,48,0) -> 0 | K61: =SUM(H61:J61)*'Modified Costs (R) '!$C$228 -> 0 | L61: =(H61+I61+G61*J61)*(1+'Modified Costs (R) '!$C$228) -> 0 | M61: =((1-G61)*J61)*(1+'Modified Costs (R) '!$C$228) -> 0 | N61: 0 | O61: =VLOOKUP($B61,'Modified Costs (R) '!ProjectCostMatrix,35,0) -> 1800000 | P61: =VLOOKUP($B61,'Modified Costs (R) '!ProjectCostMatrix,21,0) -> 0 | Q61: =VLOOKUP($B61,'Modified Costs (R) '!ProjectCostMatrix,42,0) -> XXXXXX | R61: =SUM(O61:Q61)*'Modified Costs (R) '!$C$228 -> 180000 | S61: =(O61+P61+G61*Q61)*(1+'Modified Costs (R) '!$C$228) ->  | T61: =((1-G61)*Q61)*(1+'Modified Costs (R) '!$C$228) ->  | V61: 0
B62: DCI-6 | C62: Social Media Listening and Publishing | D62: Enable PSE to communicate with customers through social media channels and analyze customer responses. This will enable PSE to listen and analyze customer posts on social media platforms regarding PSE services(outages and other services related issues). | E62: 1Q18 | F62: 2Q18 | G62: =VLOOKUP(B62,'Modified Costs (R) '!ProjectCostMatrix,8,0) -> 0.9 | H62: =VLOOKUP($B62,'Modified Costs (R) '!ProjectCostMatrix,30,0) -> 0 | I62: =VLOOKUP($B62,'Modified Costs (R) '!ProjectCostMatrix,23,0) -> 0 | J62: =VLOOKUP($B62,'Modified Costs (R) '!ProjectCostMatrix,47,0)+VLOOKUP($B62,'Modified Costs (R) '!ProjectCostMatrix,48,0) -> 0 | K62: =SUM(H62:J62)*'Modified Costs (R) '!$C$228 -> 0 | L62: =(H62+I62+G62*J62)*(1+'Modified Costs (R) '!$C$228) -> 0 | M62: =((1-G62)*J62)*(1+'Modified Costs (R) '!$C$228) -> 0 | N62: 0 | O62: =VLOOKUP($B62,'Modified Costs (R) '!ProjectCostMatrix,35,0) -> 350000 | P62: =VLOOKUP($B62,'Modified Costs (R) '!ProjectCostMatrix,21,0) -> 0 | Q62: =VLOOKUP($B62,'Modified Costs (R) '!ProjectCostMatrix,42,0) -> XXXXXX | R62: =SUM(O62:Q62)*'Modified Costs (R) '!$C$228 -> 35000 | S62: =(O62+P62+G62*Q62)*(1+'Modified Costs (R) '!$C$228) ->  | T62: =((1-G62)*Q62)*(1+'Modified Costs (R) '!$C$228) ->  | V62: 0
B63: DCI-7 | C63: Preference Center | D63: A self service preference center will be offered to the PSE customer. This will enable the customer to sign up for and manage proactive communication on various topics (e.g. payment notification, billing notification, unusual usage, outage preferences, etc.) through various channels (i.e. email, text, phone). This utilizes the communication gateway (DCI-8). | E63: 1Q17 | F63: 2Q17 | G63: =VLOOKUP(B63,'Modified Costs (R) '!ProjectCostMatrix,8,0) -> 0.9 | H63: =VLOOKUP($B63,'Modified Costs (R) '!ProjectCostMatrix,30,0) -> 0 | I63: =VLOOKUP($B63,'Modified Costs (R) '!ProjectCostMatrix,23,0) -> 0 | J63: =VLOOKUP($B63,'Modified Costs (R) '!ProjectCostMatrix,47,0)+VLOOKUP($B63,'Modified Costs (R) '!ProjectCostMatrix,48,0) -> 1762080 | K63: =SUM(H63:J63)*'Modified Costs (R) '!$C$228 -> 176208 | L63: =(H63+I63+G63*J63)*(1+'Modified Costs (R) '!$C$228) -> 1744459.2 | M63: =((1-G63)*J63)*(1+'Modified Costs (R) '!$C$228) -> 193828.8 | N63: 1938288 | O63: =VLOOKUP($B63,'Modified Costs (R) '!ProjectCostMatrix,35,0) -> 0 | P63: =VLOOKUP($B63,'Modified Costs (R) '!ProjectCostMatrix,21,0) -> 0 | Q63: =VLOOKUP($B63,'Modified Costs (R) '!ProjectCostMatrix,42,0) -> XXXXXX | R63: =SUM(O63:Q63)*'Modified Costs (R) '!$C$228 -> 0 | S63: =(O63+P63+G63*Q63)*(1+'Modified Costs (R) '!$C$228) ->  | T63: =((1-G63)*Q63)*(1+'Modified Costs (R) '!$C$228) ->  | V63: 1 | W63: Requires MCF imp as pre-cursor. If we can complete in 2016, no issues, but timeline may need to change if we have to do MCF in 2017 | Z63: Why is this so costly? (Ryan said this was 1.5M for external services based on CenterPoint learning) The costs don't match the effort. Should be no HW or SW.Is this because MCF imp is tied here? One page shows timing to launch with web replatform in Q1 2018 which doesn't align with this timing
B64: DCI-8 | C64: Communication Gateway & Proactive Notifications | D64: The project will provide a technology platform that allows PSE to communicate consistently and proactively across all channels e.g. text, email, outbound calling, app notification. This will enable PSE to align all communications with the customer across different channels such as email, text and mobile notification. | E64: 4Q16 | F64: 2Q17 | G64: =VLOOKUP(B64,'Modified Costs (R) '!ProjectCostMatrix,8,0) -> 0.9 | H64: =VLOOKUP($B64,'Modified Costs (R) '!ProjectCostMatrix,30,0) -> 0 | I64: =VLOOKUP($B64,'Modified Costs (R) '!ProjectCostMatrix,23,0) -> 0 | J64: =VLOOKUP($B64,'Modified Costs (R) '!ProjectCostMatrix,47,0)+VLOOKUP($B64,'Modified Costs (R) '!ProjectCostMatrix,48,0) -> 1262080 | K64: =SUM(H64:J64)*'Modified Costs (R) '!$C$228 -> 126208 | L64: =(H64+I64+G64*J64)*(1+'Modified Costs (R) '!$C$228) -> 1249459.2 | M64: =((1-G64)*J64)*(1+'Modified Costs (R) '!$C$228) -> 138828.8 | N64: 1388288 | O64: =VLOOKUP($B64,'Modified Costs (R) '!ProjectCostMatrix,35,0) -> 200000 | P64: =VLOOKUP($B64,'Modified Costs (R) '!ProjectCostMatrix,21,0) -> 246000 | Q64: =VLOOKUP($B64,'Modified Costs (R) '!ProjectCostMatrix,42,0) -> XXXXXX | R64: =SUM(O64:Q64)*'Modified Costs (R) '!$C$228 -> 44600 | S64: =(O64+P64+G64*Q64)*(1+'Modified Costs (R) '!$C$228) ->  | T64: =((1-G64)*Q64)*(1+'Modified Costs (R) '!$C$228) ->  | V64: 1 | W64: Foundational
B65: DCI-10 | C65: Call me back (Automated Outbound Calling) | D65: The Call Me Back project will allow the customer to request a call back from IVR. Automated Outbound Calling software would automatically call back the customer. There will be funding utilized during initiation to determine the viability of these capability. | E65: 1Q17 | F65: 2Q17 | G65: =VLOOKUP(B65,'Modified Costs (R) '!ProjectCostMatrix,8,0) -> 0.9 | H65: =VLOOKUP($B65,'Modified Costs (R) '!ProjectCostMatrix,30,0) -> 0 | I65: =VLOOKUP($B65,'Modified Costs (R) '!ProjectCostMatrix,23,0) -> 0 | J65: =VLOOKUP($B65,'Modified Costs (R) '!ProjectCostMatrix,47,0)+VLOOKUP($B65,'Modified Costs (R) '!ProjectCostMatrix,48,0) -> 1174720 | K65: =SUM(H65:J65)*'Modified Costs (R) '!$C$228 -> 117472 | L65: =(H65+I65+G65*J65)*(1+'Modified Costs (R) '!$C$228) -> 1162972.8 | M65: =((1-G65)*J65)*(1+'Modified Costs (R) '!$C$228) -> 129219.2 | N65: 1292192 | O65: =VLOOKUP($B65,'Modified Costs (R) '!ProjectCostMatrix,35,0) -> 0 | P65: =VLOOKUP($B65,'Modified Costs (R) '!ProjectCostMatrix,21,0) -> 0 | Q65: =VLOOKUP($B65,'Modified Costs (R) '!ProjectCostMatrix,42,0) -> XXXXXX | R65: =SUM(O65:Q65)*'Modified Costs (R) '!$C$228 -> 0 | S65: =(O65+P65+G65*Q65)*(1+'Modified Costs (R) '!$C$228) ->  | T65: =((1-G65)*Q65)*(1+'Modified Costs (R) '!$C$228) ->  | V65: 1 | W65: Dependent on IVR Enhancements so can't launch in this time. Move to early 2018? | Z65: Where is Cisco platform upgrade required to support additional IVR functionality? Push to end of 2017 start
B66: DCI-12 | C66: Web Analytics | D66: The Web Analytics project provides a platform for business to analyze customer activity and behavioral data sourced from web and mobile channels. Costs only include robust web analytics and piping output into the Data Lake. | E66: 4Q17 | F66: 1Q18 | G66: =VLOOKUP(B66,'Modified Costs (R) '!ProjectCostMatrix,8,0) -> 0.9 | H66: =VLOOKUP($B66,'Modified Costs (R) '!ProjectCostMatrix,30,0) -> 100000 | I66: =VLOOKUP($B66,'Modified Costs (R) '!ProjectCostMatrix,23,0) -> 615000 | J66: =VLOOKUP($B66,'Modified Costs (R) '!ProjectCostMatrix,47,0)+VLOOKUP($B66,'Modified Costs (R) '!ProjectCostMatrix,48,0) -> 293680 | K66: =SUM(H66:J66)*'Modified Costs (R) '!$C$228 -> 100868 | L66: =(H66+I66+G66*J66)*(1+'Modified Costs (R) '!$C$228) -> 1077243.2 | M66: =((1-G66)*J66)*(1+'Modified Costs (R) '!$C$228) -> 32304.8 | N66: 1109548 | O66: =VLOOKUP($B66,'Modified Costs (R) '!ProjectCostMatrix,35,0) -> 100000 | P66: =VLOOKUP($B66,'Modified Costs (R) '!ProjectCostMatrix,21,0) -> 615000 | Q66: =VLOOKUP($B66,'Modified Costs (R) '!ProjectCostMatrix,42,0) -> XXXXXX | R66: =SUM(O66:Q66)*'Modified Costs (R) '!$C$228 -> 71500 | S66: =(O66+P66+G66*Q66)*(1+'Modified Costs (R) '!$C$228) ->  | T66: =((1-G66)*Q66)*(1+'Modified Costs (R) '!$C$228) ->  | V66: 0 | W66: Timing needs to move due to web platform dependency | Z66: Why is this so costly? If intent is to add new data into data lake, this is O&M. We wouldn't purchase storage as an asset for PSE - use cloud services. Need to revisit O&M needs
B67: DCI-13 | C67: ECC and CRM on Hana | D67: Foundational migration of CRM and ECC to HANA database. Enables predictive analysis, real time billing, expedited analysis of customer data required for predictive notifications. | E67: 4Q16 | F67: 2Q17 | V67: =IFERROR(IF(VLOOKUP(F67,QuarterTable,5,0)=2017,1,0),"") -> 1 | W67: Only in to show dependency
B68: PM-7 | C68: Cross Program Technical Integration | D68: Covers technical integration unknowns that pop up and need to be addressed. Ties to what CenterPoint did - they had 5M across their 80M program so we should use this to help identify what we need to budget for. This program will cover all the technical processes integration between the different programs like Web, Mobile, OMS-AMI and AMI to SAP integration, also any integration with CRM, IVR and Web should be defined and covered under this program | E68: 1Q17 | F68: 2020 | G68: =VLOOKUP(B68,'Modified Costs (R) '!ProjectCostMatrix,8,0) -> 0.9 | H68: =VLOOKUP($B68,'Modified Costs (R) '!ProjectCostMatrix,30,0) -> 0 | I68: =VLOOKUP($B68,'Modified Costs (R) '!ProjectCostMatrix,23,0) -> 0 | J68: =VLOOKUP($B68,'Modified Costs (R) '!ProjectCostMatrix,47,0)+VLOOKUP($B68,'Modified Costs (R) '!ProjectCostMatrix,48,0) -> 3596640 | K68: =SUM(H68:J68)*'Modified Costs (R) '!$C$228 -> 359664 | L68: =(H68+I68+G68*J68)*(1+'Modified Costs (R) '!$C$228) -> 3560673.6 | M68: =((1-G68)*J68)*(1+'Modified Costs (R) '!$C$228) -> 395630.4 | N68: 3956304 | O68: =VLOOKUP($B68,'Modified Costs (R) '!ProjectCostMatrix,35,0) -> 0 | P68: =VLOOKUP($B68,'Modified Costs (R) '!ProjectCostMatrix,21,0) -> 0 | Q68: =VLOOKUP($B68,'Modified Costs (R) '!ProjectCostMatrix,42,0) -> XXXXXX | R68: =SUM(O68:Q68)*'Modified Costs (R) '!$C$228 -> 0 | S68: =(O68+P68+G68*Q68)*(1+'Modified Costs (R) '!$C$228) ->  | T68: =((1-G68)*Q68)*(1+'Modified Costs (R) '!$C$228) ->  | V68: 0 | W68: contingency bucket
B69: II. Predictive and guided call center experience
B70: DCII-1 | C70: IVR Enhancements - Natural Voice | D70: =VLOOKUP(B70,ProjectMatrix,3,0) -> The project involves enhancing and enriching existing IVR infrastructure with added capabilities for natural voice. It includes enabling vendor/software specific natural voice options along with the design and delivery of additional functionality required for PSE. Natural voice support will allow customers to have a back and forth interaction with IVR for various service aspects compared to a traditional touch button option. Customers can choose from a variety of options presented which will lead to faster issue and call resolution as they get routed to agents (in applicable scenarios). | E70: =VLOOKUP(B70,ProjectMatrix,13,0) -> 3Q17 | F70: =VLOOKUP(B70,ProjectMatrix,14,0) -> 4Q17 | G70: =VLOOKUP(B70,'Modified Costs (R) '!ProjectCostMatrix,8,0) -> 0.9 | H70: =VLOOKUP($B70,'Modified Costs (R) '!ProjectCostMatrix,30,0) -> 1000000 | I70: =VLOOKUP($B70,'Modified Costs (R) '!ProjectCostMatrix,23,0) -> 246000 | J70: =VLOOKUP($B70,'Modified Costs (R) '!ProjectCostMatrix,47,0)+VLOOKUP($B70,'Modified Costs (R) '!ProjectCostMatrix,48,0) -> 1174720 | K70: =SUM(H70:J70)*'Modified Costs (R) '!$C$228 -> 242072 | L70: =(H70+I70+G70*J70)*(1+'Modified Costs (R) '!$C$228) -> 2533572.8 | M70: =((1-G70)*J70)*(1+'Modified Costs (R) '!$C$228) -> 129219.2 | N70: =SUM(L70:M70) -> 2662792 | O70: =VLOOKUP($B70,'Modified Costs (R) '!ProjectCostMatrix,35,0) -> 1000000 | P70: =VLOOKUP($B70,'Modified Costs (R) '!ProjectCostMatrix,21,0) -> 246000 | Q70: =VLOOKUP($B70,'Modified Costs (R) '!ProjectCostMatrix,42,0) -> XXXXXX | R70: =SUM(O70:Q70)*'Modified Costs (R) '!$C$228 -> 124600 | S70: =(O70+P70+G70*Q70)*(1+'Modified Costs (R) '!$C$228) ->  | T70: =((1-G70)*Q70)*(1+'Modified Costs (R) '!$C$228) ->  | U70: =SUM(S70:T70) ->  | V70: 1 | W70: Cisco upgrade required - new line item to add and shifts this out quite a bit
B71: DCII-2 | C71: IVR Enhancements - Predictive | D71: The project involves enhancing and enriching existing IVR infrastructure (Cisco) with added predictive capabilities for call routing (route to the right agent), call context (predict and understand reason for the call) and call content (provide right information to IVR and CSR). Predictive IVR along with Natural voice will provide up front requisite information to the customer based on available data in the system. A set of business specific predictive rules will be developed and exposed to IVR software enabling better self-service, informed customer service, better call routing, improved service metrics and better customer satisfaction. | E71: 4Q17 | F71: 1Q18 | G71: =VLOOKUP(B71,'Modified Costs (R) '!ProjectCostMatrix,8,0) -> 0.9 | H71: =VLOOKUP($B71,'Modified Costs (R) '!ProjectCostMatrix,30,0) -> 0 | I71: =VLOOKUP($B71,'Modified Costs (R) '!ProjectCostMatrix,23,0) -> 123000 | J71: =VLOOKUP($B71,'Modified Costs (R) '!ProjectCostMatrix,47,0)+VLOOKUP($B71,'Modified Costs (R) '!ProjectCostMatrix,48,0) -> 440520 | K71: =SUM(H71:J71)*'Modified Costs (R) '!$C$228 -> 56352 | L71: =(H71+I71+G71*J71)*(1+'Modified Costs (R) '!$C$228) -> 571414.8 | M71: =((1-G71)*J71)*(1+'Modified Costs (R) '!$C$228) -> 48457.2 | N71: 619872 | O71: =VLOOKUP($B71,'Modified Costs (R) '!ProjectCostMatrix,35,0) -> 0 | P71: =VLOOKUP($B71,'Modified Costs (R) '!ProjectCostMatrix,21,0) -> 123000 | Q71: =VLOOKUP($B71,'Modified Costs (R) '!ProjectCostMatrix,42,0) -> XXXXXX | R71: =SUM(O71:Q71)*'Modified Costs (R) '!$C$228 -> 12300 | S71: =(O71+P71+G71*Q71)*(1+'Modified Costs (R) '!$C$228) ->  | T71: =((1-G71)*Q71)*(1+'Modified Costs (R) '!$C$228) ->  | V71: 0 | W71: Cisco upgrade required - new line item to add and shifts this out quite a bit
B72: DCII-3 | C72: Predictive alerts from CSR Screen | D72: The project involves enhancing and enriching agent CRM screen with context specific and in the moment predictive alerts with respect to the customer being serviced. The most important set of business defined predictive scenarios and associated alerts will be designed in the system and the same will be exposed to agents in SAP CRM as intelligent and context specific alerts based on the identified customer. The alerts will include all supported business functions and will be a mix of both proactive and predictive functions based on customer specific information available in the system. CSR's will use predictive alerts as a complimentary function to natural voice and predictive IVR. These will give them more insight in to customer specific requests, pending actions and available/possible service call reasons. Intelligent and context specific alerts like these would help in faster call resolution and better overall service metrics. | E72: 1Q19 | F72: 2Q19 | G72: =VLOOKUP(B72,'Modified Costs (R) '!ProjectCostMatrix,8,0) -> 0.9 | H72: =VLOOKUP($B72,'Modified Costs (R) '!ProjectCostMatrix,30,0) -> 0 | I72: =VLOOKUP($B72,'Modified Costs (R) '!ProjectCostMatrix,23,0) -> 0 | J72: =VLOOKUP($B72,'Modified Costs (R) '!ProjectCostMatrix,47,0)+VLOOKUP($B72,'Modified Costs (R) '!ProjectCostMatrix,48,0) -> 0 | K72: =SUM(H72:J72)*'Modified Costs (R) '!$C$228 -> 0 | L72: =(H72+I72+G72*J72)*(1+'Modified Costs (R) '!$C$228) -> 0 | M72: =((1-G72)*J72)*(1+'Modified Costs (R) '!$C$228) -> 0 | N72: 0 | O72: =VLOOKUP($B72,'Modified Costs (R) '!ProjectCostMatrix,35,0) -> 0 | P72: =VLOOKUP($B72,'Modified Costs (R) '!ProjectCostMatrix,21,0) -> 123000 | Q72: =VLOOKUP($B72,'Modified Costs (R) '!ProjectCostMatrix,42,0) -> XXXXXX | R72: =SUM(O72:Q72)*'Modified Costs (R) '!$C$228 -> 12300 | S72: =(O72+P72+G72*Q72)*(1+'Modified Costs (R) '!$C$228) ->  | T72: =((1-G72)*Q72)*(1+'Modified Costs (R) '!$C$228) ->  | V72: 0
B73: DCII-4 | C73: Multi-channel Call Center (online chat, email) | D73: The project involves adding new communication channels - online chat and email - as additional avenues for customer service enabling PSE's move towards digital transformation and Omni channel service. This will complement existing customer service channel of phone/IVR and will empower customers by providing additional ways to get in touch with PSE. Dedicated and trained CSR's will own incoming customer query queues for online chat and email just like they do with phones. They'll have access to all customer information (Customer 360) enabling them to efficiently and effectively service PSE customers through chat and email also. All business functions and customer service processes will be supported seamlessly giving both customers and agents a true omnichannel presence. (This system would replace EGain, this does not include co-browsing functionality). The data from the web-chat and email with agent should be able to feed through BW to Hana for further analytics. | E73: 4Q17 | F73: 4Q18 | G73: =VLOOKUP(B73,'Modified Costs (R) '!ProjectCostMatrix,8,0) -> 0.9 | H73: =VLOOKUP($B73,'Modified Costs (R) '!ProjectCostMatrix,30,0) -> 0 | I73: =VLOOKUP($B73,'Modified Costs (R) '!ProjectCostMatrix,23,0) -> 0 | J73: =VLOOKUP($B73,'Modified Costs (R) '!ProjectCostMatrix,47,0)+VLOOKUP($B73,'Modified Costs (R) '!ProjectCostMatrix,48,0) -> 86208 | K73: =SUM(H73:J73)*'Modified Costs (R) '!$C$228 -> 8620.8 | L73: =(H73+I73+G73*J73)*(1+'Modified Costs (R) '!$C$228) -> 85345.92 | M73: =((1-G73)*J73)*(1+'Modified Costs (R) '!$C$228) -> 9482.88 | N73: 94828.8 | O73: =VLOOKUP($B73,'Modified Costs (R) '!ProjectCostMatrix,35,0) -> 0 | P73: =VLOOKUP($B73,'Modified Costs (R) '!ProjectCostMatrix,21,0) -> 0 | Q73: =VLOOKUP($B73,'Modified Costs (R) '!ProjectCostMatrix,42,0) -> XXXXXX | R73: =SUM(O73:Q73)*'Modified Costs (R) '!$C$228 -> 0 | S73: =(O73+P73+G73*Q73)*(1+'Modified Costs (R) '!$C$228) ->  | T73: =((1-G73)*Q73)*(1+'Modified Costs (R) '!$C$228) ->  | V73: 0 | W73: Should not start this before IVR work is complete
B74: DCII-5 | C74: CRM - CSR Guided Experience with 3 click navigation (CRM modification, excluding Hana/prediction) | D74: The project involves enabling CSR guided experience with 3 click navigation for pre-defined business scenarios. Guided experience will enable a step by step procedure based user experience for agents in SAP CRM especially for critical business scenarios like Start/Stop/Transfer, Service orders, Customer master data creation etc. Standard SAP CRM functionality (guided procedures) will be leveraged as a baseline and any PSE specific requirements will be designed as add ons. This will provide additional intelligence and guidance to CSR's as they navigate through various business processes eventually leading to better service metrics, faster resolution and improved customer satisfaction. | E74: 4Q17 | F74: 4Q18 | G74: =VLOOKUP(B74,'Modified Costs (R) '!ProjectCostMatrix,8,0) -> 0.9 | H74: =VLOOKUP($B74,'Modified Costs (R) '!ProjectCostMatrix,30,0) -> 0 | I74: =VLOOKUP($B74,'Modified Costs (R) '!ProjectCostMatrix,23,0) -> 246000 | J74: =VLOOKUP($B74,'Modified Costs (R) '!ProjectCostMatrix,47,0)+VLOOKUP($B74,'Modified Costs (R) '!ProjectCostMatrix,48,0) -> 1149440 | K74: =SUM(H74:J74)*'Modified Costs (R) '!$C$228 -> 139544 | L74: =(H74+I74+G74*J74)*(1+'Modified Costs (R) '!$C$228) -> 1408545.6 | M74: =((1-G74)*J74)*(1+'Modified Costs (R) '!$C$228) -> 126438.4 | N74: 1534984 | O74: =VLOOKUP($B74,'Modified Costs (R) '!ProjectCostMatrix,35,0) -> 0 | P74: =VLOOKUP($B74,'Modified Costs (R) '!ProjectCostMatrix,21,0) -> 246000 | Q74: =VLOOKUP($B74,'Modified Costs (R) '!ProjectCostMatrix,42,0) -> XXXXXX | R74: =SUM(O74:Q74)*'Modified Costs (R) '!$C$228 -> 24600 | S74: =(O74+P74+G74*Q74)*(1+'Modified Costs (R) '!$C$228) ->  | T74: =((1-G74)*Q74)*(1+'Modified Costs (R) '!$C$228) ->  | V74: 0 | Z74: No way we can spend 1.5M in 3 months..
B75: DCII-6 | C75: CCS Customer Intake | D75: 1. (formally S5-5) A customer facing self-service portal via pse.com for initiating service for new construction including status updates and proactive notifications. The Customer Portal (below) will include scheduling service provider and PSE field work at multiple steps in the process from initiation to activation of the meter(s). A self service process for initiating service for new construction including status updates and proactive notifications via web. business is much different than a simple start service transaction. Customer Portal (below) will include scheduling service provider and PSE field work at multiple steps in the process from initiation to activation of the meter(s). 2. As a near term solution, the agent (CCR) UX will be simplified to allow much quicker agent processing of phone requests. Agents currently are required to navigate to up to 10 individual SAP transactions to add a service request for a new customer. This does not allow the agent to complete the transaction with the customer on the phone. A handoff process is in place between the call agent (CCR) and the data entry associate (CSR1) to get the final order placed and routed correctly. The result of this CSA will improve call handling time, customer service and order cycle time. Customer Construction Services processes 58,000 service requests annually and of those 35.5% or 20,360 are for new customers or services to PSE. This screen consolidate aligns with the future development of the Construction Customer Self Services roadmap. | E75: 1Q17 | F75: 2Q17 | G75: =VLOOKUP(B75,'Modified Costs (R) '!ProjectCostMatrix,8,0) -> 0.9 | H75: =VLOOKUP($B75,'Modified Costs (R) '!ProjectCostMatrix,30,0) -> 0 | I75: =VLOOKUP($B75,'Modified Costs (R) '!ProjectCostMatrix,23,0) -> 0 | J75: =VLOOKUP($B75,'Modified Costs (R) '!ProjectCostMatrix,47,0)+VLOOKUP($B75,'Modified Costs (R) '!ProjectCostMatrix,48,0) -> 650794.88 | K75: =SUM(H75:J75)*'Modified Costs (R) '!$C$228 -> 65079.488 | L75: =(H75+I75+G75*J75)*(1+'Modified Costs (R) '!$C$228) -> 644286.9312 | M75: =((1-G75)*J75)*(1+'Modified Costs (R) '!$C$228) -> 71587.4368 | N75: 715874.368 | O75: =VLOOKUP($B75,'Modified Costs (R) '!ProjectCostMatrix,35,0) -> 0 | P75: =VLOOKUP($B75,'Modified Costs (R) '!ProjectCostMatrix,21,0) -> 0 | Q75: =VLOOKUP($B75,'Modified Costs (R) '!ProjectCostMatrix,42,0) -> XXXXXX | R75: =SUM(O75:Q75)*'Modified Costs (R) '!$C$228 -> 0 | S75: =(O75+P75+G75*Q75)*(1+'Modified Costs (R) '!$C$228) ->  | T75: =((1-G75)*Q75)*(1+'Modified Costs (R) '!$C$228) ->  | V75: 1 | W75: Is DCIII-9 really a dependency as one page shows? If so, we cannot meet the timeline shown | Z75: Recommend moving forward with this in 2017, but then move DCIII-9 to align with Vesta roadmap Q3 2018 - 1Q 2019
B76: III. Integrated Work Management
B77: DCIII-1 | C77: =VLOOKUP(B77,ProjectMatrix,2,0) -> P0 - GIS CAD Design | D77: =VLOOKUP(B77,ProjectMatrix,3,0) -> Improve the accuracy and timeliness of GIS data and model of gas and electric networks and improving efficiencies of MRT staff & CSP designers through integration between the design tool and GIS. | E77: =VLOOKUP(B77,ProjectMatrix,13,0) -> 2Q16 | F77: =VLOOKUP(B77,ProjectMatrix,14,0) -> 2Q17 | G77: =VLOOKUP(B77,'Modified Costs (R) '!ProjectCostMatrix,8,0) -> 1 | H77: =VLOOKUP($B77,'Modified Costs (R) '!ProjectCostMatrix,29,0) -> 0 | I77: =VLOOKUP($B77,'Modified Costs (R) '!ProjectCostMatrix,23,0) -> 0 | J77: =VLOOKUP($B77,'Modified Costs (R) '!ProjectCostMatrix,46,0)+VLOOKUP($B77,'Modified Costs (R) '!ProjectCostMatrix,47,0) -> 476666.6667 | K77: =SUM(H77:J77)*'Modified Costs (R) '!$C$228 -> 47666.66667 | L77: =(H77+I77+G77*J77)*(1+'Modified Costs (R) '!$C$228) -> 524333.3333 | M77: =((1-G77)*J77)*(1+'Modified Costs (R) '!$C$228) -> 0 | N77: =SUM(L77:M77) -> 524333.3333 | O77: =VLOOKUP($B77,'Modified Costs (R) '!ProjectCostMatrix,34,0) -> 0 | P77: =VLOOKUP($B77,'Modified Costs (R) '!ProjectCostMatrix,21,0) -> 0 | Q77: =VLOOKUP($B77,'Modified Costs (R) '!ProjectCostMatrix,41,0) -> 1.25 | R77: =SUM(O77:Q77)*'Modified Costs (R) '!$C$228 -> 0.125 | S77: =(O77+P77+G77*Q77)*(1+'Modified Costs (R) '!$C$228) -> 1.375 | T77: =((1-G77)*Q77)*(1+'Modified Costs (R) '!$C$228) -> 0 | U77: =SUM(S77:T77) -> 1.375 | V77: 1 | W77: Completion of 2016 effort
B78: DCIII-2 | C78: P2 - IWM Cost Management | D78: SAP ECC PM, FI, CO, PS, and other changes to enable full lifecycle Financial tracking of tracking of a PM work order / operation pair for all IWM targeted work. | E78: 1Q17 | F78: 3Q17 | G78: =VLOOKUP(B78,'Modified Costs (R) '!ProjectCostMatrix,8,0) -> 0.9 | H78: =VLOOKUP($B78,'Modified Costs (R) '!ProjectCostMatrix,29,0) -> 0 | I78: =VLOOKUP($B78,'Modified Costs (R) '!ProjectCostMatrix,23,0) -> 400000 | J78: =VLOOKUP($B78,'Modified Costs (R) '!ProjectCostMatrix,46,0)+VLOOKUP($B78,'Modified Costs (R) '!ProjectCostMatrix,47,0) -> 2059200 | K78: =SUM(H78:J78)*'Modified Costs (R) '!$C$228 -> 245920 | L78: =(H78+I78+G78*J78)*(1+'Modified Costs (R) '!$C$228) -> 2478608 | M78: =((1-G78)*J78)*(1+'Modified Costs (R) '!$C$228) -> 226512 | N78: =SUM(L78:M78) -> 2705120 | O78: =VLOOKUP($B78,'Modified Costs (R) '!ProjectCostMatrix,34,0) -> 0 | P78: =VLOOKUP($B78,'Modified Costs (R) '!ProjectCostMatrix,21,0) -> 400000 | Q78: =VLOOKUP($B78,'Modified Costs (R) '!ProjectCostMatrix,41,0) -> 0.75 | R78: =SUM(O78:Q78)*'Modified Costs (R) '!$C$228 -> 40000.075 | S78: =(O78+P78+G78*Q78)*(1+'Modified Costs (R) '!$C$228) -> 440000.7425 | T78: =((1-G78)*Q78)*(1+'Modified Costs (R) '!$C$228) -> 0.0825 | U78: =SUM(S78:T78) -> 440000.825 | V78: 1 | W78: Tied to FTIP Phase II - Simple finance needed - FERC accounting needs to be in place first. WBS structure changes must be implemented. Single order not available until end of 2017. | Z78: Timing shift needed Q2 2017 - 1Q 2018 (FTIP PH II is currently scheduled to go live 1Q 2018 but they are trying to bring into 4Q 2017 so need to have end date aligned with this)
B79: DCIII-3 | C79: P3a - SAP Work Management System (WMS) | D79: Consistent views and approach for all work in SAP. Provides visibility through the lifecycle of the work from initialization through project close. Allow for use of standard SAP and SAP certified applications to order & track materials/services, date plan, assign work, push to mobile and update, etc. | E79: 1Q17 | F79: 3Q17 | G79: =VLOOKUP(B79,'Modified Costs (R) '!ProjectCostMatrix,8,0) -> 0.9 | H79: =VLOOKUP($B79,'Modified Costs (R) '!ProjectCostMatrix,29,0) -> 0 | I79: =VLOOKUP($B79,'Modified Costs (R) '!ProjectCostMatrix,23,0) -> 200000 | J79: =VLOOKUP($B79,'Modified Costs (R) '!ProjectCostMatrix,46,0)+VLOOKUP($B79,'Modified Costs (R) '!ProjectCostMatrix,47,0) -> 1965600 | K79: =SUM(H79:J79)*'Modified Costs (R) '!$C$228 -> 216560 | L79: =(H79+I79+G79*J79)*(1+'Modified Costs (R) '!$C$228) -> 2165944 | M79: =((1-G79)*J79)*(1+'Modified Costs (R) '!$C$228) -> 216216 | N79: 2382160 | O79: =VLOOKUP($B79,'Modified Costs (R) '!ProjectCostMatrix,34,0) -> 0 | P79: =VLOOKUP($B79,'Modified Costs (R) '!ProjectCostMatrix,21,0) -> 200000 | Q79: =VLOOKUP($B79,'Modified Costs (R) '!ProjectCostMatrix,41,0) -> 0.75 | R79: =SUM(O79:Q79)*'Modified Costs (R) '!$C$228 -> 20000.075 | S79: =(O79+P79+G79*Q79)*(1+'Modified Costs (R) '!$C$228) -> 220000.7425 | T79: =((1-G79)*Q79)*(1+'Modified Costs (R) '!$C$228) -> 0.0825 | U79: 220000.825 | V79: 1 | W79: Also tied to FTIP phase II - needs to move out 2Q. Tied to single WO. Tied to DCIII-2 - can go at same time or need to go after? Is there dependency with inventory management for materials management- IT team feels strongly this is a dependency. So can't start until Q1 2018 - need inventory management to support design so can't start earlier. May also need SAP GIS integration which we don't have on plans. This can be a large project in itself, if we need to clean data as well | Y79: IT and Finance team resource constraints need to be considered - they will be focusing on FTIP Phase II | Z79: Need to follow up with Vesta - do we really have tie to Inventory management? At min we shift this out to start and end 2 quarters later. Where is SAP and GIS integration?
B80: DCIII-4 | C80: P3b - Workforce Scheduling | D80: Design & common build of Scheduling, Dispatch, Process & Technology for all Gas & Electric field work. | E80: 1Q17 | F80: 3Q17 | G80: =VLOOKUP(B80,'Modified Costs (R) '!ProjectCostMatrix,8,0) -> 0.9 | H80: =VLOOKUP($B80,'Modified Costs (R) '!ProjectCostMatrix,29,0) -> 0 | I80: =VLOOKUP($B80,'Modified Costs (R) '!ProjectCostMatrix,23,0) -> 200000 | J80: =VLOOKUP($B80,'Modified Costs (R) '!ProjectCostMatrix,46,0)+VLOOKUP($B80,'Modified Costs (R) '!ProjectCostMatrix,47,0) -> 2505600 | K80: =SUM(H80:J80)*'Modified Costs (R) '!$C$228 -> 270560 | L80: =(H80+I80+G80*J80)*(1+'Modified Costs (R) '!$C$228) -> 2700544 | M80: =((1-G80)*J80)*(1+'Modified Costs (R) '!$C$228) -> 275616 | N80: 2976160 | O80: =VLOOKUP($B80,'Modified Costs (R) '!ProjectCostMatrix,34,0) -> 0 | P80: =VLOOKUP($B80,'Modified Costs (R) '!ProjectCostMatrix,21,0) -> 200000 | Q80: =VLOOKUP($B80,'Modified Costs (R) '!ProjectCostMatrix,41,0) -> 0.75 | R80: =SUM(O80:Q80)*'Modified Costs (R) '!$C$228 -> 20000.075 | S80: =(O80+P80+G80*Q80)*(1+'Modified Costs (R) '!$C$228) -> 220000.7425 | T80: =((1-G80)*Q80)*(1+'Modified Costs (R) '!$C$228) -> 0.0825 | U80: 220000.825 | V80: 1 | W80: Also tied to FTIP phase II - needs to move out 2Q. Tied to single WO. Tied to DCIII-2 - can go at same time or need to go after?
B81: DCIII-5 | C81: P3c - Workforce Mobility | D81: =VLOOKUP(B81,ProjectMatrix,3,0) -> Provide crews electronic mobile capabilities to receive, status, and report on work activities. This will enable field employees to easily access customer data and account information. This will also provide easy accessibility and self service functionalities in a Mobile Native app experience for employees. Will start 4th quarter 2016 with scoping, to be charged to Vesta's 2016 work order. | E81: =VLOOKUP(B81,ProjectMatrix,13,0) -> 4Q16 | F81: 3Q17 | G81: =VLOOKUP(B81,'Modified Costs (R) '!ProjectCostMatrix,8,0) -> 0.9 | H81: =VLOOKUP($B81,'Modified Costs (R) '!ProjectCostMatrix,29,0) -> 1100000 | I81: =VLOOKUP($B81,'Modified Costs (R) '!ProjectCostMatrix,23,0) -> 0 | J81: =VLOOKUP($B81,'Modified Costs (R) '!ProjectCostMatrix,46,0)+VLOOKUP($B81,'Modified Costs (R) '!ProjectCostMatrix,47,0) -> 1713600 | K81: =SUM(H81:J81)*'Modified Costs (R) '!$C$228 -> 281360 | L81: =(H81+I81+G81*J81)*(1+'Modified Costs (R) '!$C$228) -> 2906464 | M81: =((1-G81)*J81)*(1+'Modified Costs (R) '!$C$228) -> 188496 | N81: 3094960 | O81: =VLOOKUP($B81,'Modified Costs (R) '!ProjectCostMatrix,34,0) -> 0 | P81: =VLOOKUP($B81,'Modified Costs (R) '!ProjectCostMatrix,21,0) -> 300000 | Q81: =VLOOKUP($B81,'Modified Costs (R) '!ProjectCostMatrix,41,0) -> 1 | R81: =SUM(O81:Q81)*'Modified Costs (R) '!$C$228 -> 30000.1 | S81: =(O81+P81+G81*Q81)*(1+'Modified Costs (R) '!$C$228) -> 330000.99 | T81: =((1-G81)*Q81)*(1+'Modified Costs (R) '!$C$228) -> 0.11 | U81: 330001.1 | V81: 1 | W81: Tied to FTIP Phase II - needs to move out 2Q at min. Requires HW evaluation - this timeline is too aggressive and does not account for that. Will not be ready to deploy starting 3Q 2017. Also tied to Win 10 deployment? Could be ios or android? Either way requires hardened environment and we are not mature in this space - impact of hardening a new environment is not a small effort. Need to make sure costs include the infra needs. May want separate project to build infra for mobility. Potential to utilize package solution here which may mitigate some dependencies | Y81: We are very limited with MDM and ability to "harden" new platforms - will required external support or increased internal staffing
B82: DCIII-6 | C82: P4 - Gas Customer Facing Work Rollout | D82: Deployment to Gas First Response teams of the Work Management, Scheduling, and Mobile Processes and Tools . | E82: =VLOOKUP(B82,ProjectMatrix,13,0) -> 3Q17 | F82: 2Q18 | G82: =VLOOKUP(B82,'Modified Costs (R) '!ProjectCostMatrix,8,0) -> 0.9 | H82: =VLOOKUP($B82,'Modified Costs (R) '!ProjectCostMatrix,30,0) -> 800000 | I82: =VLOOKUP($B82,'Modified Costs (R) '!ProjectCostMatrix,23,0) -> 200000 | J82: =VLOOKUP($B82,'Modified Costs (R) '!ProjectCostMatrix,47,0)+VLOOKUP($B82,'Modified Costs (R) '!ProjectCostMatrix,48,0) -> 720000 | K82: =SUM(H82:J82)*'Modified Costs (R) '!$C$228 -> 172000 | L82: =(H82+I82+G82*J82)*(1+'Modified Costs (R) '!$C$228) -> 1812800 | M82: =((1-G82)*J82)*(1+'Modified Costs (R) '!$C$228) -> 79200 | N82: 1892000 | O82: =VLOOKUP($B82,'Modified Costs (R) '!ProjectCostMatrix,35,0) -> 800000 | P82: =VLOOKUP($B82,'Modified Costs (R) '!ProjectCostMatrix,21,0) -> 200000 | Q82: =VLOOKUP($B82,'Modified Costs (R) '!ProjectCostMatrix,42,0) -> XXXXXX | R82: =SUM(O82:Q82)*'Modified Costs (R) '!$C$228 -> 100000 | S82: =(O82+P82+G82*Q82)*(1+'Modified Costs (R) '!$C$228) ->  | T82: =((1-G82)*Q82)*(1+'Modified Costs (R) '!$C$228) ->  | U82: =SUM(S82:T82) ->  | V82: 0 | W82: Tied to DCIII-5 so timing will need to shift
B83: DCIII-7 | C83: P5 - Electric customer facing work rollout | D83: Deployment to Electric First Response teams of the Work Management, Scheduling, and Mobile Processes and Tools. | E83: =VLOOKUP(B83,ProjectMatrix,13,0) -> 2Q18 | F83: =VLOOKUP(B83,ProjectMatrix,14,0) -> 4Q18 | G83: =VLOOKUP(B83,'Modified Costs (R) '!ProjectCostMatrix,8,0) -> 0.9 | H83: =VLOOKUP($B83,'Modified Costs (R) '!ProjectCostMatrix,30,0) -> 0 | I83: =VLOOKUP($B83,'Modified Costs (R) '!ProjectCostMatrix,23,0) -> 0 | J83: =VLOOKUP($B83,'Modified Costs (R) '!ProjectCostMatrix,47,0)+VLOOKUP($B83,'Modified Costs (R) '!ProjectCostMatrix,48,0) -> 0 | K83: =SUM(H83:J83)*'Modified Costs (R) '!$C$228 -> 0 | L83: =(H83+I83+G83*J83)*(1+'Modified Costs (R) '!$C$228) -> 0 | M83: =((1-G83)*J83)*(1+'Modified Costs (R) '!$C$228) -> 0 | N83: =SUM(L83:M83) -> 0 | O83: =VLOOKUP($B83,'Modified Costs (R) '!ProjectCostMatrix,35,0) -> 800000 | P83: =VLOOKUP($B83,'Modified Costs (R) '!ProjectCostMatrix,21,0) -> 200000 | Q83: =VLOOKUP($B83,'Modified Costs (R) '!ProjectCostMatrix,42,0) -> XXXXXX | R83: =SUM(O83:Q83)*'Modified Costs (R) '!$C$228 -> 100000 | S83: =(O83+P83+G83*Q83)*(1+'Modified Costs (R) '!$C$228) ->  | T83: =((1-G83)*Q83)*(1+'Modified Costs (R) '!$C$228) ->  | U83: =SUM(S83:T83) ->  | V83: 0
B84: DCIII-8 | C84: P6 - Meter Management | D84: Targeted rollout to Gas & Electric Measurements / Metering groups. Update end to end meter management processes to include lifecycle testing and tracking of all billing meters including meter shop, warehouse, transport, and field metering activities. | E84: 2Q18 | F84: 4Q18 | G84: =VLOOKUP(B84,'Modified Costs (R) '!ProjectCostMatrix,8,0) -> 0.9 | H84: =VLOOKUP($B84,'Modified Costs (R) '!ProjectCostMatrix,30,0) -> 0 | I84: =VLOOKUP($B84,'Modified Costs (R) '!ProjectCostMatrix,23,0) -> 0 | J84: =VLOOKUP($B84,'Modified Costs (R) '!ProjectCostMatrix,47,0)+VLOOKUP($B84,'Modified Costs (R) '!ProjectCostMatrix,48,0) -> 0 | K84: =SUM(H84:J84)*'Modified Costs (R) '!$C$228 -> 0 | L84: =(H84+I84+G84*J84)*(1+'Modified Costs (R) '!$C$228) -> 0 | M84: =((1-G84)*J84)*(1+'Modified Costs (R) '!$C$228) -> 0 | N84: 0 | O84: =VLOOKUP($B84,'Modified Costs (R) '!ProjectCostMatrix,35,0) -> 800000 | P84: =VLOOKUP($B84,'Modified Costs (R) '!ProjectCostMatrix,21,0) -> 200000 | Q84: =VLOOKUP($B84,'Modified Costs (R) '!ProjectCostMatrix,42,0) -> XXXXXX | R84: =SUM(O84:Q84)*'Modified Costs (R) '!$C$228 -> 100000 | S84: =(O84+P84+G84*Q84)*(1+'Modified Costs (R) '!$C$228) ->  | T84: =((1-G84)*Q84)*(1+'Modified Costs (R) '!$C$228) ->  | V84: 0
B85: DCIII-12 | C85: P7 - Compatible Units Library | D85: The development of SAP Compatible Units (CU) and CU library to facilitate repeatable design & construction work. | E85: 2Q18 | F85: 4Q18 | G85: =VLOOKUP(B85,'Modified Costs (R) '!ProjectCostMatrix,8,0) -> 0.9 | H85: =VLOOKUP($B85,'Modified Costs (R) '!ProjectCostMatrix,30,0) -> 0 | I85: =VLOOKUP($B85,'Modified Costs (R) '!ProjectCostMatrix,23,0) -> 0 | J85: =VLOOKUP($B85,'Modified Costs (R) '!ProjectCostMatrix,47,0)+VLOOKUP($B85,'Modified Costs (R) '!ProjectCostMatrix,48,0) -> 0 | K85: =SUM(H85:J85)*'Modified Costs (R) '!$C$228 -> 0 | L85: =(H85+I85+G85*J85)*(1+'Modified Costs (R) '!$C$228) -> 0 | M85: =((1-G85)*J85)*(1+'Modified Costs (R) '!$C$228) -> 0 | N85: 0 | O85: =VLOOKUP($B85,'Modified Costs (R) '!ProjectCostMatrix,35,0) -> 100000 | P85: =VLOOKUP($B85,'Modified Costs (R) '!ProjectCostMatrix,21,0) -> 0 | Q85: =VLOOKUP($B85,'Modified Costs (R) '!ProjectCostMatrix,42,0) -> XXXXXX | R85: =SUM(O85:Q85)*'Modified Costs (R) '!$C$228 -> 10000 | S85: =(O85+P85+G85*Q85)*(1+'Modified Costs (R) '!$C$228) ->  | T85: =((1-G85)*Q85)*(1+'Modified Costs (R) '!$C$228) ->  | V85: 0 | W85: Does this need to be part of FTIP Phase II?
B86: DCIII-10 | C86: P9 - Customer Work Status Portal | D86: To provide customer web access to check status of activities affecting that customer. Activities for which status will be available include; appointment status, service work status, outage (planned & unplanned) status, and PSE work in the vicinity. | E86: 2Q18 | F86: 2Q19 | G86: =VLOOKUP(B86,'Modified Costs (R) '!ProjectCostMatrix,8,0) -> 0.9 | H86: =VLOOKUP($B86,'Modified Costs (R) '!ProjectCostMatrix,30,0) -> 0 | I86: =VLOOKUP($B86,'Modified Costs (R) '!ProjectCostMatrix,23,0) -> 0 | J86: =VLOOKUP($B86,'Modified Costs (R) '!ProjectCostMatrix,47,0)+VLOOKUP($B86,'Modified Costs (R) '!ProjectCostMatrix,48,0) -> 0 | K86: =SUM(H86:J86)*'Modified Costs (R) '!$C$228 -> 0 | L86: =(H86+I86+G86*J86)*(1+'Modified Costs (R) '!$C$228) -> 0 | M86: =((1-G86)*J86)*(1+'Modified Costs (R) '!$C$228) -> 0 | N86: 0 | O86: =VLOOKUP($B86,'Modified Costs (R) '!ProjectCostMatrix,35,0) -> 800000 | P86: =VLOOKUP($B86,'Modified Costs (R) '!ProjectCostMatrix,21,0) -> 200000 | Q86: =VLOOKUP($B86,'Modified Costs (R) '!ProjectCostMatrix,42,0) -> XXXXXX | R86: =SUM(O86:Q86)*'Modified Costs (R) '!$C$228 -> 100000 | S86: =(O86+P86+G86*Q86)*(1+'Modified Costs (R) '!$C$228) ->  | T86: =((1-G86)*Q86)*(1+'Modified Costs (R) '!$C$228) ->  | V86: 0
B87: DCIII-11 | C87: P10 - Compliance Work - Gas & Electric Linear Asset | D87: Deliver an integrated Leak management system based on GIS and SAP work and asset management. Apply the same approach for other Compliance driven work at PSE. | E87: 4Q18 | F87: 3Q19 | G87: =VLOOKUP(B87,'Modified Costs (R) '!ProjectCostMatrix,8,0) -> 0.9 | H87: =VLOOKUP($B87,'Modified Costs (R) '!ProjectCostMatrix,30,0) -> 0 | I87: =VLOOKUP($B87,'Modified Costs (R) '!ProjectCostMatrix,23,0) -> 0 | J87: =VLOOKUP($B87,'Modified Costs (R) '!ProjectCostMatrix,47,0)+VLOOKUP($B87,'Modified Costs (R) '!ProjectCostMatrix,48,0) -> 0 | K87: =SUM(H87:J87)*'Modified Costs (R) '!$C$228 -> 0 | L87: =(H87+I87+G87*J87)*(1+'Modified Costs (R) '!$C$228) -> 0 | M87: =((1-G87)*J87)*(1+'Modified Costs (R) '!$C$228) -> 0 | N87: 0 | O87: =VLOOKUP($B87,'Modified Costs (R) '!ProjectCostMatrix,35,0) -> 500000 | P87: =VLOOKUP($B87,'Modified Costs (R) '!ProjectCostMatrix,21,0) -> 0 | Q87: =VLOOKUP($B87,'Modified Costs (R) '!ProjectCostMatrix,42,0) -> XXXXXX | R87: =SUM(O87:Q87)*'Modified Costs (R) '!$C$228 -> 50000 | S87: =(O87+P87+G87*Q87)*(1+'Modified Costs (R) '!$C$228) ->  | T87: =((1-G87)*Q87)*(1+'Modified Costs (R) '!$C$228) ->  | V87: 0
B88: DCIII-9 | C88: P8- Customer Work Initiation Portal | D88: To provide customer web access to request work, receive estimates for Gas service and make a service appointment. | E88: 3Q18 | F88: 1Q19 | G88: =VLOOKUP(B88,'Modified Costs (R) '!ProjectCostMatrix,8,0) -> 0.9 | H88: =VLOOKUP($B88,'Modified Costs (R) '!ProjectCostMatrix,30,0) -> 0 | I88: =VLOOKUP($B88,'Modified Costs (R) '!ProjectCostMatrix,23,0) -> 0 | J88: =VLOOKUP($B88,'Modified Costs (R) '!ProjectCostMatrix,47,0)+VLOOKUP($B88,'Modified Costs (R) '!ProjectCostMatrix,48,0) -> 0 | K88: =SUM(H88:J88)*'Modified Costs (R) '!$C$228 -> 0 | L88: =(H88+I88+G88*J88)*(1+'Modified Costs (R) '!$C$228) -> 0 | M88: =((1-G88)*J88)*(1+'Modified Costs (R) '!$C$228) -> 0 | N88: 0 | O88: =VLOOKUP($B88,'Modified Costs (R) '!ProjectCostMatrix,35,0) -> 800000 | P88: =VLOOKUP($B88,'Modified Costs (R) '!ProjectCostMatrix,21,0) -> 200000 | Q88: =VLOOKUP($B88,'Modified Costs (R) '!ProjectCostMatrix,42,0) -> XXXXXX | R88: =SUM(O88:Q88)*'Modified Costs (R) '!$C$228 -> 100000 | S88: =(O88+P88+G88*Q88)*(1+'Modified Costs (R) '!$C$228) ->  | T88: =((1-G88)*Q88)*(1+'Modified Costs (R) '!$C$228) ->  | V88: 0 | W88: Tied to web replatform - may need to shift out as we cannot have everything go live at same time as new web. Use old platform | Z88: Vesta roadmap shows this is 2019 effort so we need to confirm dates - roadmap shows earlier. Web replatform shows end 3Q 2018 so why are we using 1Q 2018 for when items can go live?
B89: DCIII-16 | C89: P11- Project Systems Integration | D89: To implement SAP to P6 integration for enterprise project management, program management, and medium term (e.g. in year) work and resource planning/ forecasting. | E89: 1Q19 | F89: 4Q19 | G89: =VLOOKUP(B89,'Modified Costs (R) '!ProjectCostMatrix,8,0) -> 0.9 | H89: =VLOOKUP($B89,'Modified Costs (R) '!ProjectCostMatrix,30,0) -> 0 | I89: =VLOOKUP($B89,'Modified Costs (R) '!ProjectCostMatrix,23,0) -> 0 | J89: =VLOOKUP($B89,'Modified Costs (R) '!ProjectCostMatrix,47,0)+VLOOKUP($B89,'Modified Costs (R) '!ProjectCostMatrix,48,0) -> 0 | K89: =SUM(H89:J89)*'Modified Costs (R) '!$C$228 -> 0 | L89: =(H89+I89+G89*J89)*(1+'Modified Costs (R) '!$C$228) -> 0 | M89: =((1-G89)*J89)*(1+'Modified Costs (R) '!$C$228) -> 0 | N89: 0 | O89: =VLOOKUP($B89,'Modified Costs (R) '!ProjectCostMatrix,35,0) -> 800000 | P89: =VLOOKUP($B89,'Modified Costs (R) '!ProjectCostMatrix,21,0) -> 0 | Q89: =VLOOKUP($B89,'Modified Costs (R) '!ProjectCostMatrix,42,0) -> XXXXXX | R89: =SUM(O89:Q89)*'Modified Costs (R) '!$C$228 -> 80000 | S89: =(O89+P89+G89*Q89)*(1+'Modified Costs (R) '!$C$228) ->  | T89: =((1-G89)*Q89)*(1+'Modified Costs (R) '!$C$228) ->  | V89: 0
B90: DCIII-13 | C90: P12- AUD | D90: Enhance repeatable nature of field estimating & Design through use of mobile design, compatible units, repeatable design assemblies, and integrated estimating tools. Estimate capability to include CIAC calculation and tracking. Customer Projects - Gas & Electric: To deliver to customer projects the enhanced GIS CAD Design capabilities through use of the SAP CU design and estimating capabilities designed in project P10. This includes mobile design capabilities. | E90: 3Q18 | F90: 4Q19 | G90: =VLOOKUP(B90,'Modified Costs (R) '!ProjectCostMatrix,8,0) -> 0.9 | H90: =VLOOKUP($B90,'Modified Costs (R) '!ProjectCostMatrix,30,0) -> 0 | I90: =VLOOKUP($B90,'Modified Costs (R) '!ProjectCostMatrix,23,0) -> 0 | J90: =VLOOKUP($B90,'Modified Costs (R) '!ProjectCostMatrix,47,0)+VLOOKUP($B90,'Modified Costs (R) '!ProjectCostMatrix,48,0) -> 0 | K90: =SUM(H90:J90)*'Modified Costs (R) '!$C$228 -> 0 | L90: =(H90+I90+G90*J90)*(1+'Modified Costs (R) '!$C$228) -> 0 | M90: =((1-G90)*J90)*(1+'Modified Costs (R) '!$C$228) -> 0 | N90: 0 | O90: =VLOOKUP($B90,'Modified Costs (R) '!ProjectCostMatrix,35,0) -> 800000 | P90: =VLOOKUP($B90,'Modified Costs (R) '!ProjectCostMatrix,21,0) -> 200000 | Q90: =VLOOKUP($B90,'Modified Costs (R) '!ProjectCostMatrix,42,0) -> XXXXXX | R90: =SUM(O90:Q90)*'Modified Costs (R) '!$C$228 -> 100000 | S90: =(O90+P90+G90*Q90)*(1+'Modified Costs (R) '!$C$228) ->  | T90: =((1-G90)*Q90)*(1+'Modified Costs (R) '!$C$228) ->  | V90: 0
B91: DCIII-14 | C91: P13 - Other Maintenance Rollout | D91: Deployment of the Work management, Scheduling, and Mobile processes and tools to the remaining teams and for the remaining maintenance work types throughout PSE (i.e. T&D Gas & Electric Operations). | E91: 4Q19 | F91: 2020 | G91: =VLOOKUP(B91,'Modified Costs (R) '!ProjectCostMatrix,8,0) -> 0.9 | H91: =VLOOKUP($B91,'Modified Costs (R) '!ProjectCostMatrix,30,0) -> 0 | I91: =VLOOKUP($B91,'Modified Costs (R) '!ProjectCostMatrix,23,0) -> 0 | J91: =VLOOKUP($B91,'Modified Costs (R) '!ProjectCostMatrix,47,0)+VLOOKUP($B91,'Modified Costs (R) '!ProjectCostMatrix,48,0) -> 0 | K91: =SUM(H91:J91)*'Modified Costs (R) '!$C$228 -> 0 | L91: =(H91+I91+G91*J91)*(1+'Modified Costs (R) '!$C$228) -> 0 | M91: =((1-G91)*J91)*(1+'Modified Costs (R) '!$C$228) -> 0 | N91: 0 | O91: =VLOOKUP($B91,'Modified Costs (R) '!ProjectCostMatrix,35,0) -> 800000 | P91: =VLOOKUP($B91,'Modified Costs (R) '!ProjectCostMatrix,21,0) -> 200000 | Q91: =VLOOKUP($B91,'Modified Costs (R) '!ProjectCostMatrix,42,0) -> XXXXXX | R91: =SUM(O91:Q91)*'Modified Costs (R) '!$C$228 -> 100000 | S91: =(O91+P91+G91*Q91)*(1+'Modified Costs (R) '!$C$228) ->  | T91: =((1-G91)*Q91)*(1+'Modified Costs (R) '!$C$228) ->  | V91: 0
B92: DCIII-15 | C92: P14 - Other Construction Projects - Gas & Electric | D92: To deliver to remaining non-customer projects the enhanced GIS CAD Design capabilities through use of the SAP CU design and estimating capabilities designed in project P10. This includes mobile design capabilities. | E92: 4Q19 | F92: 2020 | G92: =VLOOKUP(B92,'Modified Costs (R) '!ProjectCostMatrix,8,0) -> 0.9 | H92: =VLOOKUP($B92,'Modified Costs (R) '!ProjectCostMatrix,30,0) -> 0 | I92: =VLOOKUP($B92,'Modified Costs (R) '!ProjectCostMatrix,23,0) -> 0 | J92: =VLOOKUP($B92,'Modified Costs (R) '!ProjectCostMatrix,47,0)+VLOOKUP($B92,'Modified Costs (R) '!ProjectCostMatrix,48,0) -> 0 | K92: =SUM(H92:J92)*'Modified Costs (R) '!$C$228 -> 0 | L92: =(H92+I92+G92*J92)*(1+'Modified Costs (R) '!$C$228) -> 0 | M92: =((1-G92)*J92)*(1+'Modified Costs (R) '!$C$228) -> 0 | N92: 0 | O92: =VLOOKUP($B92,'Modified Costs (R) '!ProjectCostMatrix,35,0) -> 1200000 | P92: =VLOOKUP($B92,'Modified Costs (R) '!ProjectCostMatrix,21,0) -> 200000 | Q92: =VLOOKUP($B92,'Modified Costs (R) '!ProjectCostMatrix,42,0) -> XXXXXX | R92: =SUM(O92:Q92)*'Modified Costs (R) '!$C$228 -> 140000 | S92: =(O92+P92+G92*Q92)*(1+'Modified Costs (R) '!$C$228) ->  | T92: =((1-G92)*Q92)*(1+'Modified Costs (R) '!$C$228) ->  | V92: 0
B93: DCI-11 | C93: Enterprise Service Bus (ESB)/ Micro Services TxPort | D93: The ESB project will create an Enterprise Middleware, that will integrate with SAP and non-SAP systems including OMS, Web and Mobile. This is needed to enable reliable communication between different systems (web, mobile, backend). | E93: 1Q17 | F93: 4Q17 | G93: =VLOOKUP(B93,'Modified Costs (R) '!ProjectCostMatrix,8,0) -> 0.9 | H93: =VLOOKUP($B93,'Modified Costs (R) '!ProjectCostMatrix,30,0) -> 500000 | I93: =VLOOKUP($B93,'Modified Costs (R) '!ProjectCostMatrix,23,0) -> 0 | J93: =VLOOKUP($B93,'Modified Costs (R) '!ProjectCostMatrix,47,0)+VLOOKUP($B93,'Modified Costs (R) '!ProjectCostMatrix,48,0) -> 5397760 | K93: =SUM(H93:J93)*'Modified Costs (R) '!$C$228 -> 589776 | L93: =(H93+I93+G93*J93)*(1+'Modified Costs (R) '!$C$228) -> 5893782.4 | M93: =((1-G93)*J93)*(1+'Modified Costs (R) '!$C$228) -> 593753.6 | N93: 6487536 | O93: =VLOOKUP($B93,'Modified Costs (R) '!ProjectCostMatrix,35,0) -> 500000 | P93: =VLOOKUP($B93,'Modified Costs (R) '!ProjectCostMatrix,21,0) -> 0 | Q93: =VLOOKUP($B93,'Modified Costs (R) '!ProjectCostMatrix,42,0) -> XXXXXX | R93: =SUM(O93:Q93)*'Modified Costs (R) '!$C$228 -> 50000 | S93: =(O93+P93+G93*Q93)*(1+'Modified Costs (R) '!$C$228) ->  | T93: =((1-G93)*Q93)*(1+'Modified Costs (R) '!$C$228) ->  | V93: 1 | W93: Will keep PI running at same time. Tied to web replatform | Y93: Needs 2-3 FTE and several contractors | Z93: What else will use ESB besides GTZ? Not expecting others to use starting in 2017 - will be later. Joe is considering to move to micro services versus ESB. THIS IS A 12 month effort
A94: IV. SAP/AMI Advanced Functionality
B95: DCIV-1 | C95: AMI Advanced Functionality Systems Integration | D95: =VLOOKUP(B95,ProjectMatrix,3,0) -> The configuration of the SAP AMI module and systems integration with other PSE systems to support advanced AMI functionality. Also includes internal and back end work needed for web, mobile and CSR facing systems to support Advanced AMI. Advanced AMI examples include pre-pay, remote disconnect and re-connect and interval and/or TOU billing. | E95: =VLOOKUP(B95,ProjectMatrix,13,0) -> 1Q18 | F95: =VLOOKUP(B95,ProjectMatrix,14,0) -> 4Q18 | G95: =VLOOKUP(B95,'Modified Costs (R) '!ProjectCostMatrix,8,0) -> 0.9 | H95: =VLOOKUP($B95,'Modified Costs (R) '!ProjectCostMatrix,30,0) -> 0 | I95: =VLOOKUP($B95,'Modified Costs (R) '!ProjectCostMatrix,23,0) -> 0 | J95: =VLOOKUP($B95,'Modified Costs (R) '!ProjectCostMatrix,47,0)+VLOOKUP($B95,'Modified Costs (R) '!ProjectCostMatrix,48,0) -> 0 | K95: =SUM(H95:J95)*'Modified Costs (R) '!$C$228 -> 0 | L95: =(H95+I95+G95*J95)*(1+'Modified Costs (R) '!$C$228) -> 0 | M95: =((1-G95)*J95)*(1+'Modified Costs (R) '!$C$228) -> 0 | N95: =SUM(L95:M95) -> 0 | O95: =VLOOKUP($B95,'Modified Costs (R) '!ProjectCostMatrix,35,0) -> 1000000 | P95: =VLOOKUP($B95,'Modified Costs (R) '!ProjectCostMatrix,21,0) -> 0 | Q95: =VLOOKUP($B95,'Modified Costs (R) '!ProjectCostMatrix,42,0) -> XXXXXX | R95: =SUM(O95:Q95)*'Modified Costs (R) '!$C$228 -> 100000 | S95: =(O95+P95+G95*Q95)*(1+'Modified Costs (R) '!$C$228) ->  | T95: =((1-G95)*Q95)*(1+'Modified Costs (R) '!$C$228) ->  | U95: =SUM(S95:T95) ->  | V95: 0
B96: V. Data
B97: DCV-1 | C97: Data Governance | D97: =VLOOKUP(B97,ProjectMatrix,3,0) -> Develop Data Governance framework that includes ongoing data management quality services via identifying people and roles, determining processes and standards, and installing tools to identify, monitor, and prevent data quality issues (including duplication, inconsistency, and incompleteness). | E97: =VLOOKUP(B97,ProjectMatrix,13,0) -> 4Q16 | F97: =VLOOKUP(B97,ProjectMatrix,14,0) -> 2020 | G97: =VLOOKUP(B97,'Modified Costs (R) '!ProjectCostMatrix,8,0) -> 0.25 | H97: =VLOOKUP($B97,'Modified Costs (R) '!ProjectCostMatrix,30,0) -> 0 | I97: =VLOOKUP($B97,'Modified Costs (R) '!ProjectCostMatrix,23,0) -> 0 | J97: =VLOOKUP($B97,'Modified Costs (R) '!ProjectCostMatrix,47,0)+VLOOKUP($B97,'Modified Costs (R) '!ProjectCostMatrix,48,0) -> 1545694.118 | K97: =SUM(H97:J97)*'Modified Costs (R) '!$C$228 -> 154569.4118 | L97: =(H97+I97+G97*J97)*(1+'Modified Costs (R) '!$C$228) -> 425065.8824 | M97: =((1-G97)*J97)*(1+'Modified Costs (R) '!$C$228) -> 1275197.647 | N97: =SUM(L97:M97) -> 1700263.529 | O97: =VLOOKUP($B97,'Modified Costs (R) '!ProjectCostMatrix,35,0) -> 0 | P97: =VLOOKUP($B97,'Modified Costs (R) '!ProjectCostMatrix,21,0) -> 0 | Q97: =VLOOKUP($B97,'Modified Costs (R) '!ProjectCostMatrix,42,0) -> XXXXXX | R97: =SUM(O97:Q97)*'Modified Costs (R) '!$C$228 -> 0 | S97: =(O97+P97+G97*Q97)*(1+'Modified Costs (R) '!$C$228) ->  | T97: =((1-G97)*Q97)*(1+'Modified Costs (R) '!$C$228) ->  | U97: =SUM(S97:T97) ->  | V97: 0 | Y97: Mostly business engagement needed
B98: DCV-2 | C98: Data Quality, Management & Cleanup | D98: Execute on the Data Governance Framework through ownership, cleanup, data management and synchronization, and quality assurance and controls to ensure accuracy and consistency of data across all systems. This will be prioritized based on benefit delivery and/or project timeline. G1- Expand Master Data to include relationship between Customer and Asset. Gives a complete landscape of all customer data in relation to assets. G2- Integration of SAP and GIS providing a Geo-spatial view of work, customers, and assets. Visually representing it on the GIS system. | E98: 1Q17 | F98: 2020 | G98: =VLOOKUP(B98,'Modified Costs (R) '!ProjectCostMatrix,8,0) -> 0.35 | H98: =VLOOKUP($B98,'Modified Costs (R) '!ProjectCostMatrix,30,0) -> 1000000 | I98: =VLOOKUP($B98,'Modified Costs (R) '!ProjectCostMatrix,23,0) -> 1968000 | J98: =VLOOKUP($B98,'Modified Costs (R) '!ProjectCostMatrix,47,0)+VLOOKUP($B98,'Modified Costs (R) '!ProjectCostMatrix,48,0) -> 5994400 | K98: =SUM(H98:J98)*'Modified Costs (R) '!$C$228 -> 896240 | L98: =(H98+I98+G98*J98)*(1+'Modified Costs (R) '!$C$228) -> 5572644 | M98: =((1-G98)*J98)*(1+'Modified Costs (R) '!$C$228) -> 4285996 | N98: 9858640 | O98: =VLOOKUP($B98,'Modified Costs (R) '!ProjectCostMatrix,35,0) -> 1000000 | P98: =VLOOKUP($B98,'Modified Costs (R) '!ProjectCostMatrix,21,0) -> 1968000 | Q98: =VLOOKUP($B98,'Modified Costs (R) '!ProjectCostMatrix,42,0) -> XXXXXX | R98: =SUM(O98:Q98)*'Modified Costs (R) '!$C$228 -> 296800 | S98: =(O98+P98+G98*Q98)*(1+'Modified Costs (R) '!$C$228) ->  | T98: =((1-G98)*Q98)*(1+'Modified Costs (R) '!$C$228) ->  | V98: 0 | Y98: Largest resource impact to IT | Z98: Concern raised - how do we know what is targeted for 2017? Suggest we position 2017 to stand up all of the tools needed across all data programs to keep focus on foundational. Also 2M for HW in 2017 seems way too high for this effort. Suggestion to add separate line item for IT work required to support all efforts and then have this be 2017 focus along with Governance
B99: DCV-3 | C99: Data Analytics | D99: The Data Analytics project provides an enhanced analytics of customer and transactional data for PSE. This will enable the business to gain a better understanding of various customer data points and make data driven decisions. Includes, HADOOP and the transcription of calls converted to text for integration into the "Data Lake". | E99: 4Q16 | F99: 2020 | G99: =VLOOKUP(B99,'Modified Costs (R) '!ProjectCostMatrix,8,0) -> 0.85 | H99: =VLOOKUP($B99,'Modified Costs (R) '!ProjectCostMatrix,30,0) -> 0 | I99: =VLOOKUP($B99,'Modified Costs (R) '!ProjectCostMatrix,23,0) -> 0 | J99: =VLOOKUP($B99,'Modified Costs (R) '!ProjectCostMatrix,47,0)+VLOOKUP($B99,'Modified Costs (R) '!ProjectCostMatrix,48,0) -> 2923670.588 | K99: =SUM(H99:J99)*'Modified Costs (R) '!$C$228 -> 292367.0588 | L99: =(H99+I99+G99*J99)*(1+'Modified Costs (R) '!$C$228) -> 2733632 | M99: =((1-G99)*J99)*(1+'Modified Costs (R) '!$C$228) -> 482405.6471 | N99: 3216037.647 | O99: =VLOOKUP($B99,'Modified Costs (R) '!ProjectCostMatrix,35,0) -> 1000000 | P99: =VLOOKUP($B99,'Modified Costs (R) '!ProjectCostMatrix,21,0) -> 1230000 | Q99: =VLOOKUP($B99,'Modified Costs (R) '!ProjectCostMatrix,42,0) -> XXXXXX | R99: =SUM(O99:Q99)*'Modified Costs (R) '!$C$228 -> 223000 | S99: =(O99+P99+G99*Q99)*(1+'Modified Costs (R) '!$C$228) ->  | T99: =((1-G99)*Q99)*(1+'Modified Costs (R) '!$C$228) ->  | V99: 0
B100: DCI-5 | C100: Customer 360 Data View | D100: The internal capability for PSE to expose the full information of the Customer's data, in a 360 degree data view. This will bring the channels together in an easy visualization. Customer 360 View project will consolidate customer data and interaction with PSE (i.e. billing, payment, call history, lease services, outages, billing inquiries, street light installations, energy efficiency programs, etc.). This will enable the CSR, FSR, Customer, and other authorized PSE employees to have access to the respective data associated with the customer. | E100: 1Q17 | F100: 1Q18 | G100: =VLOOKUP(B100,'Modified Costs (R) '!ProjectCostMatrix,8,0) -> 0.85 | H100: =VLOOKUP($B100,'Modified Costs (R) '!ProjectCostMatrix,30,0) -> 280000 | I100: =VLOOKUP($B100,'Modified Costs (R) '!ProjectCostMatrix,23,0) -> 615000 | J100: =VLOOKUP($B100,'Modified Costs (R) '!ProjectCostMatrix,47,0)+VLOOKUP($B100,'Modified Costs (R) '!ProjectCostMatrix,48,0) -> 2298880 | K100: =SUM(H100:J100)*'Modified Costs (R) '!$C$228 -> 319388 | L100: =(H100+I100+G100*J100)*(1+'Modified Costs (R) '!$C$228) -> 3133952.8 | M100: =((1-G100)*J100)*(1+'Modified Costs (R) '!$C$228) -> 379315.2 | N100: 3513268 | O100: =VLOOKUP($B100,'Modified Costs (R) '!ProjectCostMatrix,35,0) -> 280000 | P100: =VLOOKUP($B100,'Modified Costs (R) '!ProjectCostMatrix,21,0) -> 615000 | Q100: =VLOOKUP($B100,'Modified Costs (R) '!ProjectCostMatrix,42,0) -> XXXXXX | R100: =SUM(O100:Q100)*'Modified Costs (R) '!$C$228 -> 89500 | S100: =(O100+P100+G100*Q100)*(1+'Modified Costs (R) '!$C$228) ->  | T100: =((1-G100)*Q100)*(1+'Modified Costs (R) '!$C$228) ->  | V100: 0
B101: DCI-9A | C101: Rules Engines | D101: BRF+ can be utilzied to create rules based decisions based on specific customer data, which can be used on Mobile, Web, IVR and CSR Channels. For e.g. these rules can enable CSR agents to receive predictive notifications, customer to receive respective alerts on web, mobile, IVR, etc. This project will have overlap with DCI-3 & DCI-13. | E101: 2Q17 | F101: 4Q17 | G101: =VLOOKUP(B101,'Modified Costs (R) '!ProjectCostMatrix,8,0) -> 0.9 | H101: =VLOOKUP($B101,'Modified Costs (R) '!ProjectCostMatrix,30,0) -> 0 | I101: =VLOOKUP($B101,'Modified Costs (R) '!ProjectCostMatrix,23,0) -> 0 | J101: =VLOOKUP($B101,'Modified Costs (R) '!ProjectCostMatrix,47,0)+VLOOKUP($B101,'Modified Costs (R) '!ProjectCostMatrix,48,0) -> 378624 | K101: =SUM(H101:J101)*'Modified Costs (R) '!$C$228 -> 37862.4 | L101: =(H101+I101+G101*J101)*(1+'Modified Costs (R) '!$C$228) -> 374837.76 | M101: =((1-G101)*J101)*(1+'Modified Costs (R) '!$C$228) -> 41648.64 | N101: 416486.4 | O101: =VLOOKUP($B101,'Modified Costs (R) '!ProjectCostMatrix,35,0) -> 0 | P101: =VLOOKUP($B101,'Modified Costs (R) '!ProjectCostMatrix,21,0) -> 0 | Q101: =VLOOKUP($B101,'Modified Costs (R) '!ProjectCostMatrix,42,0) -> XXXXXX | R101: =SUM(O101:Q101)*'Modified Costs (R) '!$C$228 -> 0 | S101: =(O101+P101+G101*Q101)*(1+'Modified Costs (R) '!$C$228) ->  | T101: =((1-G101)*Q101)*(1+'Modified Costs (R) '!$C$228) ->  | V101: 1 | W101: - Needs to shift due to IVR upgrade and enhancement timing. This is not a 2017 effort - needs to move to 2018 at earliest. - Break apart into 2 separate rows: HANA Predictive Engine and BRF+ Rules Engine, so we can manage dates independently. They are different SW products. BRF+ we have in place now, and can use when needed. HANA Pred needs to be purchased and stood up.
B102: DCI-9B | C102: =VLOOKUP(B102,ProjectMatrix,2,0) -> Hana Predictive | D102: =VLOOKUP(B102,ProjectMatrix,3,0) -> HANA Predictive Engine and BRF+ to create rules based on specific customer data, which can be used on Mobile, Web, IVR and CSR Channels. | E102: 2Q18 | F102: 4Q18 | G102: =VLOOKUP(B102,'Modified Costs (R) '!ProjectCostMatrix,8,0) -> 0.9 | H102: =VLOOKUP($B102,'Modified Costs (R) '!ProjectCostMatrix,30,0) -> 0 | I102: =VLOOKUP($B102,'Modified Costs (R) '!ProjectCostMatrix,23,0) -> 0 | J102: =VLOOKUP($B102,'Modified Costs (R) '!ProjectCostMatrix,47,0)+VLOOKUP($B102,'Modified Costs (R) '!ProjectCostMatrix,48,0) -> 0 | K102: =SUM(H102:J102)*'Modified Costs (R) '!$C$228 -> 0 | L102: =(H102+I102+G102*J102)*(1+'Modified Costs (R) '!$C$228) -> 0 | M102: =((1-G102)*J102)*(1+'Modified Costs (R) '!$C$228) -> 0 | N102: 0 | O102: =VLOOKUP($B102,'Modified Costs (R) '!ProjectCostMatrix,35,0) -> 20000 | P102: =VLOOKUP($B102,'Modified Costs (R) '!ProjectCostMatrix,21,0) -> 0 | Q102: =VLOOKUP($B102,'Modified Costs (R) '!ProjectCostMatrix,42,0) -> XXXXXX | R102: =SUM(O102:Q102)*'Modified Costs (R) '!$C$228 -> 2000 | S102: =(O102+P102+G102*Q102)*(1+'Modified Costs (R) '!$C$228) ->  | T102: =((1-G102)*Q102)*(1+'Modified Costs (R) '!$C$228) -> 
B103: DCV-6 | C103: Auto-Categorization of Customer Calls | D103: Technology solution to accurately capture why customers call and reduce duplicate, manual tasks by CSRs. This function will eliminate redundancy in business process, improve data integrity and clearly define the main purpose of each customer interaction based on the agent’s actions. | E103: 1Q17 | F103: 2Q17 | G103: =VLOOKUP(B103,'Modified Costs (R) '!ProjectCostMatrix,8,0) -> 0.85 | H103: =VLOOKUP($B103,'Modified Costs (R) '!ProjectCostMatrix,30,0) -> 40000 | I103: =VLOOKUP($B103,'Modified Costs (R) '!ProjectCostMatrix,23,0) -> 0 | J103: =VLOOKUP($B103,'Modified Costs (R) '!ProjectCostMatrix,47,0)+VLOOKUP($B103,'Modified Costs (R) '!ProjectCostMatrix,48,0) -> 117472 | K103: =SUM(H103:J103)*'Modified Costs (R) '!$C$228 -> 15747.2 | L103: =(H103+I103+G103*J103)*(1+'Modified Costs (R) '!$C$228) -> 153836.32 | M103: =((1-G103)*J103)*(1+'Modified Costs (R) '!$C$228) -> 19382.88 | N103: 173219.2 | O103: =VLOOKUP($B103,'Modified Costs (R) '!ProjectCostMatrix,35,0) -> 40000 | P103: =VLOOKUP($B103,'Modified Costs (R) '!ProjectCostMatrix,21,0) -> 0 | Q103: =VLOOKUP($B103,'Modified Costs (R) '!ProjectCostMatrix,42,0) -> XXXXXX | R103: =SUM(O103:Q103)*'Modified Costs (R) '!$C$228 -> 4000 | S103: =(O103+P103+G103*Q103)*(1+'Modified Costs (R) '!$C$228) ->  | T103: =((1-G103)*Q103)*(1+'Modified Costs (R) '!$C$228) ->  | V103: 1 | W103: Needs to shift due to IVR timing. This is not a 2017 effort - needs to move to 2018 at earliest
B104: Project Total | G104: Total | H104: =SUM(H4:H103) -> 4820000 | I104: 5981500 | J104: 67670112.3 | K104: 7847161.23 | L104: =SUM(L4:L103) -> 69983120.05 | M104: 16335653.48 | N104: 86318773.53 | O104: 17890000 | P104: 10772000 | Q104: 4.5 | R104: 2866200.45
B105: Key
C106: Capabilities Delivered in 2017 | G106: Check | H106: ='Modified Costs (R) '!AD163 -> 6520000 | I106: ='Modified Costs (R) '!W163 -> 5981500 | J106: ='Modified Costs (R) '!AU163+'Modified Costs (R) '!AV163 -> 68518112.3 | K106: =SUM(H106:J106)*'Modified Costs (R) '!C228 -> 8101961.23
N107: =SUM(H106:K106) -> 89121573.53 | O107: ='Modified Costs (R) '!AI163 -> 21790000 | P107: ='Modified Costs (R) '!U163 -> 10772000 | Q107: ='Modified Costs (R) '!AP163 -> XXXXXX | R107: =SUM(O107:Q107)*'Modified Costs (R) '!C228 -> 3256200 | U107: =SUM(O107:R107) -> 35818200
A108: Category Implementation Costs (2016-2020)
A110: Category | H110: 2017 Software | I110: 2017 Hardware | J110: 2017 Services | K110: 2017 Contingency | L110: 2017 Capex | M110: 2017 Opex | N110: 2017 Total | O110: Overall Software | P110: Overall Hardware | Q110: Overall Services | R110: Overall Contingency | S110: Overall Capex | T110: Overall Opex | U110: Overall Total
A111: Program Management and Governance | H111: =SUMIF($A$4:$A$103,$A111,H$4:H$103) -> 0 | I111: 0 | J111: 0 | K111: 0 | L111: 0 | M111: 0 | N111: 0 | O111: 0 | P111: 0 | Q111: 0 | R111: 0 | S111: 0 | T111: 0 | U111: 0
A112: Super 5 - 1) Explain my Bill | H112: 0 | I112: 0 | J112: 0 | K112: 0 | L112: 0 | M112: 0 | N112: 0 | O112: 0 | P112: 0 | Q112: 0 | R112: 0 | S112: 0 | T112: 0 | U112: 0
A113: Super 5 - 2)Pay my Bill | H113: 0 | I113: 0 | J113: 0 | K113: 0 | L113: 0 | M113: 0 | N113: 0 | O113: 0 | P113: 0 | Q113: 0 | R113: 0 | S113: 0 | T113: 0 | U113: 0
A114: Super 5 - 3 )Financial Assistance | H114: 0 | I114: 0 | J114: 0 | K114: 0 | L114: 0 | M114: 0 | N114: 0 | O114: 0 | P114: 0 | Q114: 0 | R114: 0 | S114: 0 | T114: 0 | U114: 0
A115: Super 5 - 4) Unexpected Service Interruption | H115: 0 | I115: 0 | J115: 0 | K115: 0 | L115: 0 | M115: 0 | N115: 0 | O115: 0 | P115: 0 | Q115: 0 | R115: 0 | S115: 0 | T115: 0 | U115: 0
A116: Super 5 - 5) Planned Service Event | H116: 0 | I116: 0 | J116: 0 | K116: 0 | L116: 0 | M116: 0 | N116: 0 | O116: 0 | P116: 0 | Q116: 0 | R116: 0 | S116: 0 | T116: 0 | U116: 0
A117: Digital Core - I. Consistent Cross Channel Experience | H117: 0 | I117: 0 | J117: 0 | K117: 0 | L117: 0 | M117: 0 | N117: 0 | O117: 0 | P117: 0 | Q117: 0 | R117: 0 | S117: 0 | T117: 0 | U117: 0
A118: Digital Core - II. Predictive and guided call center experience | H118: 0 | I118: 0 | J118: 0 | K118: 0 | L118: 0 | M118: 0 | N118: 0 | O118: 0 | P118: 0 | Q118: 0 | R118: 0 | S118: 0 | T118: 0 | U118: 0
A119: Digital Core - III. Integrated Work Management | H119: 0 | I119: 0 | J119: 0 | K119: 0 | L119: 0 | M119: 0 | N119: 0 | O119: 0 | P119: 0 | Q119: 0 | R119: 0 | S119: 0 | T119: 0 | U119: 0
A120: Digital Core - IV. SAP/AMI Advanced Functionality | H120: 0 | I120: 0 | J120: 0 | K120: 0 | L120: 0 | M120: 0 | N120: 0 | O120: 0 | P120: 0 | Q120: 0 | R120: 0 | S120: 0 | T120: 0 | U120: 0
A121: Digital Core - V. Data | H121: 0 | I121: 0 | J121: 0 | K121: 0 | L121: 0 | M121: 0 | N121: 0 | O121: 0 | P121: 0 | Q121: 0 | R121: 0 | S121: 0 | T121: 0 | U121: 0
G122: Total | H122: =SUM(H111:H121) -> 0 | I122: =SUM(I111:I121) -> 0 | J122: 0 | K122: 0 | L122: 0 | M122: 0 | N122: 0 | O122: 0 | P122: 0 | Q122: 0 | R122: 0 | S122: 0 | T122: 0 | U122: 0
A125: Post-Project Implementation Costs (2016-2020)
C127: Description | E127: 2017 | F127: Overall
C128: Software Maintenance Capitalized | E128: ='Modified Costs (R) '!E171*(1+'Modified Costs (R) '!$C$228) -> 770000 | F128: =SUM('Modified Costs (R) '!E171:K171)*(1+'Modified Costs (R) '!$C$228) -> 2204400
C129: Hardware O&M (13%) | E129: ='Modified Costs (R) '!F178 -> 0 | F129: =SUM('Modified Costs (R) '!F178:L178) -> 1120405
C130: Software O&M (20%) | E130: ='Modified Costs (R) '!F179 -> 0 | F130: =SUM('Modified Costs (R) '!F179:L179) -> 2004000
C131: Addition PSE staffing O&M (5%) | E131: ='Modified Costs (R) '!F181 -> 391878.0679 | F131: =SUM('Modified Costs (R) '!F181:L181) -> 3012513.293
C132: Total | E132: =SUM(E128:E131) -> 1161878.068 | F132: =SUM(F128:F131) -> 8341318.293
C134: Total Costs | E134: =E132+N104 -> 87480651.59 | F134: =F132+U107 -> 44159518.29
E136: Pie Charts
F138: 2017
E139: Category | F139: Total | G139: Capex
E140: Software | F140: =K122 -> 0
E141: Hardware | F141: =L122 -> 0
E142: Services | F142: =M122 -> 0
E143: Contingency | F143: =N122 -> 0
E144: Total | F144: =SUM(F140:F143) -> 0

Sheet CSA Table (R)
A1: GTZ Roadmap & Cost Summary
A2: ID | B2: Project | C2: Description | D2: Start Date | E2: End Date | F2: Services Capex Ratio | G2: 2017 Software | H2: 2017 Hardware | I2: 2017 Services | J2: 2017 Contingency | K2: 2017 Capex | L2: 2017 Opex | M2: 2017 Total | N2: Overall Software | O2: Overall Hardware | P2: Overall Services | Q2: Overall Contingency | R2: Overall Capex | S2: Overall Opex | T2: Overall Total | W2: 2500000
A3: Program Management and Governance | V3: Multi-Year? | W3: >$2.5 Million
A4: PM-1 | B4: Program Management | C4: Funding of PMO resources to fully staff required roles with competent and qualified resources. Training and on-boarding will occur as necessary and performance plans, performance management and coaching/mentoring will be standard activities. (includes Cost Center Costs) | D4: 3Q16 | E4: 2020 | F4: 0.9 | G4: 0 | H4: 0 | I4: 4573297.778 | J4: 457329.7778 | K4: 4527564.8 | L4: 503062.7556 | M4: XXXXXXXX | N4: XXXXXXXX | O4: XXXXXXXX | P4: XXXXXXXX | Q4: XXXXXXXX | R4: XXXXXXXX | S4: XXXXXXXX | T4: XXXXXXXX | V4: 0 | W4: 1 | X4: 1
A5: PM-2 | B5: Organization Change Management & Customer Communications strategy | C5: The capability to support change within the business and to our customers. Includes: - Stakeholder identification - Program-wide OCM strategy - Training plan - Communications strategy (internal and external) - On-going change assessments and analyses | D5: 1Q17 | E5: 2020 | F5: 0.3 | G5: 0 | H5: 0 | I5: 3596640 | J5: 359664 | K5: 1186891.2 | L5: 2769412.8 | M5: XXXXXXXX | N5: XXXXXXXX | O5: XXXXXXXX | P5: XXXXXXXX | Q5: XXXXXXXX | R5: XXXXXXXX | S5: XXXXXXXX | T5: XXXXXXXX | V5: 1 | W5: 1 | X5: 1
A6: PM-3 | B6: Customer rollout - communications execution | C6: External communication and marketing to customers as capabilities become enabled through the GTZ project plan. Strategy developed as part of PM-2. | D6: 1Q17 | E6: 2020 | F6: 0 | G6: 0 | H6: 0 | I6: 0 | J6: 0 | K6: 0 | L6: 0 | M6: XXXXXXXX | N6: XXXXXXXX | O6: XXXXXXXX | P6: XXXXXXXX | Q6: XXXXXXXX | R6: XXXXXXXX | S6: XXXXXXXX | T6: XXXXXXXX | V6: 1 | W6: 0 | X6: 1
A7: PM-4 | B7: GTZ Benefits & Balance Scorecard | C7: Creating the dashboard to capture the GTZ benefits realization & balance scorecard | D7: 1Q17 | E7: 2020 | F7: 0 | G7: 0 | H7: 0 | I7: 449580 | J7: 44958 | K7: 0 | L7: 494538 | M7: XXXXXXXX | N7: XXXXXXXX | O7: XXXXXXXX | P7: XXXXXXXX | Q7: XXXXXXXX | R7: XXXXXXXX | S7: XXXXXXXX | T7: XXXXXXXX | V7: 1 | W7: 0 | X7: 1
A8: PM-5 | B8: Regulatory Work stream | C8: Regulatory Support: GTZ to continuously work with Regulatory, compliance and other governing organization like the WA State Department of Commerce. GTZ team will have to complete the research to provide supporting materials to regulatory departments. Potential areas of change are payment arrangements, budget payments, disconnect notice delivery method, increase disconnect fee, deposit collection in the field, SSN for account setup and collections, correspondence changes for self-service, and Bill Payment Assistance for Low Income Customers. | D8: 1Q17 | E8: 2020 | F8: 0 | G8: 0 | H8: 0 | I8: 59944 | J8: 5994.4 | K8: 0 | L8: 65938.4 | M8: XXXXXXXX | N8: XXXXXXXX | O8: XXXXXXXX | P8: XXXXXXXX | Q8: XXXXXXXX | R8: XXXXXXXX | S8: XXXXXXXX | T8: XXXXXXXX | V8: 1 | W8: 0 | X8: 1
A9: PM-6 | B9: Program Mobilization and Planning | C9: This includes the funding and resources for the GTZ program initiation. | D9: 4Q16 | E9: 2Q17 | F9: 0 | G9: 0 | H9: 0 | I9: 841386.6667 | J9: 84138.66667 | K9: 0 | L9: 925525.3333 | M9: XXXXXXXX | N9: XXXXXXXX | O9: XXXXXXXX | P9: XXXXXXXX | Q9: XXXXXXXX | R9: XXXXXXXX | S9: XXXXXXXX | T9: XXXXXXXX | V9: 0 | W9: 0 | X9: 0
A10: PM-8 | B10: Customer Experience Journey Mapping | C10: Stand-up internal journey mapping capability. | D10: 1Q17 | E10: 2020 | F10: 0 | G10: 0 | H10: 0 | I10: 209804 | J10: 20980.4 | K10: 0 | L10: 230784.4 | M10: XXXXXXXX | N10: XXXXXXXX | O10: XXXXXXXX | P10: XXXXXXXX | Q10: XXXXXXXX | R10: XXXXXXXX | S10: XXXXXXXX | T10: XXXXXXXX | V10: 1 | W10: 0 | X10: 1
A11: Super 5 | W11: 0
A12: 1) Explain my Bill | W12: 0
A13: S1-2 | B13: Bill Code Enhancement CSA - Phase 2 | C13: Identify accurate description of the Miscellaneous Adjustments (MA) on residential & collective accounts bills for approximately 18 scenarios. Missing or unclear information on bills Decrease cost of postage due to the number of bill pages and resolve overage print charges received System checks to prevent inaccurate data being entered into fields (converting free form to drop-down menus) for non-consumption and SAP Sales and Distribution (SD) charges created by employees | D13: 2Q16 | E13: 2Q17 | F13: 0.9 | G13: 0 | H13: 0 | I13: 258624 | J13: 25862.4 | K13: 256037.76 | L13: 28448.64 | M13: XXXXXXXX | N13: XXXXXXXX | O13: XXXXXXXX | P13: XXXXXXXX | Q13: XXXXXXXX | R13: XXXXXXXX | S13: XXXXXXXX | T13: XXXXXXXX | V13: 0 | W13: 0 | X13: 0
A14: S1-3 | B14: Full realization of Energy Usage across Digital Core | C14: Refine Billing and Usage Process to utilize Digital Core capabilities and develop business and functional requirements for implementation by DC team. Thereby provide consistent Billing Explanation experience across all customer facing channels as well as enabling CSR. | D14: 1Q17 | E14: 4Q18 | F14: 0.9 | G14: 0 | H14: 0 | I14: 169888 | J14: 16988.8 | K14: 168189.12 | L14: 18687.68 | M14: XXXXXXXX | N14: XXXXXXXX | O14: XXXXXXXX | P14: XXXXXXXX | Q14: XXXXXXXX | R14: XXXXXXXX | S14: XXXXXXXX | T14: XXXXXXXX | V14: 1 | W14: 0 | X14: 1
A15: S1-4 | B15: Full realization of energy efficiency across Digital Core | C15: Linking EE systems to the digital core (NEXANT, OPower, SAP and others). Customer is proactively notified of high usage through preferred channel and are directed to self service resource that identifies specific areas whereby customer can become more energy and cost efficient. Specifically, late paying customers are directly marketed to based on channel preferences with regard to energy efficiency / savings opportunities. Provide API for residential and business customers to pull PSE energy usage date into the system of their choice? | D15: 1Q17 | E15: 4Q18 | F15: 0.9 | G15: 0 | H15: 0 | I15: 1061800 | J15: 106180 | K15: 1051182 | L15: 116798 | M15: XXXXXXXX | N15: XXXXXXXX | O15: XXXXXXXX | P15: XXXXXXXX | Q15: XXXXXXXX | R15: XXXXXXXX | S15: XXXXXXXX | T15: XXXXXXXX | V15: 1 | W15: 0 | X15: 1
A16: 2)Pay my Bill | W16: 0
A17: S2-1 | B17: No Fee Bank Card | C17: This project was identified as a result of the Billing and Payment Roadmap completion in April and UTC’s approval of the no fee bank card processing on 3/26/2016. This project is addressing the Bill Matrix payment channel that processes 1.2 million transactions annually. The forecast is to grow this channel 64% to 2.2 million transactions the first year. The no-fee bank card processing capabilities completion by August 2016 is included in Docket UE-160203 and Docket UG-160204 order 01 Granting the Amended Accounting Petition, which includes rate recover of the fee-free payment program. | D17: 2Q16 | E17: 3Q16 | F17: 0.9 | G17: 0 | H17: 0 | I17: 0 | J17: 0 | K17: 0 | L17: 0 | M17: XXXXXXXX | N17: XXXXXXXX | O17: XXXXXXXX | P17: XXXXXXXX | Q17: XXXXXXXX | R17: XXXXXXXX | S17: XXXXXXXX | T17: XXXXXXXX | V17: 0 | W17: 0 | X17: 0
A18: S2-2 | B18: Billing Performance Improvements | C18: Reduce the number of billing exceptions from 22,000 per year to approximately 7,000 EMMA Cases and correct within the new 60 day billing rule. There are management processes, training along with Metering and SAP system enhancements required to achieve this goal. | D18: 2Q16 | E18: 4Q16 | F18: 0.9 | G18: 0 | H18: 0 | I18: 0 | J18: 0 | K18: 0 | L18: 0 | M18: XXXXXXXX | N18: XXXXXXXX | O18: XXXXXXXX | P18: XXXXXXXX | Q18: XXXXXXXX | R18: XXXXXXXX | S18: XXXXXXXX | T18: XXXXXXXX | V18: 0 | W18: 0 | X18: 0
A19: S2-3 | B19: Bill Due Reminder | C19: Provide a notification to users who have not paid or scheduled a payment within 5 days of their due date that their payment date is approaching, along with a prompt to pay now for Fiserv customers. | D19: 2Q16 | E19: 3Q16 | F19: 0.9 | G19: 0 | H19: 0 | I19: 0 | J19: 0 | K19: 0 | L19: 0 | M19: XXXXXXXX | N19: XXXXXXXX | O19: XXXXXXXX | P19: XXXXXXXX | Q19: XXXXXXXX | R19: XXXXXXXX | S19: XXXXXXXX | T19: XXXXXXXX | V19: 0 | W19: 0 | X19: 0
A20: S2-4 | B20: Fiserv Balance | C20: Display a real time balance, explanation of type of account (active or closed) and remove closed accounts if they are paid in full through the Bank Withdrawal Pay Page through FISERV. | D20: 2Q16 | E20: 3Q16 | F20: 0.9 | G20: 0 | H20: 0 | I20: 0 | J20: 0 | K20: 0 | L20: 0 | M20: XXXXXXXX | N20: XXXXXXXX | O20: XXXXXXXX | P20: XXXXXXXX | Q20: XXXXXXXX | R20: XXXXXXXX | S20: XXXXXXXX | T20: XXXXXXXX | V20: 0 | W20: 0 | X20: 0
A21: S2-5 | B21: Non Consumption Billing | C21: Enhance the SAP system and automate the process to provide a comprehensive billing experience for customers who receive, make payment and collections for non-consumption bills. | D21: 4Q17 | E21: 1Q18 | F21: 0.9 | G21: 0 | H21: 0 | I21: 264312 | J21: 26431.2 | K21: 261668.88 | L21: 29074.32 | M21: XXXXXXXX | N21: XXXXXXXX | O21: XXXXXXXX | P21: XXXXXXXX | Q21: XXXXXXXX | R21: XXXXXXXX | S21: XXXXXXXX | T21: XXXXXXXX | V21: 1 | W21: 0 | X21: 1
A22: S2-6 | B22: Customer Pre-payment (incl real time presentment, bill on-demand) | C22: The customer will have the ability to pre-pay their energy bill, ensuring they are always within their budget. | D22: 2Q18 | E22: 1Q19 | F22: 0.9 | G22: 0 | H22: 0 | I22: 0 | J22: 0 | K22: 0 | L22: 0 | M22: XXXXXXXX | N22: XXXXXXXX | O22: XXXXXXXX | P22: XXXXXXXX | Q22: XXXXXXXX | R22: XXXXXXXX | S22: XXXXXXXX | T22: XXXXXXXX | V22: 0 | W22: 0 | X22: 0
A23: S2-7 | B23: Billing and Payment Improvement (M2C) | C23: SAP changes to support Billing Exception Processing, payment arrangement, budget billing, installment and deposit plans. Business Rule changes to optimize the meter to cash process within SAP Quality Control Dashboards from source information | D23: 1Q17 | E23: 4Q17 | F23: 0.9 | G23: 0 | H23: 0 | I23: 472304 | J23: 47230.4 | K23: 467580.96 | L23: 51953.44 | M23: XXXXXXXX | N23: XXXXXXXX | O23: XXXXXXXX | P23: XXXXXXXX | Q23: XXXXXXXX | R23: XXXXXXXX | S23: XXXXXXXX | T23: XXXXXXXX | V23: 0 | W23: 0 | X23: 0
A24: S2-8 | B24: Enable Digital Billing and Payment Capabilities (Mobile, IVR, Web) | C24: Billing and Payment transactions via all self serve channels Decommission and Convert customers from previous provider service Consolidated Bills for Customers Customer Notification Preference E-wallet for customer bank card - reoccurring payments Payment History Clarity | D24: 1Q17 | E24: 4Q17 | F24: 0.9 | G24: 0 | H24: 369000 | I24: 1484384 | J24: 185338.4 | K24: 1875440.16 | L24: 163282.24 | M24: XXXXXXXX | N24: XXXXXXXX | O24: XXXXXXXX | P24: XXXXXXXX | Q24: XXXXXXXX | R24: XXXXXXXX | S24: XXXXXXXX | T24: XXXXXXXX | V24: 0 | W24: 0 | X24: 0
A25: S2-9 | B25: Faster Pmt Posting | C25: Posting the payment to the customer account in real time from the Customer and Field Collections workforce mobility | D25: 1Q17 | E25: 4Q17 | F25: 0.9 | G25: 0 | H25: 0 | I25: 674720 | J25: 67472 | K25: 667972.8 | L25: 74219.2 | M25: XXXXXXXX | N25: XXXXXXXX | O25: XXXXXXXX | P25: XXXXXXXX | Q25: XXXXXXXX | R25: XXXXXXXX | S25: XXXXXXXX | T25: XXXXXXXX | V25: 0 | W25: 0 | X25: 0
A26: S2-10 | B26: Full realization of bill and make / manage payment across Digital Core | C26: Refine Billing and Payment processes to utilize Digital Core capabilities and develop business and functional requirements for implementation by DC team. Thereby providing consistent Billing and Payment experiences across all customer facing channels as well as enabling CSR. | D26: 1Q17 | E26: 4Q17 | F26: 0.9 | G26: 0 | H26: 0 | I26: 337360 | J26: 33736 | K26: 333986.4 | L26: 37109.6 | M26: XXXXXXXX | N26: XXXXXXXX | O26: XXXXXXXX | P26: XXXXXXXX | Q26: XXXXXXXX | R26: XXXXXXXX | S26: XXXXXXXX | T26: XXXXXXXX | V26: 0 | W26: 0 | X26: 0
A27: 3 )Financial Assistance | W27: 0
A28: S3-1 | B28: TSI Dunning | C28: The “TSI–Dunning” Project will implement a behavioral scoring software solution purchased from Total Solutions Inc. (“TSI”) leveraging a vendor-hosted strategy. This will result in eliminating the customers who have a high propensity to pay although late. The actual customers who are likely not to pay are acted upon in the collection process immediately. | D28: 2Q16 | E28: 2Q16 | F28: 0.9 | G28: 0 | H28: 0 | I28: 0 | J28: 0 | K28: 0 | L28: 0 | M28: XXXXXXXX | N28: XXXXXXXX | O28: XXXXXXXX | P28: XXXXXXXX | Q28: XXXXXXXX | R28: XXXXXXXX | S28: XXXXXXXX | T28: XXXXXXXX | V28: 0 | W28: 0 | X28: 0
A29: S3-2 | B29: Payment Arrangement/Budget/Deposit | C29: Auto -Payment Arrangement/Budget/Deposit via all self serve channels - This includes account set-up requirements and management of account changes. This will allow PSE to leverage SSN's with Experian and TSI to determine deposit requirements. | D29: 2Q17 | E29: 1Q18 | F29: 0.9 | G29: 0 | H29: 0 | I29: 1163892 | J29: 116389.2 | K29: 1152253.08 | L29: 128028.12 | M29: XXXXXXXX | N29: XXXXXXXX | O29: XXXXXXXX | P29: XXXXXXXX | Q29: XXXXXXXX | R29: XXXXXXXX | S29: XXXXXXXX | T29: XXXXXXXX | V29: 1 | W29: 0 | X29: 1
A30: S3-3 | B30: Collection Cycle Improvement & Agency Integration | C30: Expedite Collection activities and payment application (reduce cycle time from 111 days to 45 days) and integration with the collection agencies. | D30: 1Q17 | E30: 4Q17 | F30: 0.9 | G30: 0 | H30: 0 | I30: 728697.6 | J30: 72869.76 | K30: 721410.624 | L30: 80156.736 | M30: XXXXXXXX | N30: XXXXXXXX | O30: XXXXXXXX | P30: XXXXXXXX | Q30: XXXXXXXX | R30: XXXXXXXX | S30: XXXXXXXX | T30: XXXXXXXX | V30: 0 | W30: 0 | X30: 0
A31: S3-4 | B31: Full realization across Digital Core | C31: Refine Financial Assistance processes to utilize Digital Core capabilities and develop business and functional requirements for implementation by Digital Core team. Thereby provide consistent experience across all customer facing channels, as well as enabling CSR for customer propensity to pay, budgeting, arrangements and C&C | D31: 3Q17 | E31: 4Q18 | F31: 0.9 | G31: 0 | H31: 61500 | I31: 101610.6667 | J31: 16311.06667 | K31: 168244.56 | L31: 11177.17333 | M31: XXXXXXXX | N31: XXXXXXXX | O31: XXXXXXXX | P31: XXXXXXXX | Q31: XXXXXXXX | R31: XXXXXXXX | S31: XXXXXXXX | T31: XXXXXXXX | V31: 1 | W31: 0 | X31: 1
A32: S3-5 | B32: Energy Assistance (Low Income) | C32: Improve Customer Access to Low Income Funds (LIHEAP, PSE HELP and WARM funds) along with timely Application of Customer Pledge Credits to Active Accounts. This real-time integration with the agencies enables on-line customer scheduling, application and status checking. There is also a data component to identify candidate customers who may qualify for bill payment assistance, performance of the agencies and relationship between low income customers and delinquency. | D32: 4Q16 | E32: 4Q17 | F32: 0.9 | G32: 0 | H32: 0 | I32: 1149440 | J32: 114944 | K32: 1137945.6 | L32: 126438.4 | M32: XXXXXXXX | N32: XXXXXXXX | O32: XXXXXXXX | P32: XXXXXXXX | Q32: XXXXXXXX | R32: XXXXXXXX | S32: XXXXXXXX | T32: XXXXXXXX | V32: 0 | W32: 0 | X32: 0
A33: S3-6 | B33: Full realization of leveraging low energy assistance programs across Digital Core | C33: Refine Energy Assistance Programs to utilize Digital Core capabilities and develop business and functional requirements for implementation by Digital Core team. Thereby provide consistent experience across all customer facing channels, as well as enabling CSR for customer propensity to pay, budgeting, arrangements and C&C | D33: 3Q17 | E33: 4Q18 | F33: 0.9 | G33: 0 | H33: 61500 | I33: 101610.6667 | J33: 16311.06667 | K33: 168244.56 | L33: 11177.17333 | M33: XXXXXXXX | N33: XXXXXXXX | O33: XXXXXXXX | P33: XXXXXXXX | Q33: XXXXXXXX | R33: XXXXXXXX | S33: XXXXXXXX | T33: XXXXXXXX | V33: 1 | W33: 0 | X33: 1
A34: 4) Unexpected Service Interruption | W34: 0
A35: S4-1 | B35: Manage Outage Orders | C35: Outage orders captured from initiation to resolution presented to the customer across all channels. This would be the process of designing the UX for outage management (planned and unplanned) for all channels. It would include the user flow for submission of outages as well as what notifications customers ideally want, what kind of updates and how often, etc. this would be part of the Customer Experience Design project. This should occur before providing interim solutions that could fall short of customer expectations and erode trust. A process and tools to create and execute proactive outage notifications to customers across all applicable channels. The channel and type of outage notification will be maintained through "Manage Outage Preferences" (Preference Center DCI-7). Physical comm to customers will be via Comm Gateway service (DCI-8) | D35: 2Q17 | E35: 1Q18 | F35: 0.9 | G35: 0 | H35: 246000 | I35: 759060 | J35: 100506 | K35: 1022069.4 | L35: 83496.6 | M35: XXXXXXXX | N35: XXXXXXXX | O35: XXXXXXXX | P35: XXXXXXXX | Q35: XXXXXXXX | R35: XXXXXXXX | S35: XXXXXXXX | T35: XXXXXXXX | V35: 1 | W35: 0 | X35: 1
A36: S4-2 | B36: SAP Mutli Channel Foundation for Utilities (MCF) | C36: Develop new description with Joe | D36: 3Q16 | E36: 4Q16 | F36: 0.9 | G36: 0 | H36: 0 | I36: 0 | J36: 0 | K36: 0 | L36: 0 | M36: XXXXXXXX | N36: XXXXXXXX | O36: XXXXXXXX | P36: XXXXXXXX | Q36: XXXXXXXX | R36: XXXXXXXX | S36: XXXXXXXX | T36: XXXXXXXX | V36: 0 | W36: 0 | X36: 0
A37: S4-3 | B37: P15 - OMS-AMI (Outage Support) | C37: To interface AMI meter exception data (power on / power off messages) with the Electric Operations OMS to augment the outage prediction models in OMS. To proactively manage communication to AMI enabled customers regarding outage occurrences and restoration. | D37: 4Q19 | E37: 2020 | F37: 0.9 | G37: 0 | H37: 0 | I37: 0 | J37: 0 | K37: 0 | L37: 0 | M37: XXXXXXXX | N37: XXXXXXXX | O37: XXXXXXXX | P37: XXXXXXXX | Q37: XXXXXXXX | R37: XXXXXXXX | S37: XXXXXXXX | T37: XXXXXXXX | V37: 0 | W37: 0 | X37: 0
A38: S4-4 | B38: P1 - AMR to OMS Integration | C38: Integration of residential electric meter "last gasp" indications though the AMR MDMS system with the Power On Outage Management system to provide indication of power outage to a meter and groupings of meters. | D38: 3Q16 | E38: 4Q16 | F38: 1 | G38: 0 | H38: 0 | I38: 0 | J38: 0 | K38: 0 | L38: 0 | M38: XXXXXXXX | N38: XXXXXXXX | O38: XXXXXXXX | P38: XXXXXXXX | Q38: XXXXXXXX | R38: XXXXXXXX | S38: XXXXXXXX | T38: XXXXXXXX | V38: 0 | W38: 0 | X38: 0
A39: S4-5 | B39: Full realization of outage and restoration across Digital Core | C39: Refine Outage and Restoration Process to utilize Digital Core capabilities and develop business and functional requirements for implementation by Digital Core team. Thereby provide consistent experience across all customer facing channels, as well as enabling CSR for customer propensity to pay, budgeting, arrangements and C&C. | D39: 1Q17 | E39: 4Q18 | F39: 0.9 | G39: 0 | H39: 246000 | I39: 169888 | J39: 41588.8 | K39: 438789.12 | L39: 18687.68 | M39: XXXXXXXX | N39: XXXXXXXX | O39: XXXXXXXX | P39: XXXXXXXX | Q39: XXXXXXXX | R39: XXXXXXXX | S39: XXXXXXXX | T39: XXXXXXXX | V39: 1 | W39: 0 | X39: 1
A40: S4-6 | B40: Full realization of street light across Digital Core | C40: Refine Street Light processes to utilize Digital Core capabilities and develop business and functional requirements for implementation by Digital Core team. Thereby provide consistent experience across all customer facing channels, as well as enabling CSR. 1. Automate Street Light Request 2. Street Light Online Reporting Sys. 3. GIS Updates 4. Street Light Outage Map | D40: 2020 | E40: 2020 | F40: 0.9 | G40: 0 | H40: 0 | I40: 0 | J40: 0 | K40: 0 | L40: 0 | M40: XXXXXXXX | N40: XXXXXXXX | O40: XXXXXXXX | P40: XXXXXXXX | Q40: XXXXXXXX | R40: XXXXXXXX | S40: XXXXXXXX | T40: XXXXXXXX | V40: 0 | W40: 0 | X40: 0
A41: 5) Planned Service Event | W41: 0
A42: S5-1 | B42: Self Service for customer, ability to add additional authorized user | C42: A self service process that allows the customer to add an authorized user to their account. | D42: 4Q17 | E42: 1Q18 | F42: 0.9 | G42: 0 | H42: 0 | I42: 146840 | J42: 14684 | K42: 145371.6 | L42: 16152.4 | M42: XXXXXXXX | N42: XXXXXXXX | O42: XXXXXXXX | P42: XXXXXXXX | Q42: XXXXXXXX | R42: XXXXXXXX | S42: XXXXXXXX | T42: XXXXXXXX | V42: 1 | W42: 0 | X42: 1
A43: S5-3 | B43: Manage Account(s) and Profile | C43: A self service process for a new customer to create, manage and setup an account online - the integration aspect with SAP data must also be considered | D43: 1Q17 | E43: 1Q18 | F43: 0.9 | G43: 0 | H43: 0 | I43: 287360 | J43: 28736 | K43: 284486.4 | L43: 31609.6 | M43: XXXXXXXX | N43: XXXXXXXX | O43: XXXXXXXX | P43: XXXXXXXX | Q43: XXXXXXXX | R43: XXXXXXXX | S43: XXXXXXXX | T43: XXXXXXXX | V43: 1 | W43: 0 | X43: 1
A44: S5-4 | B44: Stop, Start, and Transfer for property managers and business customer | C44: The Start Stop Transfer project delivered a new self service web experience focused on residential customers. Commercial accounts and landlords have complexities that could not be addressed in the original project but would mitigate additional call volume. | D44: 3Q17 | E44: 1Q18 | F44: 0.9 | G44: 0 | H44: 0 | I44: 210346.6667 | J44: 21034.66667 | K44: 208243.2 | L44: 23138.13333 | M44: XXXXXXXX | N44: XXXXXXXX | O44: XXXXXXXX | P44: XXXXXXXX | Q44: XXXXXXXX | R44: XXXXXXXX | S44: XXXXXXXX | T44: XXXXXXXX | V44: 1 | W44: 0 | X44: 1
A45: S5-6 | B45: Full realization SST across Digital Core | C45: Refine Start, Stop and Transfer processes to utilize Digital Core capabilities and develop business and functional requirements for implementation by Digital Core team. Thereby provide consistent experience across all customer facing channels, as well as enabling CSR for Start, Stop and Transfer. | D45: 1Q17 | E45: 4Q18 | F45: 0.9 | G45: 0 | H45: 123000 | I45: 169888 | J45: 29288.8 | K45: 303489.12 | L45: 18687.68 | M45: XXXXXXXX | N45: XXXXXXXX | O45: XXXXXXXX | P45: XXXXXXXX | Q45: XXXXXXXX | R45: XXXXXXXX | S45: XXXXXXXX | T45: XXXXXXXX | V45: 1 | W45: 0 | X45: 1
A46: S5-7 | B46: Create/Change Service Orders | C46: A self service process for customers to create (schedule) and change service order requests through pse.com. Will include access to multiple types of services including appliance service, re-lights, etc. This is the web front end work for project DCIII-9 (P8). | D46: 3Q17 | E46: 1Q18 | F46: 0.9 | G46: 0 | H46: 0 | I46: 631040 | J46: 63104 | K46: 624729.6 | L46: 69414.4 | M46: XXXXXXXX | N46: XXXXXXXX | O46: XXXXXXXX | P46: XXXXXXXX | Q46: XXXXXXXX | R46: XXXXXXXX | S46: XXXXXXXX | T46: XXXXXXXX | V46: 1 | W46: 0 | X46: 1
A47: S5-8 | B47: Remote Disconnect/Reconnect (Elec. only) for service/construction | C47: PSE will utilize AMI technology to allow for self service remote disconnect/reconnect for electric customers for service/construction - across all digital channels. | D47: 1Q19 | E47: 4Q19 | F47: 0.9 | G47: 0 | H47: 0 | I47: 0 | J47: 0 | K47: 0 | L47: 0 | M47: XXXXXXXX | N47: XXXXXXXX | O47: XXXXXXXX | P47: XXXXXXXX | Q47: XXXXXXXX | R47: XXXXXXXX | S47: XXXXXXXX | T47: XXXXXXXX | V47: 0 | W47: 0 | X47: 0
A48: S5-9 | B48: Customer self-service scheduling process | C48: Implementing the PSE process to support customer self service and the ability for customers to schedule their service with PSE online with updates on their request status. | D48: 2Q18 | E48: 4Q18 | F48: 0.9 | G48: 0 | H48: 0 | I48: 0 | J48: 0 | K48: 0 | L48: 0 | M48: XXXXXXXX | N48: XXXXXXXX | O48: XXXXXXXX | P48: XXXXXXXX | Q48: XXXXXXXX | R48: XXXXXXXX | S48: XXXXXXXX | T48: XXXXXXXX | V48: 0 | W48: 0 | X48: 0
A49: S5-10 | B49: Full realization make and manage service orders across Digital Core | C49: Refine Make and Manage Service Order processes to utilize Digital Core capabilities and develop business and functional requirements for implementation by Digital Core team. Thereby provide consistent experience across all customer facing channels, as well as enabling CSR for Make and Manage Service Order. | D49: 1Q17 | E49: 4Q18 | F49: 0.9 | G49: 0 | H49: 61500 | I49: 169888 | J49: 23138.8 | K49: 235839.12 | L49: 18687.68 | M49: XXXXXXXX | N49: XXXXXXXX | O49: XXXXXXXX | P49: XXXXXXXX | Q49: XXXXXXXX | R49: XXXXXXXX | S49: XXXXXXXX | T49: XXXXXXXX | V49: 1 | W49: 0 | X49: 1
A50: S5-11 | B50: Remote Disconnect/Reconnect for Payment (Elec. only) | C50: PSE will utilize AMI technology to allow for remote disconnect/reconnect for delinquent electric customers. This will eliminate 205,000 truck rolls to either disconnect and/or collect overdue bills in the field. There are another 55,000 truck rolls eliminated for re-connect in the field. | D50: 3Q18 | E50: 2Q19 | F50: 0.9 | G50: 0 | H50: 0 | I50: 0 | J50: 0 | K50: 0 | L50: 0 | M50: XXXXXXXX | N50: XXXXXXXX | O50: XXXXXXXX | P50: XXXXXXXX | Q50: XXXXXXXX | R50: XXXXXXXX | S50: XXXXXXXX | T50: XXXXXXXX | V50: 0 | W50: 0 | X50: 0
A51: S5-12 | B51: Full realization dis(re)connect across Digital Core | C51: Refine Disconnect and Reconnect processes to utilize Digital Core capabilities and develop business and functional requirements for implementation by Digital Core team. Thereby provide consistent experience across all customer facing channels, as well as enabling CSR for Make and Manage Service Order. | D51: 1Q17 | E51: 4Q18 | F51: 0.9 | G51: 0 | H51: 0 | I51: 169888 | J51: 16988.8 | K51: 168189.12 | L51: 18687.68 | M51: XXXXXXXX | N51: XXXXXXXX | O51: XXXXXXXX | P51: XXXXXXXX | Q51: XXXXXXXX | R51: XXXXXXXX | S51: XXXXXXXX | T51: XXXXXXXX | V51: 1 | W51: 0 | X51: 1
A52: S5-13 | B52: Manage Services & Products e.g. Leasing | C52: A PSE customer can utilize self service options for information pertaining to all of their services with PSE in one place. | D52: 1Q19 | E52: 2Q19 | F52: 0.9 | G52: 0 | H52: 0 | I52: 0 | J52: 0 | K52: 0 | L52: 0 | M52: XXXXXXXX | N52: XXXXXXXX | O52: XXXXXXXX | P52: XXXXXXXX | Q52: XXXXXXXX | R52: XXXXXXXX | S52: XXXXXXXX | T52: XXXXXXXX | V52: 0 | W52: 0 | X52: 0
A53: S5-14 | B53: Manage Energy Efficiency programs | C53: A PSE customer can utilize self service options for information pertaining to all of their EE services with PSE in one place. | D53: 2Q16 | E53: 3Q16 | F53: 0.9 | G53: 0 | H53: 0 | I53: 0 | J53: 0 | K53: 0 | L53: 0 | M53: XXXXXXXX | N53: XXXXXXXX | O53: XXXXXXXX | P53: XXXXXXXX | Q53: XXXXXXXX | R53: XXXXXXXX | S53: XXXXXXXX | T53: XXXXXXXX | V53: 0 | W53: 0 | X53: 0
A54: S5-15 | B54: Intelligent migration of web content (learn about PSE and community) | C54: Migration of PSE.com static content to the new web platform in a more user-friendly format. | D54: 4Q17 | E54: 1Q18 | F54: 0.9 | G54: 0 | H54: 0 | I54: 146840 | J54: 14684 | K54: 145371.6 | L54: 16152.4 | M54: XXXXXXXX | N54: XXXXXXXX | O54: XXXXXXXX | P54: XXXXXXXX | Q54: XXXXXXXX | R54: XXXXXXXX | S54: XXXXXXXX | T54: XXXXXXXX | V54: 1 | W54: 0 | X54: 1
A55: S5-16 | B55: Veg. Management Online Reporting Sys. | C55: A Self service guided process for customers to submit vegetation management concerns. This will include the back-end process development as well as the technology interface between the veg. management group and the customer. | D55: 1Q19 | E55: 2Q19 | F55: 0.9 | G55: 0 | H55: 0 | I55: 0 | J55: 0 | K55: 0 | L55: 0 | M55: XXXXXXXX | N55: XXXXXXXX | O55: XXXXXXXX | P55: XXXXXXXX | Q55: XXXXXXXX | R55: XXXXXXXX | S55: XXXXXXXX | T55: XXXXXXXX | V55: 0 | W55: 0 | X55: 0
A56: S5-17 | B56: Full realization of customer services across Digital Core | C56: Alignment with digital core's foundational capabilities. | D56: 1Q17 | E56: 4Q18 | F56: 0.9 | G56: 0 | H56: 0 | I56: 169888 | J56: 16988.8 | K56: 168189.12 | L56: 18687.68 | M56: XXXXXXXX | N56: XXXXXXXX | O56: XXXXXXXX | P56: XXXXXXXX | Q56: XXXXXXXX | R56: XXXXXXXX | S56: XXXXXXXX | T56: XXXXXXXX | V56: 1 | W56: 0 | X56: 1
A57: Digital Core | W57: 0
A58: I. Consistent Cross Channel Experience | W58: 0
A59: DCI-1 | B59: Web, Mobile App and Content Management (including responsive web mobile) | C59: The project involves revamping PSE.com customer facing web and content management platform - includes basic design aspects, customer experience and other supported functionalities on web and mobile web. This enables customer to easily navigate to PSE information, Account Management and Usage. The mobile application platform will enable design and development of both native and hybrid customer facing as well as integrate with backend systems for services. Provides mobile native functions for billing, payment, usage, account maintenance and geolocation capability of field employees. (DCI-2 will inform the look and feel of the content, but it is standalone in regards to content that will be included. The feature content of the app will be determined in the initiation phase of the project). | D59: 4Q16 | E59: 3Q18 | F59: 0.9 | G59: 0 | H59: 0 | I59: 6370800 | J59: 637080 | K59: 6307092 | L59: 700788 | M59: XXXXXXXX | N59: XXXXXXXX | O59: XXXXXXXX | P59: XXXXXXXX | Q59: XXXXXXXX | R59: XXXXXXXX | S59: XXXXXXXX | T59: XXXXXXXX | V59: 0 | W59: 1 | X59: 1
A60: DCI-2 | B60: Customer Experience Design for all channels | C60: Provide a consistent design for customer interactions across Super 5 programs for all the channels, so that customer experience is seamless across all channels. The external consultant would initiate and run all required workshops to gather requirements. Guidelines, visual prototypes or prompts of each channel. | D60: 4Q16 | E60: 1Q17 | F60: 0.9 | G60: 0 | H60: 0 | I60: 881040 | J60: 88104 | K60: 872229.6 | L60: 96914.4 | M60: XXXXXXXX | N60: XXXXXXXX | O60: XXXXXXXX | P60: XXXXXXXX | Q60: XXXXXXXX | R60: XXXXXXXX | S60: XXXXXXXX | T60: XXXXXXXX | V60: 0 | W60: 0 | X60: 0
A61: DCI-3 | B61: Campaign Management | C61: A PSE driven platform (i.e. PSE would initiate the information vs. Preference center (DCI-7)) that allows for centralization of all communication tools for segmentation based on customers parameters. The management of email and text messaging to individual and segmented customer(s) based on pre-defined business rules or predictive engine. This helps to consolidate and enhance customer communication, increase customer out-reach, provide details on usage and other account related information. | D61: 1Q18 | E61: 3Q18 | F61: 0.9 | G61: 0 | H61: 0 | I61: 0 | J61: 0 | K61: 0 | L61: 0 | M61: XXXXXXXX | N61: XXXXXXXX | O61: XXXXXXXX | P61: XXXXXXXX | Q61: XXXXXXXX | R61: XXXXXXXX | S61: XXXXXXXX | T61: XXXXXXXX | V61: 0 | W61: 0 | X61: 0
A62: DCI-6 | B62: Social Media Listening and Publishing | C62: Enable PSE to communicate with customers through social media channels and analyze customer responses. This will enable PSE to listen and analyze customer posts on social media platforms regarding PSE services(outages and other services related issues). | D62: 1Q18 | E62: 2Q18 | F62: 0.9 | G62: 0 | H62: 0 | I62: 0 | J62: 0 | K62: 0 | L62: 0 | M62: XXXXXXXX | N62: XXXXXXXX | O62: XXXXXXXX | P62: XXXXXXXX | Q62: XXXXXXXX | R62: XXXXXXXX | S62: XXXXXXXX | T62: XXXXXXXX | V62: 0 | W62: 0 | X62: 0
A63: DCI-7 | B63: Preference Center | C63: A self service preference center will be offered to the PSE customer. This will enable the customer to sign up for and manage proactive communication on various topics (e.g. payment notification, billing notification, unusual usage, outage preferences, etc.) through various channels (i.e. email, text, phone). This utilizes the communication gateway (DCI-8). | D63: 1Q17 | E63: 2Q17 | F63: 0.9 | G63: 0 | H63: 0 | I63: 1762080 | J63: 176208 | K63: 1744459.2 | L63: 193828.8 | M63: XXXXXXXX | N63: XXXXXXXX | O63: XXXXXXXX | P63: XXXXXXXX | Q63: XXXXXXXX | R63: XXXXXXXX | S63: XXXXXXXX | T63: XXXXXXXX | V63: 0 | W63: 0 | X63: 0
A64: DCI-8 | B64: Communication Gateway & Proactive Notifications | C64: The project will provide a technology platform that allows PSE to communicate consistently and proactively across all channels e.g. text, email, outbound calling, app notification. This will enable PSE to align all communications with the customer across different channels such as email, text and mobile notification. | D64: 4Q16 | E64: 2Q17 | F64: 0.9 | G64: 0 | H64: 0 | I64: 1262080 | J64: 126208 | K64: 1249459.2 | L64: 138828.8 | M64: XXXXXXXX | N64: XXXXXXXX | O64: XXXXXXXX | P64: XXXXXXXX | Q64: XXXXXXXX | R64: XXXXXXXX | S64: XXXXXXXX | T64: XXXXXXXX | V64: 0 | W64: 0 | X64: 0
A65: DCI-10 | B65: Call me back (Automated Outbound Calling) | C65: The Call Me Back project will allow the customer to request a call back from IVR. Automated Outbound Calling software would automatically call back the customer. There will be funding utilized during initiation to determine the viability of these capability. | D65: 1Q17 | E65: 2Q17 | F65: 0.9 | G65: 0 | H65: 0 | I65: 1174720 | J65: 117472 | K65: 1162972.8 | L65: 129219.2 | M65: XXXXXXXX | N65: XXXXXXXX | O65: XXXXXXXX | P65: XXXXXXXX | Q65: XXXXXXXX | R65: XXXXXXXX | S65: XXXXXXXX | T65: XXXXXXXX | V65: 0 | W65: 0 | X65: 0
A66: DCI-12 | B66: Web Analytics | C66: The Web Analytics project provides a platform for business to analyze customer activity and behavioral data sourced from web and mobile channels. Costs only include robust web analytics and piping output into the Data Lake. | D66: 4Q17 | E66: 1Q18 | F66: 0.9 | G66: 100000 | H66: 615000 | I66: 293680 | J66: 100868 | K66: 1077243.2 | L66: 32304.8 | M66: XXXXXXXX | N66: XXXXXXXX | O66: XXXXXXXX | P66: XXXXXXXX | Q66: XXXXXXXX | R66: XXXXXXXX | S66: XXXXXXXX | T66: XXXXXXXX | V66: 1 | W66: 0 | X66: 1
A67: DCI-13 | B67: ECC and CRM on Hana | C67: Foundational migration of CRM and ECC to HANA database. Enables predictive analysis, real time billing, expedited analysis of customer data required for predictive notifications. | D67: 4Q16 | E67: 2Q17 | M67: XXXXXXXX | N67: XXXXXXXX | O67: XXXXXXXX | P67: XXXXXXXX | Q67: XXXXXXXX | R67: XXXXXXXX | S67: XXXXXXXX | T67: XXXXXXXX | V67: 0 | W67: 0 | X67: 0
A68: PM-7 | B68: Cross Program Technical Integration | C68: Covers technical integration unknowns that pop up and need to be addressed. Ties to what CenterPoint did - they had 5M across their 80M program so we should use this to help identify what we need to budget for. This program will cover all the technical processes integration between the different programs like Web, Mobile, OMS-AMI and AMI to SAP integration, also any integration with CRM, IVR and Web should be defined and covered under this program | D68: 1Q17 | E68: 2020 | F68: 0.9 | G68: 0 | H68: 0 | I68: 3596640 | J68: 359664 | K68: 3560673.6 | L68: 395630.4 | M68: XXXXXXXX | N68: XXXXXXXX | O68: XXXXXXXX | P68: XXXXXXXX | Q68: XXXXXXXX | R68: XXXXXXXX | S68: XXXXXXXX | T68: XXXXXXXX | V68: 1 | W68: 1 | X68: 1
A69: II. Predictive and guided call center experience | W69: 0
A70: DCII-1 | B70: IVR Enhancements - Natural Voice | C70: The project involves enhancing and enriching existing IVR infrastructure with added capabilities for natural voice. It includes enabling vendor/software specific natural voice options along with the design and delivery of additional functionality required for PSE. Natural voice support will allow customers to have a back and forth interaction with IVR for various service aspects compared to a traditional touch button option. Customers can choose from a variety of options presented which will lead to faster issue and call resolution as they get routed to agents (in applicable scenarios). | D70: 3Q17 | E70: 4Q17 | F70: 0.9 | G70: 1000000 | H70: 246000 | I70: 1174720 | J70: 242072 | K70: 2533572.8 | L70: 129219.2 | M70: XXXXXXXX | N70: XXXXXXXX | O70: XXXXXXXX | P70: XXXXXXXX | Q70: XXXXXXXX | R70: XXXXXXXX | S70: XXXXXXXX | T70: XXXXXXXX | V70: 0 | W70: 1 | X70: 1
A71: DCII-2 | B71: IVR Enhancements - Predictive | C71: The project involves enhancing and enriching existing IVR infrastructure (Cisco) with added predictive capabilities for call routing (route to the right agent), call context (predict and understand reason for the call) and call content (provide right information to IVR and CSR). Predictive IVR along with Natural voice will provide up front requisite information to the customer based on available data in the system. A set of business specific predictive rules will be developed and exposed to IVR software enabling better self-service, informed customer service, better call routing, improved service metrics and better customer satisfaction. | D71: 4Q17 | E71: 1Q18 | F71: 0.9 | G71: 0 | H71: 123000 | I71: 440520 | J71: 56352 | K71: 571414.8 | L71: 48457.2 | M71: XXXXXXXX | N71: XXXXXXXX | O71: XXXXXXXX | P71: XXXXXXXX | Q71: XXXXXXXX | R71: XXXXXXXX | S71: XXXXXXXX | T71: XXXXXXXX | V71: 1 | W71: 0 | X71: 1
A72: DCII-3 | B72: Predictive alerts from CSR Screen | C72: The project involves enhancing and enriching agent CRM screen with context specific and in the moment predictive alerts with respect to the customer being serviced. The most important set of business defined predictive scenarios and associated alerts will be designed in the system and the same will be exposed to agents in SAP CRM as intelligent and context specific alerts based on the identified customer. The alerts will include all supported business functions and will be a mix of both proactive and predictive functions based on customer specific information available in the system. CSR's will use predictive alerts as a complimentary function to natural voice and predictive IVR. These will give them more insight in to customer specific requests, pending actions and available/possible service call reasons. Intelligent and context specific alerts like these would help in faster call resolution and better overall service metrics. | D72: 1Q19 | E72: 2Q19 | F72: 0.9 | G72: 0 | H72: 0 | I72: 0 | J72: 0 | K72: 0 | L72: 0 | M72: XXXXXXXX | N72: XXXXXXXX | O72: XXXXXXXX | P72: XXXXXXXX | Q72: XXXXXXXX | R72: XXXXXXXX | S72: XXXXXXXX | T72: XXXXXXXX | V72: 0 | W72: 0 | X72: 0
A73: DCII-4 | B73: Multi-channel Call Center (online chat, email) | C73: The project involves adding new communication channels - online chat and email - as additional avenues for customer service enabling PSE's move towards digital transformation and Omni channel service. This will complement existing customer service channel of phone/IVR and will empower customers by providing additional ways to get in touch with PSE. Dedicated and trained CSR's will own incoming customer query queues for online chat and email just like they do with phones. They'll have access to all customer information (Customer 360) enabling them to efficiently and effectively service PSE customers through chat and email also. All business functions and customer service processes will be supported seamlessly giving both customers and agents a true omnichannel presence. (This system would replace EGain, this does not include co-browsing functionality). The data from the web-chat and email with agent should be able to feed through BW to Hana for further analytics. | D73: 4Q17 | E73: 4Q18 | F73: 0.9 | G73: 0 | H73: 0 | I73: 86208 | J73: 8620.8 | K73: 85345.92 | L73: 9482.88 | M73: XXXXXXXX | N73: XXXXXXXX | O73: XXXXXXXX | P73: XXXXXXXX | Q73: XXXXXXXX | R73: XXXXXXXX | S73: XXXXXXXX | T73: XXXXXXXX | V73: 1 | W73: 0 | X73: 1
A74: DCII-5 | B74: CRM - CSR Guided Experience with 3 click navigation (CRM modification, excluding Hana/prediction) | C74: The project involves enabling CSR guided experience with 3 click navigation for pre-defined business scenarios. Guided experience will enable a step by step procedure based user experience for agents in SAP CRM especially for critical business scenarios like Start/Stop/Transfer, Service orders, Customer master data creation etc. Standard SAP CRM functionality (guided procedures) will be leveraged as a baseline and any PSE specific requirements will be designed as add ons. This will provide additional intelligence and guidance to CSR's as they navigate through various business processes eventually leading to better service metrics, faster resolution and improved customer satisfaction. | D74: 4Q17 | E74: 4Q18 | F74: 0.9 | G74: 0 | H74: 246000 | I74: 1149440 | J74: 139544 | K74: 1408545.6 | L74: 126438.4 | M74: XXXXXXXX | N74: XXXXXXXX | O74: XXXXXXXX | P74: XXXXXXXX | Q74: XXXXXXXX | R74: XXXXXXXX | S74: XXXXXXXX | T74: XXXXXXXX | V74: 1 | W74: 0 | X74: 1
A75: DCII-6 | B75: CCS Customer Intake | C75: 1. (formally S5-5) A customer facing self-service portal via pse.com for initiating service for new construction including status updates and proactive notifications. The Customer Portal (below) will include scheduling service provider and PSE field work at multiple steps in the process from initiation to activation of the meter(s). A self service process for initiating service for new construction including status updates and proactive notifications via web. business is much different than a simple start service transaction. Customer Portal (below) will include scheduling service provider and PSE field work at multiple steps in the process from initiation to activation of the meter(s). 2. As a near term solution, the agent (CCR) UX will be simplified to allow much quicker agent processing of phone requests. Agents currently are required to navigate to up to 10 individual SAP transactions to add a service request for a new customer. This does not allow the agent to complete the transaction with the customer on the phone. A handoff process is in place between the call agent (CCR) and the data entry associate (CSR1) to get the final order placed and routed correctly. The result of this CSA will improve call handling time, customer service and order cycle time. Customer Construction Services processes 58,000 service requests annually and of those 35.5% or 20,360 are for new customers or services to PSE. This screen consolidate aligns with the future development of the Construction Customer Self Services roadmap. | D75: 1Q17 | E75: 2Q17 | F75: 0.9 | G75: 0 | H75: 0 | I75: 650794.88 | J75: 65079.488 | K75: 644286.9312 | L75: 71587.4368 | M75: XXXXXXXX | N75: XXXXXXXX | O75: XXXXXXXX | P75: XXXXXXXX | Q75: XXXXXXXX | R75: XXXXXXXX | S75: XXXXXXXX | T75: XXXXXXXX | V75: 0 | W75: 0 | X75: 0
A76: III. Integrated Work Management | W76: 0
A77: DCIII-1 | B77: P0 - GIS CAD Design | C77: Improve the accuracy and timeliness of GIS data and model of gas and electric networks and improving efficiencies of MRT staff & CSP designers through integration between the design tool and GIS. | D77: 2Q16 | E77: 2Q17 | F77: 1 | G77: 0 | H77: 0 | I77: 476666.6667 | J77: 47666.66667 | K77: 524333.3333 | L77: 0 | M77: XXXXXXXX | N77: XXXXXXXX | O77: XXXXXXXX | P77: XXXXXXXX | Q77: XXXXXXXX | R77: XXXXXXXX | S77: XXXXXXXX | T77: XXXXXXXX | V77: 0 | W77: 0 | X77: 0
A78: DCIII-2 | B78: P2 - IWM Cost Management | C78: SAP ECC PM, FI, CO, PS, and other changes to enable full lifecycle Financial tracking of tracking of a PM work order / operation pair for all IWM targeted work. | D78: 1Q17 | E78: 3Q17 | F78: 0.9 | G78: 0 | H78: 400000 | I78: 2059200 | J78: 245920 | K78: 2478608 | L78: 226512 | M78: XXXXXXXX | N78: XXXXXXXX | O78: XXXXXXXX | P78: XXXXXXXX | Q78: XXXXXXXX | R78: XXXXXXXX | S78: XXXXXXXX | T78: XXXXXXXX | V78: 0 | W78: 1 | X78: 1
A79: DCIII-3 | B79: P3a - SAP Work Management System (WMS) | C79: Consistent views and approach for all work in SAP. Provides visibility through the lifecycle of the work from initialization through project close. Allow for use of standard SAP and SAP certified applications to order & track materials/services, date plan, assign work, push to mobile and update, etc. | D79: 1Q17 | E79: 3Q17 | F79: 0.9 | G79: 0 | H79: 200000 | I79: 1965600 | J79: 216560 | K79: 2165944 | L79: 216216 | M79: XXXXXXXX | N79: XXXXXXXX | O79: XXXXXXXX | P79: XXXXXXXX | Q79: XXXXXXXX | R79: XXXXXXXX | S79: XXXXXXXX | T79: XXXXXXXX | V79: 0 | W79: 0 | X79: 0
A80: DCIII-4 | B80: P3b - Workforce Scheduling | C80: Design & common build of Scheduling, Dispatch, Process & Technology for all Gas & Electric field work. | D80: 1Q17 | E80: 3Q17 | F80: 0.9 | G80: 0 | H80: 200000 | I80: 2505600 | J80: 270560 | K80: 2700544 | L80: 275616 | M80: XXXXXXXX | N80: XXXXXXXX | O80: XXXXXXXX | P80: XXXXXXXX | Q80: XXXXXXXX | R80: XXXXXXXX | S80: XXXXXXXX | T80: XXXXXXXX | V80: 0 | W80: 1 | X80: 1
A81: DCIII-5 | B81: P3c - Workforce Mobility | C81: Provide crews electronic mobile capabilities to receive, status, and report on work activities. This will enable field employees to easily access customer data and account information. This will also provide easy accessibility and self service functionalities in a Mobile Native app experience for employees. Will start 4th quarter 2016 with scoping, to be charged to Vesta's 2016 work order. | D81: 4Q16 | E81: 3Q17 | F81: 0.9 | G81: 1100000 | H81: 0 | I81: 1713600 | J81: 281360 | K81: 2906464 | L81: 188496 | M81: XXXXXXXX | N81: XXXXXXXX | O81: XXXXXXXX | P81: XXXXXXXX | Q81: XXXXXXXX | R81: XXXXXXXX | S81: XXXXXXXX | T81: XXXXXXXX | V81: 0 | W81: 1 | X81: 1
A82: DCIII-6 | B82: P4 - Gas Customer Facing Work Rollout | C82: Deployment to Gas First Response teams of the Work Management, Scheduling, and Mobile Processes and Tools . | D82: 3Q17 | E82: 2Q18 | F82: 0.9 | G82: 800000 | H82: 200000 | I82: 720000 | J82: 172000 | K82: 1812800 | L82: 79200 | M82: XXXXXXXX | N82: XXXXXXXX | O82: XXXXXXXX | P82: XXXXXXXX | Q82: XXXXXXXX | R82: XXXXXXXX | S82: XXXXXXXX | T82: XXXXXXXX | V82: 1 | W82: 0 | X82: 1
A83: DCIII-7 | B83: P5 - Electric customer facing work rollout | C83: Deployment to Electric First Response teams of the Work Management, Scheduling, and Mobile Processes and Tools. | D83: 2Q18 | E83: 4Q18 | F83: 0.9 | G83: 0 | H83: 0 | I83: 0 | J83: 0 | K83: 0 | L83: 0 | M83: XXXXXXXX | N83: XXXXXXXX | O83: XXXXXXXX | P83: XXXXXXXX | Q83: XXXXXXXX | R83: XXXXXXXX | S83: XXXXXXXX | T83: XXXXXXXX | V83: 0 | W83: 0 | X83: 0
A84: DCIII-8 | B84: P6 - Meter Management | C84: Targeted rollout to Gas & Electric Measurements / Metering groups. Update end to end meter management processes to include lifecycle testing and tracking of all billing meters including meter shop, warehouse, transport, and field metering activities. | D84: 2Q18 | E84: 4Q18 | F84: 0.9 | G84: 0 | H84: 0 | I84: 0 | J84: 0 | K84: 0 | L84: 0 | M84: XXXXXXXX | N84: XXXXXXXX | O84: XXXXXXXX | P84: XXXXXXXX | Q84: XXXXXXXX | R84: XXXXXXXX | S84: XXXXXXXX | T84: XXXXXXXX | V84: 0 | W84: 0 | X84: 0
A85: DCIII-12 | B85: P7 - Compatible Units Library | C85: The development of SAP Compatible Units (CU) and CU library to facilitate repeatable design & construction work. | D85: 2Q18 | E85: 4Q18 | F85: 0.9 | G85: 0 | H85: 0 | I85: 0 | J85: 0 | K85: 0 | L85: 0 | M85: XXXXXXXX | N85: XXXXXXXX | O85: XXXXXXXX | P85: XXXXXXXX | Q85: XXXXXXXX | R85: XXXXXXXX | S85: XXXXXXXX | T85: XXXXXXXX | V85: 0 | W85: 0 | X85: 0
A86: DCIII-10 | B86: P9 - Customer Work Status Portal | C86: To provide customer web access to check status of activities affecting that customer. Activities for which status will be available include; appointment status, service work status, outage (planned & unplanned) status, and PSE work in the vicinity. | D86: 2Q18 | E86: 2Q19 | F86: 0.9 | G86: 0 | H86: 0 | I86: 0 | J86: 0 | K86: 0 | L86: 0 | M86: XXXXXXXX | N86: XXXXXXXX | O86: XXXXXXXX | P86: XXXXXXXX | Q86: XXXXXXXX | R86: XXXXXXXX | S86: XXXXXXXX | T86: XXXXXXXX | V86: 0 | W86: 0 | X86: 0
A87: DCIII-11 | B87: P10 - Compliance Work - Gas & Electric Linear Asset | C87: Deliver an integrated Leak management system based on GIS and SAP work and asset management. Apply the same approach for other Compliance driven work at PSE. | D87: 4Q18 | E87: 3Q19 | F87: 0.9 | G87: 0 | H87: 0 | I87: 0 | J87: 0 | K87: 0 | L87: 0 | M87: XXXXXXXX | N87: XXXXXXXX | O87: XXXXXXXX | P87: XXXXXXXX | Q87: XXXXXXXX | R87: XXXXXXXX | S87: XXXXXXXX | T87: XXXXXXXX | V87: 0 | W87: 0 | X87: 0
A88: DCIII-9 | B88: P8- Customer Work Initiation Portal | C88: To provide customer web access to request work, receive estimates for Gas service and make a service appointment. | D88: 3Q18 | E88: 1Q19 | F88: 0.9 | G88: 0 | H88: 0 | I88: 0 | J88: 0 | K88: 0 | L88: 0 | M88: XXXXXXXX | N88: XXXXXXXX | O88: XXXXXXXX | P88: XXXXXXXX | Q88: XXXXXXXX | R88: XXXXXXXX | S88: XXXXXXXX | T88: XXXXXXXX | V88: 0 | W88: 0 | X88: 0
A89: DCIII-16 | B89: P11- Project Systems Integration | C89: To implement SAP to P6 integration for enterprise project management, program management, and medium term (e.g. in year) work and resource planning/ forecasting. | D89: 1Q19 | E89: 4Q19 | F89: 0.9 | G89: 0 | H89: 0 | I89: 0 | J89: 0 | K89: 0 | L89: 0 | M89: XXXXXXXX | N89: XXXXXXXX | O89: XXXXXXXX | P89: XXXXXXXX | Q89: XXXXXXXX | R89: XXXXXXXX | S89: XXXXXXXX | T89: XXXXXXXX | V89: 0 | W89: 0 | X89: 0
A90: DCIII-13 | B90: P12- AUD | C90: Enhance repeatable nature of field estimating & Design through use of mobile design, compatible units, repeatable design assemblies, and integrated estimating tools. Estimate capability to include CIAC calculation and tracking. Customer Projects - Gas & Electric: To deliver to customer projects the enhanced GIS CAD Design capabilities through use of the SAP CU design and estimating capabilities designed in project P10. This includes mobile design capabilities. | D90: 3Q18 | E90: 4Q19 | F90: 0.9 | G90: 0 | H90: 0 | I90: 0 | J90: 0 | K90: 0 | L90: 0 | M90: XXXXXXXX | N90: XXXXXXXX | O90: XXXXXXXX | P90: XXXXXXXX | Q90: XXXXXXXX | R90: XXXXXXXX | S90: XXXXXXXX | T90: XXXXXXXX | V90: 0 | W90: 0 | X90: 0
A91: DCIII-14 | B91: P13 - Other Maintenance Rollout | C91: Deployment of the Work management, Scheduling, and Mobile processes and tools to the remaining teams and for the remaining maintenance work types throughout PSE (i.e. T&D Gas & Electric Operations). | D91: 4Q19 | E91: 2020 | F91: 0.9 | G91: 0 | H91: 0 | I91: 0 | J91: 0 | K91: 0 | L91: 0 | M91: XXXXXXXX | N91: XXXXXXXX | O91: XXXXXXXX | P91: XXXXXXXX | Q91: XXXXXXXX | R91: XXXXXXXX | S91: XXXXXXXX | T91: XXXXXXXX | V91: 0 | W91: 0 | X91: 0
A92: DCIII-15 | B92: P14 - Other Construction Projects - Gas & Electric | C92: To deliver to remaining non-customer projects the enhanced GIS CAD Design capabilities through use of the SAP CU design and estimating capabilities designed in project P10. This includes mobile design capabilities. | D92: 4Q19 | E92: 2020 | F92: 0.9 | G92: 0 | H92: 0 | I92: 0 | J92: 0 | K92: 0 | L92: 0 | M92: XXXXXXXX | N92: XXXXXXXX | O92: XXXXXXXX | P92: XXXXXXXX | Q92: XXXXXXXX | R92: XXXXXXXX | S92: XXXXXXXX | T92: XXXXXXXX | V92: 0 | W92: 0 | X92: 0
A93: DCI-11 | B93: Enterprise Service Bus (ESB)/ Micro Services TxPort | C93: The ESB project will create an Enterprise Middleware, that will integrate with SAP and non-SAP systems including OMS, Web and Mobile. This is needed to enable reliable communication between different systems (web, mobile, backend). | D93: 1Q17 | E93: 4Q17 | F93: 0.9 | G93: 500000 | H93: 0 | I93: 5397760 | J93: 589776 | K93: 5893782.4 | L93: 593753.6 | M93: XXXXXXXX | N93: XXXXXXXX | O93: XXXXXXXX | P93: XXXXXXXX | Q93: XXXXXXXX | R93: XXXXXXXX | S93: XXXXXXXX | T93: XXXXXXXX | V93: 0 | W93: 1 | X93: 1
W94: 0
A95: DCIV-1 | B95: AMI Advanced Functionality Systems Integration | C95: The configuration of the SAP AMI module and systems integration with other PSE systems to support advanced AMI functionality. Also includes internal and back end work needed for web, mobile and CSR facing systems to support Advanced AMI. Advanced AMI examples include pre-pay, remote disconnect and re-connect and interval and/or TOU billing. | D95: 1Q18 | E95: 4Q18 | F95: 0.9 | G95: 0 | H95: 0 | I95: 0 | J95: 0 | K95: 0 | L95: 0 | M95: XXXXXXXX | N95: XXXXXXXX | O95: XXXXXXXX | P95: XXXXXXXX | Q95: XXXXXXXX | R95: XXXXXXXX | S95: XXXXXXXX | T95: XXXXXXXX | V95: 0 | W95: 0 | X95: 0
A96: V. Data | W96: 0
A97: DCV-1 | B97: Data Governance | C97: Develop Data Governance framework that includes ongoing data management quality services via identifying people and roles, determining processes and standards, and installing tools to identify, monitor, and prevent data quality issues (including duplication, inconsistency, and incompleteness). | D97: 4Q16 | E97: 2020 | F97: 0.25 | G97: 0 | H97: 0 | I97: 1545694.118 | J97: 154569.4118 | K97: 425065.8824 | L97: 1275197.647 | M97: XXXXXXXX | N97: XXXXXXXX | O97: XXXXXXXX | P97: XXXXXXXX | Q97: XXXXXXXX | R97: XXXXXXXX | S97: XXXXXXXX | T97: XXXXXXXX | V97: 0 | W97: 0 | X97: 0
A98: DCV-2 | B98: Data Quality, Management & Cleanup | C98: Execute on the Data Governance Framework through ownership, cleanup, data management and synchronization, and quality assurance and controls to ensure accuracy and consistency of data across all systems. This will be prioritized based on benefit delivery and/or project timeline. G1- Expand Master Data to include relationship between Customer and Asset. Gives a complete landscape of all customer data in relation to assets. G2- Integration of SAP and GIS providing a Geo-spatial view of work, customers, and assets. Visually representing it on the GIS system. | D98: 1Q17 | E98: 2020 | F98: 0.35 | G98: 1000000 | H98: 1968000 | I98: 5994400 | J98: 896240 | K98: 5572644 | L98: 4285996 | M98: XXXXXXXX | N98: XXXXXXXX | O98: XXXXXXXX | P98: XXXXXXXX | Q98: XXXXXXXX | R98: XXXXXXXX | S98: XXXXXXXX | T98: XXXXXXXX | V98: 1 | W98: 1 | X98: 1
A99: DCV-3 | B99: Data Analytics | C99: The Data Analytics project provides an enhanced analytics of customer and transactional data for PSE. This will enable the business to gain a better understanding of various customer data points and make data driven decisions. Includes, HADOOP and the transcription of calls converted to text for integration into the "Data Lake". | D99: 4Q16 | E99: 2020 | F99: 0.85 | G99: 0 | H99: 0 | I99: 2923670.588 | J99: 292367.0588 | K99: 2733632 | L99: 482405.6471 | M99: XXXXXXXX | N99: XXXXXXXX | O99: XXXXXXXX | P99: XXXXXXXX | Q99: XXXXXXXX | R99: XXXXXXXX | S99: XXXXXXXX | T99: XXXXXXXX | V99: 0 | W99: 1 | X99: 1
A100: DCI-5 | B100: Customer 360 Data View | C100: The internal capability for PSE to expose the full information of the Customer's data, in a 360 degree data view. This will bring the channels together in an easy visualization. Customer 360 View project will consolidate customer data and interaction with PSE (i.e. billing, payment, call history, lease services, outages, billing inquiries, street light installations, energy efficiency programs, etc.). This will enable the CSR, FSR, Customer, and other authorized PSE employees to have access to the respective data associated with the customer. | D100: 1Q17 | E100: 1Q18 | F100: 0.85 | G100: 280000 | H100: 615000 | I100: 2298880 | J100: 319388 | K100: 3133952.8 | L100: 379315.2 | M100: XXXXXXXX | N100: XXXXXXXX | O100: XXXXXXXX | P100: XXXXXXXX | Q100: XXXXXXXX | R100: XXXXXXXX | S100: XXXXXXXX | T100: XXXXXXXX | V100: 1 | W100: 1 | X100: 1
A101: DCI-9A | B101: Rules Engines | C101: BRF+ can be utilzied to create rules based decisions based on specific customer data, which can be used on Mobile, Web, IVR and CSR Channels. For e.g. these rules can enable CSR agents to receive predictive notifications, customer to receive respective alerts on web, mobile, IVR, etc. This project will have overlap with DCI-3 & DCI-13. | D101: 2Q17 | E101: 4Q17 | F101: 0.9 | G101: 0 | H101: 0 | I101: 378624 | J101: 37862.4 | K101: 374837.76 | L101: 41648.64 | M101: XXXXXXXX | N101: XXXXXXXX | O101: XXXXXXXX | P101: XXXXXXXX | Q101: XXXXXXXX | R101: XXXXXXXX | S101: XXXXXXXX | T101: XXXXXXXX | V101: 0 | W101: 0 | X101: 0
A102: DCI-9B | B102: Hana Predictive | C102: HANA Predictive Engine and BRF+ to create rules based on specific customer data, which can be used on Mobile, Web, IVR and CSR Channels. | D102: 2Q18 | E102: 4Q18 | F102: 0.9 | G102: 0 | H102: 0 | I102: 0 | J102: 0 | K102: 0 | L102: 0 | M102: XXXXXXXX | N102: XXXXXXXX | O102: XXXXXXXX | P102: XXXXXXXX | Q102: XXXXXXXX | R102: XXXXXXXX | S102: XXXXXXXX | T102: XXXXXXXX | V102: 0 | W102: 0 | X102: 0
A103: DCV-6 | B103: Auto-Categorization of Customer Calls | C103: Technology solution to accurately capture why customers call and reduce duplicate, manual tasks by CSRs. This function will eliminate redundancy in business process, improve data integrity and clearly define the main purpose of each customer interaction based on the agent’s actions. | D103: 1Q17 | E103: 2Q17 | F103: 0.85 | G103: 40000 | H103: 0 | I103: 117472 | J103: 15747.2 | K103: 153836.32 | L103: 19382.88 | M103: XXXXXXXX | N103: XXXXXXXX | O103: XXXXXXXX | P103: XXXXXXXX | Q103: XXXXXXXX | R103: XXXXXXXX | S103: XXXXXXXX | T103: XXXXXXXX | V103: 0 | W103: 0 | X103: 0
A104: Project Total | F104: Total | G104: 4820000 | H104: 5981500 | I104: 67670112.3 | J104: 7847161.23 | K104: 69983120.05 | L104: 16335653.48 | M104: XXXXXXXX | N104: XXXXXXXX | O104: XXXXXXXX | P104: XXXXXXXX | Q104: XXXXXXXX | R104: XXXXXXXX | S104: XXXXXXXX | T104: XXXXXXXX
A105: Key | V105: 30
B106: Multi-Year Projects
B107: > $2.5 Million Projects
G110: 2017 Software | H110: 2017 Hardware | I110: 2017 Services | J110: 2017 Contingency | K110: 2017 Capex | L110: 2017 Opex | M110: 2017 Total | N110: Overall Software | O110: Overall Hardware | P110: Overall Services | Q110: Overall Contingency | R110: Overall Capex | S110: Overall Opex | T110: Overall Total
M111: XXXXXXXX | N111: XXXXXXXX | O111: XXXXXXXX | P111: XXXXXXXX | Q111: XXXXXXXX | R111: XXXXXXXX | S111: XXXXXXXX | T111: XXXXXXXX
M112: XXXXXXXX | N112: XXXXXXXX | O112: XXXXXXXX | P112: XXXXXXXX | Q112: XXXXXXXX | R112: XXXXXXXX | S112: XXXXXXXX | T112: XXXXXXXX
M113: XXXXXXXX | N113: XXXXXXXX | O113: XXXXXXXX | P113: XXXXXXXX | Q113: XXXXXXXX | R113: XXXXXXXX | S113: XXXXXXXX | T113: XXXXXXXX
M114: XXXXXXXX | N114: XXXXXXXX | O114: XXXXXXXX | P114: XXXXXXXX | Q114: XXXXXXXX | R114: XXXXXXXX | S114: XXXXXXXX | T114: XXXXXXXX
M115: XXXXXXXX | N115: XXXXXXXX | O115: XXXXXXXX | P115: XXXXXXXX | Q115: XXXXXXXX | R115: XXXXXXXX | S115: XXXXXXXX | T115: XXXXXXXX
M116: XXXXXXXX | N116: XXXXXXXX | O116: XXXXXXXX | P116: XXXXXXXX | Q116: XXXXXXXX | R116: XXXXXXXX | S116: XXXXXXXX | T116: XXXXXXXX
M117: XXXXXXXX | N117: XXXXXXXX | O117: XXXXXXXX | P117: XXXXXXXX | Q117: XXXXXXXX | R117: XXXXXXXX | S117: XXXXXXXX | T117: XXXXXXXX
M118: XXXXXXXX | N118: XXXXXXXX | O118: XXXXXXXX | P118: XXXXXXXX | Q118: XXXXXXXX | R118: XXXXXXXX | S118: XXXXXXXX | T118: XXXXXXXX
M119: XXXXXXXX | N119: XXXXXXXX | O119: XXXXXXXX | P119: XXXXXXXX | Q119: XXXXXXXX | R119: XXXXXXXX | S119: XXXXXXXX | T119: XXXXXXXX
M120: XXXXXXXX | N120: XXXXXXXX | O120: XXXXXXXX | P120: XXXXXXXX | Q120: XXXXXXXX | R120: XXXXXXXX | S120: XXXXXXXX | T120: XXXXXXXX
M121: XXXXXXXX | N121: XXXXXXXX | O121: XXXXXXXX | P121: XXXXXXXX | Q121: XXXXXXXX | R121: XXXXXXXX | S121: XXXXXXXX | T121: XXXXXXXX
F122: Total
B127: Description | D127: 2017 | E127: Overall
B128: Software Maintenance Capitalized | D128: XXXXXXXX | E128: XXXXXXXX
B129: Hardware O&M (13%) | D129: XXXXXXXX | E129: XXXXXXXX
B130: Software O&M (20%) | D130: XXXXXXXX | E130: XXXXXXXX
B131: Addition PSE staffing O&M (5%) | D131: XXXXXXXX | E131: XXXXXXXX
B132: Total | D132: XXXXXXXX | E132: XXXXXXXX
D133: XXXXXXXX | E133: XXXXXXXX
B134: Total Costs | D134: XXXXXXXX | E134: XXXXXXXX
D136: Pie Charts
E138: 2017
D139: Category | E139: Total | F139: Capex
D140: Software
D141: Hardware
D142: Services
D143: Contingency
D144: Total

Sheet IT Impact
A1: ID | B1: Project | C1: Description | D1: Start Date | E1: End Date | F1: Beginning 2016 or 2017 | G1: Arch | H1: IT Program/Project Management | I1: IT BA | J1: SAP-CRM | K1: SAP-ECC | L1: SAB - Basis, Sec, Dev, & Interfaces | M1: EDW/BI | N1: Meter Technology | O1: ASG | P1: Web | Q1: QA | R1: Operations Systems | S1: IT Security and Compliance | T1: Infra - Storage and Servers | U1: Infra - Data Centers | V1: Infra - NOC, End-user and Help Desk | W1: Infra - Data Network | X1: Infra - Voice Network | Y1: Infra - IT Security Operations | Z1: Infra - SCADA | AA1: Infra - Telecomm
A2: PM-2 | B2: =VLOOKUP(A2,ProjectMatrix,2,0) -> Organization Change Management & Customer Communications strategy | C2: =VLOOKUP(A2,ProjectMatrix,3,0) -> The capability to support change within the business and to our customers. Includes: - Stakeholder identification - Program-wide OCM strategy - Training plan - Communications strategy (internal and external) - On-going change assessments and analyses | D2: =VLOOKUP(A2,ProjectMatrix,13,0) -> 1Q17 | E2: =VLOOKUP(A2,ProjectMatrix,14,0) -> 2020 | F2: =IFERROR(IF(VLOOKUP(D2,QuarterTable,5,0)=2017,1,0),"") -> 1 | G2: x | Q2: x
A3: PM-3 | B3: Customer rollout - communications execution | C3: External communication and marketing to customers as capabilities become enabled through the GTZ project plan. Strategy developed as part of PM-2. | D3: 1Q17 | E3: 2020 | F3: 1 | Q3: x | U3: x
A4: PM-4 | B4: GTZ Benefits & Balance Scorecard | C4: Creating the dashboard to capture the GTZ benefits realization & balance scorecard | D4: 1Q17 | E4: 2020 | F4: 1 | Q4: x
A5: PM-5 | B5: Regulatory Work stream | C5: Regulatory Support: GTZ to continuously work with Regulatory, compliance and other governing organization like the WA State Department of Commerce. GTZ team will have to complete the research to provide supporting materials to regulatory departments. Potential areas of change are payment arrangements, budget payments, disconnect notice delivery method, increase disconnect fee, deposit collection in the field, SSN for account setup and collections, correspondence changes for self-service, and Bill Payment Assistance for Low Income Customers. | D5: 1Q17 | E5: 2020 | F5: 1 | Q5: x
A6: PM-8 | B6: Customer Experience Journey Mapping | C6: Stand-up internal journey mapping capability. | D6: 1Q17 | E6: 2020 | F6: 1 | G6: x | I6: x | J6: x | L6: x | P6: X | Q6: x | X6: x?
A7: S1-3 | B7: Full realization of Energy Usage across Digital Core | C7: Refine Billing and Usage Process to utilize Digital Core capabilities and develop business and functional requirements for implementation by DC team. Thereby provide consistent Billing Explanation experience across all customer facing channels as well as enabling CSR. | D7: 1Q17 | E7: 4Q18 | F7: 1 | G7: x | I7: X | J7: x | M7: x | P7: x | Q7: x | S7: x
A8: S1-4 | B8: Full realization of energy efficiency across Digital Core | C8: Linking EE systems to the digital core (NEXANT, OPower, SAP and others). Customer is proactively notified of high usage through preferred channel and are directed to self service resource that identifies specific areas whereby customer can become more energy and cost efficient. Specifically, late paying customers are directly marketed to based on channel preferences with regard to energy efficiency / savings opportunities. Provide API for residential and business customers to pull PSE energy usage date into the system of their choice? | D8: 1Q17 | E8: 4Q18 | F8: 1 | I8: X | Q8: x
A9: S2-7 | B9: Billing and Payment Improvement (M2C) | C9: SAP changes to support Billing Exception Processing, payment arrangement, budget billing, installment and deposit plans. Business Rule changes to optimize the meter to cash process within SAP Quality Control Dashboards from source information | D9: 1Q17 | E9: 4Q17 | F9: 1 | G9: x | H9: X | I9: X | J9: x | K9: x | L9: x | N9: x | P9: X | Q9: x | S9: x | U9: x | X9: x
A10: S2-8 | B10: Enable Digital Billing and Payment Capabilities (Mobile, IVR, Web) | C10: Billing and Payment transactions via all self serve channels Decommission and Convert customers from previous provider service Consolidated Bills for Customers Customer Notification Preference E-wallet for customer bank card - reoccurring payments Payment History Clarity | D10: 1Q17 | E10: 4Q17 | F10: 1 | G10: x | H10: X | I10: X | J10: x | K10: x | L10: x | M10: x | P10: X | Q10: x | S10: x | T10: X | U10: x | W10: x | X10: x | Y10: x | AA10: X
A11: S2-9 | B11: Faster Pmt Posting | C11: Posting the payment to the customer account in real time from the Customer and Field Collections workforce mobility | D11: 1Q17 | E11: 4Q17 | F11: 1 | G11: x | H11: X | I11: X | J11: x | K11: x | L11: x | M11: x | P11: X | Q11: x | T11: X | U11: x | X11: x? | AA11: X
A12: S2-10 | B12: Full realization of bill and make / manage payment across Digital Core | C12: Refine Billing and Payment processes to utilize Digital Core capabilities and develop business and functional requirements for implementation by DC team. Thereby providing consistent Billing and Payment experiences across all customer facing channels as well as enabling CSR. | D12: 1Q17 | E12: 4Q17 | F12: 1 | G12: x | Q12: x
A13: S3-3 | B13: Collection Cycle Improvement & Agency Integration | C13: Expedite Collection activities and payment application (reduce cycle time from 111 days to 45 days) and integration with the collection agencies. | D13: 1Q17 | E13: 4Q17 | F13: 1 | G13: x | H13: X | I13: X | J13: x | L13: x | P13: X? | Q13: x | S13: x | T13: X | U13: x | AA13: X
A14: S4-5 | B14: Full realization of outage and restoration across Digital Core | C14: Refine Outage and Restoration Process to utilize Digital Core capabilities and develop business and functional requirements for implementation by Digital Core team. Thereby provide consistent experience across all customer facing channels, as well as enabling CSR for customer propensity to pay, budgeting, arrangements and C&C. | D14: 1Q17 | E14: 4Q18 | F14: 1 | G14: x | Q14: x
A15: S5-3 | B15: Manage Account(s) and Profile | C15: A self service process for a new customer to create, manage and setup an account online - the integration aspect with SAP data must also be considered | D15: 1Q17 | E15: 1Q18 | F15: 1 | G15: x | H15: X | I15: X | J15: x | L15: x | P15: X | Q15: x | S15: x | T15: X | X15: x? | Y15: x
A16: S5-6 | B16: Full realization SST across Digital Core | C16: Refine Start, Stop and Transfer processes to utilize Digital Core capabilities and develop business and functional requirements for implementation by Digital Core team. Thereby provide consistent experience across all customer facing channels, as well as enabling CSR for Start, Stop and Transfer. | D16: 1Q17 | E16: 4Q18 | F16: 1 | G16: x | Q16: x
A17: S5-10 | B17: Full realization make and manage service orders across Digital Core | C17: Refine Make and Manage Service Order processes to utilize Digital Core capabilities and develop business and functional requirements for implementation by Digital Core team. Thereby provide consistent experience across all customer facing channels, as well as enabling CSR for Make and Manage Service Order. | D17: 1Q17 | E17: 4Q18 | F17: 1 | G17: x | Q17: x
A18: S5-12 | B18: Full realization dis(re)connect across Digital Core | C18: Refine Disconnect and Reconnect processes to utilize Digital Core capabilities and develop business and functional requirements for implementation by Digital Core team. Thereby provide consistent experience across all customer facing channels, as well as enabling CSR for Make and Manage Service Order. | D18: 1Q17 | E18: 4Q18 | F18: 1 | Q18: x
A19: S5-17 | B19: Full realization of customer services across Digital Core | C19: Alignment with digital core's foundational capabilities. | D19: 1Q17 | E19: 4Q18 | F19: 1 | Q19: x
A20: DCI-7 | B20: Preference Center | C20: A self service preference center will be offered to the PSE customer. This will enable the customer to sign up for and manage proactive communication on various topics (e.g. payment notification, billing notification, unusual usage, outage preferences, etc.) through various channels (i.e. email, text, phone). This utilizes the communication gateway (DCI-8). | D20: 1Q17 | E20: 2Q17 | F20: 1 | G20: x | H20: X | I20: X | J20: x | L20: x | M20: x | O20: x | P20: X | Q20: x | S20: x | T20: X | U20: x | X20: x | Y20: x
A21: DCI-10 | B21: Call me back (Automated Outbound Calling) | C21: The Call Me Back project will allow the customer to request a call back from IVR. Automated Outbound Calling software would automatically call back the customer. There will be funding utilized during initiation to determine the viability of these capability. | D21: 1Q17 | E21: 2Q17 | F21: 1 | G21: x | H21: X | J21: x | K21: x | L21: x | O21: x | P21: X? | Q21: x | X21: x | AA21: X
A22: PM-7 | B22: Cross Program Technical Integration | C22: Covers technical integration unknowns that pop up and need to be addressed. Ties to what CenterPoint did - they had 5M across their 80M program so we should use this to help identify what we need to budget for. This program will cover all the technical processes integration between the different programs like Web, Mobile, OMS-AMI and AMI to SAP integration, also any integration with CRM, IVR and Web should be defined and covered under this program | D22: 1Q17 | E22: 2020 | F22: 1 | G22: x | I22: X | J22: x | K22: x | L22: x | P22: X | Q22: x | T22: x
A23: DCII-6 | B23: CCS Customer Intake | C23: 1. (formally S5-5) A customer facing self-service portal via pse.com for initiating service for new construction including status updates and proactive notifications. The Customer Portal (below) will include scheduling service provider and PSE field work at multiple steps in the process from initiation to activation of the meter(s). A self service process for initiating service for new construction including status updates and proactive notifications via web. business is much different than a simple start service transaction. Customer Portal (below) will include scheduling service provider and PSE field work at multiple steps in the process from initiation to activation of the meter(s). 2. As a near term solution, the agent (CCR) UX will be simplified to allow much quicker agent processing of phone requests. Agents currently are required to navigate to up to 10 individual SAP transactions to add a service request for a new customer. This does not allow the agent to complete the transaction with the customer on the phone. A handoff process is in place between the call agent (CCR) and the data entry associate (CSR1) to get the final order placed and routed correctly. The result of this CSA will improve call handling time, customer service and order cycle time. Customer Construction Services processes 58,000 service requests annually and of those 35.5% or 20,360 are for new customers or services to PSE. This screen consolidate aligns with the future development of the Construction Customer Self Services roadmap. | D23: 1Q17 | E23: 2Q17 | F23: 1 | G23: x | H23: X | I23: X | J23: x | K23: x | L23: x | M23: x | N23: x | P23: X | Q23: x | T23: X | U23: x | X23: x? | Y23: x
A24: DCIII-2 | B24: P2 - IWM Cost Management | C24: SAP ECC PM, FI, CO, PS, and other changes to enable full lifecycle Financial tracking of tracking of a PM work order / operation pair for all IWM targeted work. | D24: 1Q17 | E24: 3Q17 | F24: 1 | G24: x | H24: X | I24: X (MULTIPLE) | J24: x | K24: x | L24: x | Q24: x | T24: x | AA24: X
A25: DCIII-3 | B25: P3a - SAP Work Management System (WMS) | C25: Consistent views and approach for all work in SAP. Provides visibility through the lifecycle of the work from initialization through project close. Allow for use of standard SAP and SAP certified applications to order & track materials/services, date plan, assign work, push to mobile and update, etc. | D25: 1Q17 | E25: 3Q17 | F25: 1 | H25: X | J25: x | K25: x | L25: x | T25: x
A26: DCIII-4 | B26: P3b - Workforce Scheduling | C26: Design & common build of Scheduling, Dispatch, Process & Technology for all Gas & Electric field work. | D26: 1Q17 | E26: 3Q17 | F26: 1 | H26: X | I26: X | J26: x | K26: x | L26: x | M26: x | N26: x | P26: X | Q26: x | R26: X | T26: x | U26: ?
A27: DCI-11 | B27: Enterprise Service Bus (ESB)/ Micro Services TxPort | C27: The ESB project will create an Enterprise Middleware, that will integrate with SAP and non-SAP systems including OMS, Web and Mobile. This is needed to enable reliable communication between different systems (web, mobile, backend). | D27: 1Q17 | E27: 4Q17 | F27: 1 | G27: x | H27: X | I27: X | L27: x | O27: x | P27: X | Q27: x | S27: x | T27: x | W27: x | X27: x? | Y27: x
A28: DCV-2 | B28: Data Quality, Management & Cleanup | C28: Execute on the Data Governance Framework through ownership, cleanup, data management and synchronization, and quality assurance and controls to ensure accuracy and consistency of data across all systems. This will be prioritized based on benefit delivery and/or project timeline. G1- Expand Master Data to include relationship between Customer and Asset. Gives a complete landscape of all customer data in relation to assets. G2- Integration of SAP and GIS providing a Geo-spatial view of work, customers, and assets. Visually representing it on the GIS system. | D28: 1Q17 | E28: 2020 | F28: 1 | G28: x | H28: X | I28: X | J28: x | K28: x | P28: X (VALIDATION) | Q28: x | R28: X (GIS Data) | T28: x | X28: x?
A29: DCI-5 | B29: Customer 360 Data View | C29: The internal capability for PSE to expose the full information of the Customer's data, in a 360 degree data view. This will bring the channels together in an easy visualization. Customer 360 View project will consolidate customer data and interaction with PSE (i.e. billing, payment, call history, lease services, outages, billing inquiries, street light installations, energy efficiency programs, etc.). This will enable the CSR, FSR, Customer, and other authorized PSE employees to have access to the respective data associated with the customer. | D29: 1Q17 | E29: 1Q18 | F29: 1 | G29: x | H29: X | I29: X | J29: x | L29: x | P29: X | Q29: x | T29: x | V29: x | W29: x | X29: x? | Y29: x
A30: DCV-6 | B30: Auto-Categorization of Customer Calls | C30: Technology solution to accurately capture why customers call and reduce duplicate, manual tasks by CSRs. This function will eliminate redundancy in business process, improve data integrity and clearly define the main purpose of each customer interaction based on the agent’s actions. | D30: 1Q17 | E30: 2Q17 | F30: 1 | G30: x | H30: X | J30: x | L30: x | P30: X | Q30: x | X30: x? | AA30: X
A31: S1-2 | B31: Bill Code Enhancement CSA - Phase 2 | C31: Identify accurate description of the Miscellaneous Adjustments (MA) on residential & collective accounts bills for approximately 18 scenarios. Missing or unclear information on bills Decrease cost of postage due to the number of bill pages and resolve overage print charges received System checks to prevent inaccurate data being entered into fields (converting free form to drop-down menus) for non-consumption and SAP Sales and Distribution (SD) charges created by employees | D31: 2Q16 | E31: 2Q17 | F31: 1 | G31: x | H31: X | J31: x | L31: x | P31: x | Q31: x | T31: X
A32: S2-1 | B32: No Fee Bank Card | C32: This project was identified as a result of the Billing and Payment Roadmap completion in April and UTC’s approval of the no fee bank card processing on 3/26/2016. This project is addressing the Bill Matrix payment channel that processes 1.2 million transactions annually. The forecast is to grow this channel 64% to 2.2 million transactions the first year. The no-fee bank card processing capabilities completion by August 2016 is included in Docket UE-160203 and Docket UG-160204 order 01 Granting the Amended Accounting Petition, which includes rate recover of the fee-free payment program. | D32: 2Q16 | E32: 3Q16 | F32: 1 | G32: x | H32: Done | I32: X | Q32: x
A33: S2-2 | B33: Billing Performance Improvements | C33: Reduce the number of billing exceptions from 22,000 per year to approximately 7,000 EMMA Cases and correct within the new 60 day billing rule. There are management processes, training along with Metering and SAP system enhancements required to achieve this goal. | D33: 2Q16 | E33: 4Q16 | F33: 1 | G33: x | H33: Assigned | J33: x | Q33: x
A34: S2-3 | B34: =VLOOKUP(A34,ProjectMatrix,2,0) -> Bill Due Reminder | C34: =VLOOKUP(A34,ProjectMatrix,3,0) -> Provide a notification to users who have not paid or scheduled a payment within 5 days of their due date that their payment date is approaching, along with a prompt to pay now for Fiserv customers. | D34: =VLOOKUP(A34,ProjectMatrix,13,0) -> 2Q16 | E34: =VLOOKUP(A34,ProjectMatrix,14,0) -> 3Q16 | F34: 1 | G34: x | H34: Assigned | Q34: x
A35: S2-4 | B35: Fiserv Balance | C35: Display a real time balance, explanation of type of account (active or closed) and remove closed accounts if they are paid in full through the Bank Withdrawal Pay Page through FISERV. | D35: 2Q16 | E35: 3Q16 | F35: 1 | G35: x | H35: Assigned | Q35: x
A36: S3-1 | B36: TSI Dunning | C36: The “TSI–Dunning” Project will implement a behavioral scoring software solution purchased from Total Solutions Inc. (“TSI”) leveraging a vendor-hosted strategy. This will result in eliminating the customers who have a high propensity to pay although late. The actual customers who are likely not to pay are acted upon in the collection process immediately. | D36: 2Q16 | E36: 2Q16 | F36: 1 | G36: x | H36: Assigned | Q36: x
A37: S5-14 | B37: Manage Energy Efficiency programs | C37: A PSE customer can utilize self service options for information pertaining to all of their EE services with PSE in one place. | D37: 2Q16 | E37: 3Q16 | F37: 1 | G37: x | H37: Assigned | I37: X? | Q37: x | X37: x?
A38: DCIII-1 | B38: P0 - GIS CAD Design | C38: Improve the accuracy and timeliness of GIS data and model of gas and electric networks and improving efficiencies of MRT staff & CSP designers through integration between the design tool and GIS. | D38: 2Q16 | E38: 2Q17 | F38: 1 | G38: x | H38: X | J38: x | K38: x | L38: x | O38: X (CAD/Winest) | P38: x | Q38: x | R38: X (GIS)
A39: S3-2 | B39: Payment Arrangement/Budget/Deposit | C39: Auto -Payment Arrangement/Budget/Deposit via all self serve channels - This includes account set-up requirements and management of account changes. This will allow PSE to leverage SSN's with Experian and TSI to determine deposit requirements. | D39: 2Q17 | E39: 1Q18 | F39: =IFERROR(IF(VLOOKUP(D39,QuarterTable,5,0)=2017,1,0),"") -> 1 | G39: x | H39: X | I39: ? | J39: x | L39: x | M39: x | P39: X | Q39: x | S39: x | X39: x | Y39: x
A40: S4-1 | B40: Manage Outage Orders | C40: Outage orders captured from initiation to resolution presented to the customer across all channels. This would be the process of designing the UX for outage management (planned and unplanned) for all channels. It would include the user flow for submission of outages as well as what notifications customers ideally want, what kind of updates and how often, etc. this would be part of the Customer Experience Design project. This should occur before providing interim solutions that could fall short of customer expectations and erode trust. A process and tools to create and execute proactive outage notifications to customers across all applicable channels. The channel and type of outage notification will be maintained through "Manage Outage Preferences" (Preference Center DCI-7). Physical comm to customers will be via Comm Gateway service (DCI-8) | D40: 2Q17 | E40: 1Q18 | F40: =IFERROR(IF(VLOOKUP(D40,QuarterTable,5,0)=2017,1,0),"") -> 1 | G40: x | H40: X | I40: ? | J40: x | L40: x | P40: X | Q40: x | R40: X (OMS) | X40: x?
A41: DCI-9A | B41: Rules Engines | C41: BRF+ can be utilzied to create rules based decisions based on specific customer data, which can be used on Mobile, Web, IVR and CSR Channels. For e.g. these rules can enable CSR agents to receive predictive notifications, customer to receive respective alerts on web, mobile, IVR, etc. This project will have overlap with DCI-3 & DCI-13. | D41: 2Q17 | E41: 4Q17 | F41: =IFERROR(IF(VLOOKUP(D41,QuarterTable,5,0)=2017,1,0),"") -> 1 | G41: x | H41: X | J41: x | L41: x | P41: X | Q41: x | X41: x?
A42: PM-1 | B42: Program Management | C42: Funding of PMO resources to fully staff required roles with competent and qualified resources. Training and on-boarding will occur as necessary and performance plans, performance management and coaching/mentoring will be standard activities. (includes Cost Center Costs) | D42: 3Q16 | E42: 2020 | F42: 1 | Q42: x
A43: S4-2 | B43: =VLOOKUP(A43,ProjectMatrix,2,0) -> SAP Mutli Channel Foundation for Utilities (MCF) | C43: Develop new description with Joe | D43: 3Q16 | E43: 4Q16 | F43: 1 | H43: X | J43: x | L43: x | P43: X | Q43: x
A44: S4-4 | B44: P1 - AMR to OMS Integration | C44: Integration of residential electric meter "last gasp" indications though the AMR MDMS system with the Power On Outage Management system to provide indication of power outage to a meter and groupings of meters. | D44: 3Q16 | E44: 4Q16 | F44: 1 | G44: x | H44: Assigned | Q44: x | R44: X OMS
A45: S3-4 | B45: Full realization across Digital Core | C45: Refine Financial Assistance processes to utilize Digital Core capabilities and develop business and functional requirements for implementation by Digital Core team. Thereby provide consistent experience across all customer facing channels, as well as enabling CSR for customer propensity to pay, budgeting, arrangements and C&C | D45: 3Q17 | E45: 4Q18 | F45: =IFERROR(IF(VLOOKUP(D45,QuarterTable,5,0)=2017,1,0),"") -> 1 | Q45: x
A46: S3-6 | B46: Full realization of leveraging low energy assistance programs across Digital Core | C46: Refine Energy Assistance Programs to utilize Digital Core capabilities and develop business and functional requirements for implementation by Digital Core team. Thereby provide consistent experience across all customer facing channels, as well as enabling CSR for customer propensity to pay, budgeting, arrangements and C&C | D46: 3Q17 | E46: 4Q18 | F46: =IFERROR(IF(VLOOKUP(D46,QuarterTable,5,0)=2017,1,0),"") -> 1 | Q46: x
A47: S5-7 | B47: Create/Change Service Orders | C47: A self service process for customers to create (schedule) and change service order requests through pse.com. Will include access to multiple types of services including appliance service, re-lights, etc. This is the web front end work for project DCIII-9 (P8). | D47: 3Q17 | E47: 1Q18 | F47: =IFERROR(IF(VLOOKUP(D47,QuarterTable,5,0)=2017,1,0),"") -> 1 | G47: x | H47: X | I47: X | J47: x | K47: x | L47: x | P47: X | Q47: x | S47: x
A48: DCII-1 | B48: IVR Enhancements - Natural Voice | C48: The project involves enhancing and enriching existing IVR infrastructure with added capabilities for natural voice. It includes enabling vendor/software specific natural voice options along with the design and delivery of additional functionality required for PSE. Natural voice support will allow customers to have a back and forth interaction with IVR for various service aspects compared to a traditional touch button option. Customers can choose from a variety of options presented which will lead to faster issue and call resolution as they get routed to agents (in applicable scenarios). | D48: 3Q17 | E48: 4Q17 | F48: =IFERROR(IF(VLOOKUP(D48,QuarterTable,5,0)=2017,1,0),"") -> 1 | G48: x | H48: X | L48: x | M48: x | Q48: x | X48: x
A49: DCIII-6 | B49: P4 - Gas Customer Facing Work Rollout | C49: Deployment to Gas First Response teams of the Work Management, Scheduling, and Mobile Processes and Tools . | D49: 3Q17 | E49: 2Q18 | F49: =IFERROR(IF(VLOOKUP(D49,QuarterTable,5,0)=2017,1,0),"") -> 1 | G49: x | H49: X | I49: X | P49: X | Q49: x | R49: X | S49: x | T49: X
A50: PM-6 | B50: Program Mobilization and Planning | C50: This includes the funding and resources for the GTZ program initiation. | D50: 4Q16 | E50: 2Q17 | F50: 1 | Q50: x | R50: X | S50: x
A51: S3-5 | B51: Energy Assistance (Low Income) | C51: Improve Customer Access to Low Income Funds (LIHEAP, PSE HELP and WARM funds) along with timely Application of Customer Pledge Credits to Active Accounts. This real-time integration with the agencies enables on-line customer scheduling, application and status checking. There is also a data component to identify candidate customers who may qualify for bill payment assistance, performance of the agencies and relationship between low income customers and delinquency. | D51: 4Q16 | E51: 4Q17 | F51: 1 | G51: x | H51: X | I51: X | O51: x | P51: X | Q51: x | X51: x
A52: S5-4 | B52: Stop, Start, and Transfer for property managers and business customer | C52: The Start Stop Transfer project delivered a new self service web experience focused on residential customers. Commercial accounts and landlords have complexities that could not be addressed in the original project but would mitigate additional call volume. | D52: 4Q16 | E52: 2Q17 | F52: 1 | H52: X | I52: X | J52: x | L52: x | M52: x | P52: X | Q52: x | S52: x | X52: x?
A53: DCI-1 | B53: Web, Mobile App and Content Management (including responsive web mobile) | C53: The project involves revamping PSE.com customer facing web and content management platform - includes basic design aspects, customer experience and other supported functionalities on web and mobile web. This enables customer to easily navigate to PSE information, Account Management and Usage. The mobile application platform will enable design and development of both native and hybrid customer facing as well as integrate with backend systems for services. Provides mobile native functions for billing, payment, usage, account maintenance and geolocation capability of field employees. (DCI-2 will inform the look and feel of the content, but it is standalone in regards to content that will be included. The feature content of the app will be determined in the initiation phase of the project). | D53: =VLOOKUP(A53,ProjectMatrix,13,0) -> 4Q16 | E53: =VLOOKUP(A53,ProjectMatrix,14,0) -> 3Q18 | F53: 1 | G53: x | H53: X (PM + PM Coordinator) | I53: X | J53: x | L53: x | M53: x | P53: X | Q53: x | S53: x | T53: X | V53: x | W53: x | X53: x? | Y53: x | AA53: X
A54: DCI-2 | B54: Customer Experience Design for all channels | C54: Provide a consistent design for customer interactions across Super 5 programs for all the channels, so that customer experience is seamless across all channels. The external consultant would initiate and run all required workshops to gather requirements. Guidelines, visual prototypes or prompts of each channel. | D54: 4Q16 | E54: 1Q17 | F54: 1 | P54: X | Q54: x | X54: x
A55: DCI-8 | B55: Communication Gateway & Proactive Notifications | C55: The project will provide a technology platform that allows PSE to communicate consistently and proactively across all channels e.g. text, email, outbound calling, app notification. This will enable PSE to align all communications with the customer across different channels such as email, text and mobile notification. | D55: 4Q16 | E55: 2Q17 | F55: 1 | G55: x | H55: X | J55: x | L55: x | M55: x | P55: X | Q55: x | S55: x | X55: x | Y55: x
A56: DCI-13 | B56: ECC and CRM on Hana | C56: Foundational migration of CRM and ECC to HANA database. Enables predictive analysis, real time billing, expedited analysis of customer data required for predictive notifications. | D56: 4Q16 | E56: 2Q17 | F56: 1 | G56: x | H56: X | J56: x | K56: x | L56: x | M56: x | P56: X | Q56: x | S56: x | T56: X
A57: DCIII-5 | B57: P3c - Workforce Mobility | C57: Provide crews electronic mobile capabilities to receive, status, and report on work activities. This will enable field employees to easily access customer data and account information. This will also provide easy accessibility and self service functionalities in a Mobile Native app experience for employees. Will start 4th quarter 2016 with scoping, to be charged to Vesta's 2016 work order. | D57: 4Q16 | E57: 3Q17 | F57: 1 | H57: X | I57: X | J57: x | K57: x | L57: x | P57: X | Q57: x | R57: X (PCAD) | S57: x | T57: X | W57: x | Y57: x | AA57: X
A58: DCV-1 | B58: Data Governance | C58: Develop Data Governance framework that includes ongoing data management quality services via identifying people and roles, determining processes and standards, and installing tools to identify, monitor, and prevent data quality issues (including duplication, inconsistency, and incompleteness). | D58: 4Q16 | E58: 2020 | F58: 1 | H58: X | I58: X | J58: x | L58: x | M58: x | P58: X | Q58: x | S58: x | U58: x | W58: x | AA58: X
A59: DCV-3 | B59: Data Analytics | C59: The Data Analytics project provides an enhanced analytics of customer and transactional data for PSE. This will enable the business to gain a better understanding of various customer data points and make data driven decisions. Includes, HADOOP and the transcription of calls converted to text for integration into the "Data Lake". | D59: 4Q16 | E59: 2020 | F59: 1 | G59: x | H59: X | J59: x | M59: x | P59: X | Q59: x | S59: x | T59: X
A60: S2-5 | B60: Non Consumption Billing | C60: Enhance the SAP system and automate the process to provide a comprehensive billing experience for customers who receive, make payment and collections for non-consumption bills. | D60: 4Q17 | E60: 1Q18 | F60: =IFERROR(IF(VLOOKUP(D60,QuarterTable,5,0)=2017,1,0),"") -> 1 | G60: x | H60: X | I60: X | J60: x | K60: x | L60: x | M60: x | P60: X | Q60: x
A61: S5-1 | B61: Self Service for customer, ability to add additional authorized user | C61: A self service process that allows the customer to add an authorized user to their account. | D61: 4Q17 | E61: 1Q18 | F61: 1 | G61: x | H61: X | I61: X | J61: x | L61: x | P61: X | Q61: x | X61: x?
A62: S5-15 | B62: Intelligent migration of web content (learn about PSE and community) | C62: Migration of PSE.com static content to the new web platform in a more user-friendly format. | D62: 4Q17 | E62: 1Q18 | F62: 1 | G62: x | H62: X | P62: X | Q62: x | S62: x | U62: x | W62: x | AA62: X
A63: DCI-12 | B63: Web Analytics | C63: The Web Analytics project provides a platform for business to analyze customer activity and behavioral data sourced from web and mobile channels. Costs only include robust web analytics and piping output into the Data Lake. | D63: =VLOOKUP(A63,ProjectMatrix,13,0) -> 4Q17 | E63: =VLOOKUP(A63,ProjectMatrix,14,0) -> 1Q18 | F63: 1 | G63: x | H63: X | P63: X | Q63: x | S63: x
A64: DCII-2 | B64: IVR Enhancements - Predictive | C64: The project involves enhancing and enriching existing IVR infrastructure (Cisco) with added predictive capabilities for call routing (route to the right agent), call context (predict and understand reason for the call) and call content (provide right information to IVR and CSR). Predictive IVR along with Natural voice will provide up front requisite information to the customer based on available data in the system. A set of business specific predictive rules will be developed and exposed to IVR software enabling better self-service, informed customer service, better call routing, improved service metrics and better customer satisfaction. | D64: 4Q17 | E64: 1Q18 | F64: 1 | G64: x | H64: X | J64: x | L64: x | M64: x | Q64: x | R64: X (OMS) | X64: x
A65: DCII-4 | B65: Multi-channel Call Center (online chat, email) | C65: The project involves adding new communication channels - online chat and email - as additional avenues for customer service enabling PSE's move towards digital transformation and Omni channel service. This will complement existing customer service channel of phone/IVR and will empower customers by providing additional ways to get in touch with PSE. Dedicated and trained CSR's will own incoming customer query queues for online chat and email just like they do with phones. They'll have access to all customer information (Customer 360) enabling them to efficiently and effectively service PSE customers through chat and email also. All business functions and customer service processes will be supported seamlessly giving both customers and agents a true omnichannel presence. (This system would replace EGain, this does not include co-browsing functionality). The data from the web-chat and email with agent should be able to feed through BW to Hana for further analytics. | D65: 4Q17 | E65: 4Q18 | F65: 1 | G65: x | H65: X | J65: x | L65: x | P65: x | Q65: x | S65: x | X65: x | Y65: x
A66: DCII-5 | B66: =VLOOKUP(A66,ProjectMatrix,2,0) -> CRM - CSR Guided Experience with 3 click navigation (CRM modification, excluding Hana/prediction) | C66: =VLOOKUP(A66,ProjectMatrix,3,0) -> The project involves enabling CSR guided experience with 3 click navigation for pre-defined business scenarios. Guided experience will enable a step by step procedure based user experience for agents in SAP CRM especially for critical business scenarios like Start/Stop/Transfer, Service orders, Customer master data creation etc. Standard SAP CRM functionality (guided procedures) will be leveraged as a baseline and any PSE specific requirements will be designed as add ons. This will provide additional intelligence and guidance to CSR's as they navigate through various business processes eventually leading to better service metrics, faster resolution and improved customer satisfaction. | D66: 4Q17 | E66: 4Q18 | F66: 1 | G66: x | H66: X | J66: x | L66: x | Q66: x | S66: x | X66: x
A67: S2-6 | B67: Customer Pre-payment (incl real time presentment, bill on-demand) | C67: The customer will have the ability to pre-pay their energy bill, ensuring they are always within their budget. | D67: 2Q18 | E67: 1Q19 | F67: 0 | G67: x | H67: X | I67: X | J67: x | N67: x | P67: x | Q67: x | X67: x? | Y67: x
A68: S4-3 | B68: P15 - OMS-AMI (Outage Support) | C68: To interface AMI meter exception data (power on / power off messages) with the Electric Operations OMS to augment the outage prediction models in OMS. To proactively manage communication to AMI enabled customers regarding outage occurrences and restoration. | D68: 4Q19 | E68: 2020 | F68: 0 | H68: X | I68: X | Q68: x | R68: X (OMS)
A69: S4-6 | B69: Full realization of street light across Digital Core | C69: Refine Street Light processes to utilize Digital Core capabilities and develop business and functional requirements for implementation by Digital Core team. Thereby provide consistent experience across all customer facing channels, as well as enabling CSR. 1. Automate Street Light Request 2. Street Light Online Reporting Sys. 3. GIS Updates 4. Street Light Outage Map | D69: 2020 | E69: 2020 | F69: 0 | Q69: x
A70: S5-8 | B70: Remote Disconnect/Reconnect (Elec. only) for service/construction | C70: PSE will utilize AMI technology to allow for self service remote disconnect/reconnect for electric customers for service/construction - across all digital channels. | D70: 1Q19 | E70: 4Q19 | F70: 0 | Q70: x | S70: x
A71: S5-9 | B71: Customer self-service scheduling process | C71: Implementing the PSE process to support customer self service and the ability for customers to schedule their service with PSE online with updates on their request status. | D71: 2Q18 | E71: 4Q18 | F71: 0 | Q71: x | R71: X | X71: x?
A72: S5-11 | B72: Remote Disconnect/Reconnect for Payment (Elec. only) | C72: PSE will utilize AMI technology to allow for remote disconnect/reconnect for delinquent electric customers. This will eliminate 205,000 truck rolls to either disconnect and/or collect overdue bills in the field. There are another 55,000 truck rolls eliminated for re-connect in the field. | D72: 3Q18 | E72: 2Q19 | F72: 0 | Q72: x | S72: x
A73: S5-13 | B73: Manage Services & Products e.g. Leasing | C73: A PSE customer can utilize self service options for information pertaining to all of their services with PSE in one place. | D73: 1Q19 | E73: 2Q19 | F73: 0 | Q73: x | X73: x?
A74: S5-16 | B74: Veg. Management Online Reporting Sys. | C74: A Self service guided process for customers to submit vegetation management concerns. This will include the back-end process development as well as the technology interface between the veg. management group and the customer. | D74: 1Q19 | E74: 2Q19 | F74: 0 | Q74: x | X74: x?
A75: DCI-3 | B75: Campaign Management | C75: A PSE driven platform (i.e. PSE would initiate the information vs. Preference center (DCI-7)) that allows for centralization of all communication tools for segmentation based on customers parameters. The management of email and text messaging to individual and segmented customer(s) based on pre-defined business rules or predictive engine. This helps to consolidate and enhance customer communication, increase customer out-reach, provide details on usage and other account related information. | D75: 1Q18 | E75: 3Q18 | F75: 0 | Q75: x
A76: DCI-6 | B76: Social Media Listening and Publishing | C76: Enable PSE to communicate with customers through social media channels and analyze customer responses. This will enable PSE to listen and analyze customer posts on social media platforms regarding PSE services(outages and other services related issues). | D76: 1Q18 | E76: 2Q18 | F76: 0 | Q76: x
A77: DCII-3 | B77: Predictive alerts from CSR Screen | C77: The project involves enhancing and enriching agent CRM screen with context specific and in the moment predictive alerts with respect to the customer being serviced. The most important set of business defined predictive scenarios and associated alerts will be designed in the system and the same will be exposed to agents in SAP CRM as intelligent and context specific alerts based on the identified customer. The alerts will include all supported business functions and will be a mix of both proactive and predictive functions based on customer specific information available in the system. CSR's will use predictive alerts as a complimentary function to natural voice and predictive IVR. These will give them more insight in to customer specific requests, pending actions and available/possible service call reasons. Intelligent and context specific alerts like these would help in faster call resolution and better overall service metrics. | D77: 1Q19 | E77: 2Q19 | F77: 0 | Q77: x
A78: DCIII-7 | B78: P5 - Electric customer facing work rollout | C78: Deployment to Electric First Response teams of the Work Management, Scheduling, and Mobile Processes and Tools. | D78: 2Q18 | E78: 4Q18 | F78: 0 | Q78: x | R78: X
A79: DCIII-8 | B79: P6 - Meter Management | C79: Targeted rollout to Gas & Electric Measurements / Metering groups. Update end to end meter management processes to include lifecycle testing and tracking of all billing meters including meter shop, warehouse, transport, and field metering activities. | D79: 2Q18 | E79: 4Q18 | F79: 0 | Q79: x | S79: x
A80: DCIII-12 | B80: P7 - Compatible Units Library | C80: The development of SAP Compatible Units (CU) and CU library to facilitate repeatable design & construction work. | D80: 2Q18 | E80: 4Q18 | F80: 0 | Q80: x | R80: X(GIS?)
A81: DCIII-10 | B81: P9 - Customer Work Status Portal | C81: To provide customer web access to check status of activities affecting that customer. Activities for which status will be available include; appointment status, service work status, outage (planned & unplanned) status, and PSE work in the vicinity. | D81: 2Q18 | E81: 2Q19 | F81: 0 | Q81: x
A82: DCIII-11 | B82: P10 - Compliance Work - Gas & Electric Linear Asset | C82: Deliver an integrated Leak management system based on GIS and SAP work and asset management. Apply the same approach for other Compliance driven work at PSE. | D82: 4Q18 | E82: 3Q19 | F82: 0 | Q82: x | S82: x
A83: DCIII-9 | B83: P8- Customer Work Initiation Portal | C83: To provide customer web access to request work, receive estimates for Gas service and make a service appointment. | D83: 3Q18 | E83: 1Q19 | F83: 0 | Q83: x
A84: DCIII-16 | B84: P11- Project Systems Integration | C84: To implement SAP to P6 integration for enterprise project management, program management, and medium term (e.g. in year) work and resource planning/ forecasting. | D84: 1Q19 | E84: 4Q19 | F84: 0 | Q84: x
A85: DCIII-13 | B85: P12- AUD | C85: Enhance repeatable nature of field estimating & Design through use of mobile design, compatible units, repeatable design assemblies, and integrated estimating tools. Estimate capability to include CIAC calculation and tracking. Customer Projects - Gas & Electric: To deliver to customer projects the enhanced GIS CAD Design capabilities through use of the SAP CU design and estimating capabilities designed in project P10. This includes mobile design capabilities. | D85: 3Q18 | E85: 4Q19 | F85: 0 | Q85: x | R85: X (GIS)
A86: DCIII-14 | B86: P13 - Other Maintenance Rollout | C86: Deployment of the Work management, Scheduling, and Mobile processes and tools to the remaining teams and for the remaining maintenance work types throughout PSE (i.e. T&D Gas & Electric Operations). | D86: 4Q19 | E86: 2020 | F86: 0 | Q86: x
A87: DCIII-15 | B87: P14 - Other Construction Projects - Gas & Electric | C87: To deliver to remaining non-customer projects the enhanced GIS CAD Design capabilities through use of the SAP CU design and estimating capabilities designed in project P10. This includes mobile design capabilities. | D87: 4Q19 | E87: 2020 | F87: 0 | Q87: x
A88: DCIV-1 | B88: AMI Advanced Functionality Systems Integration | C88: The configuration of the SAP AMI module and systems integration with other PSE systems to support advanced AMI functionality. Also includes internal and back end work needed for web, mobile and CSR facing systems to support Advanced AMI. Advanced AMI examples include pre-pay, remote disconnect and re-connect and interval and/or TOU billing. | D88: 1Q18 | E88: 4Q18 | F88: 0 | Q88: x | R88: X (OMS) | S88: x
A89: DCI-9B | B89: Hana Predictive | C89: HANA Predictive Engine and BRF+ to create rules based on specific customer data, which can be used on Mobile, Web, IVR and CSR Channels. | D89: 2Q18 | E89: 4Q18 | F89: 0 | Q89: x

Sheet Roadmap
B2: Inform | C2: Training | D2: ID | E2: Project Name | F2: Description | G2: Deliverables | H2: Business Need | I2: Value Proposition / Benefits | J2: Dependencies | K2: Dependent Projects | L2: Assumptions | M2: Risks | N2: Risks of Delaying | O2: Comments | P2: Start Date | Q2: End Date | R2: Total Cost ($M) | S2: Work Stream | T2: RFP? | U2: RFP Type | V2: Priority Level | W2: 1Q16 | X2: 2Q16 | Y2: 3Q16 | Z2: 4Q16 | AA2: 1Q17 | AB2: 2Q17 | AC2: 3Q17 | AD2: 4Q17 | AE2: 1Q18 | AF2: 2Q18 | AG2: 3Q18 | AH2: 4Q18 | AI2: 1Q19 | AJ2: 2Q19 | AK2: 3Q19 | AL2: 4Q19 | AM2: 2020 | AN2: Capability
D3: 1 | E3: 2 | F3: 3 | G3: 4 | H3: 5 | I3: 6 | J3: 7 | K3: 8 | L3: 9 | M3: 10 | N3: 11 | O3: 12 | P3: 13 | Q3: 14 | W3: 15 | X3: 16 | Y3: 17 | Z3: 18 | AA3: 19 | AB3: 20 | AC3: 21 | AD3: 22 | AE3: 23 | AF3: 24 | AG3: 25 | AH3: 26 | AI3: 27 | AJ3: 28 | AK3: 29 | AL3: 30 | AM3: 31 | AN3: 32
A4: Program Management and Governance | D4: =+'Modified Costs (R) '!B6 -> Program Management and Governance
A5: How we will govern and manage GTZ across the 5 year period | D5: PM-1 | E5: Program Management | F5: Funding of PMO resources to fully staff required roles with competent and qualified resources. Training and on-boarding will occur as necessary and performance plans, performance management and coaching/mentoring will be standard activities. (includes Cost Center Costs) | P5: 3Q16 | Q5: 2020 | R5: =MROUND(VLOOKUP(D5,'Modified Costs (R) '!ProjectCostMatrix,43,0)/10^6,0.25) ->  | S5: General | T5: No | W5: 0 | X5: 0 | Y5: =IF($P5=Y$2,1,IF($Q5=Y$2,1,IF(X5=0,0,IF($Q5=X$2,0,1)))) -> 1 | Z5: 1 | AA5: 1 | AB5: 1 | AC5: 1 | AD5: 1 | AE5: 1 | AF5: 1 | AG5: 1 | AH5: 1 | AI5: 1 | AJ5: 1 | AK5: 1 | AL5: 1 | AM5: 1
D6: PM-2 | E6: Organization Change Management & Customer Communications strategy | F6: The capability to support change within the business and to our customers. Includes: - Stakeholder identification - Program-wide OCM strategy - Training plan - Communications strategy (internal and external) - On-going change assessments and analyses | P6: 1Q17 | Q6: 2020 | R6: =MROUND(VLOOKUP(D6,'Modified Costs (R) '!ProjectCostMatrix,43,0)/10^6,0.25) ->  | S6: General | T6: No | W6: 0 | X6: 0 | Y6: =IF($P6=Y$2,1,IF($Q6=Y$2,1,IF(X6=0,0,IF($Q6=X$2,0,1)))) -> 0 | Z6: 0 | AA6: 1 | AB6: 1 | AC6: 1 | AD6: 1 | AE6: 1 | AF6: 1 | AG6: 1 | AH6: 1 | AI6: 1 | AJ6: 1 | AK6: 1 | AL6: 1 | AM6: 1
D7: PM-3 | E7: Customer rollout - communications execution | F7: External communication and marketing to customers as capabilities become enabled through the GTZ project plan. Strategy developed as part of PM-2. | L7: Do not show any funding here as we will assume that GTZ and Corp Communications will cover this via separate funding requests. | P7: 1Q17 | Q7: 2020 | R7: =MROUND(VLOOKUP(D7,'Modified Costs (R) '!ProjectCostMatrix,43,0)/10^6,0.25) ->  | S7: General | T7: No | W7: 0 | X7: 0 | Y7: =IF($P7=Y$2,1,IF($Q7=Y$2,1,IF(X7=0,0,IF($Q7=X$2,0,1)))) -> 0 | Z7: 0 | AA7: 1 | AB7: 1 | AC7: 1 | AD7: 1 | AE7: 1 | AF7: 1 | AG7: 1 | AH7: 1 | AI7: 1 | AJ7: 1 | AK7: 1 | AL7: 1 | AM7: 1
D8: PM-4 | E8: GTZ Benefits & Balance Scorecard | F8: Creating the dashboard to capture the GTZ benefits realization & balance scorecard | P8: 1Q17 | Q8: 2020 | R8: =MROUND(VLOOKUP(D8,'Modified Costs (R) '!ProjectCostMatrix,43,0)/10^6,0.25) ->  | S8: General | T8: No | W8: 0 | X8: 0 | Y8: =IF($P8=Y$2,1,IF($Q8=Y$2,1,IF(X8=0,0,IF($Q8=X$2,0,1)))) -> 0 | Z8: 0 | AA8: 1 | AB8: 1 | AC8: 1 | AD8: 1 | AE8: 1 | AF8: 1 | AG8: 1 | AH8: 1 | AI8: 1 | AJ8: 1 | AK8: 1 | AL8: 1 | AM8: 1
D9: PM-5 | E9: Regulatory Work stream | F9: Regulatory Support: GTZ to continuously work with Regulatory, compliance and other governing organization like the WA State Department of Commerce. GTZ team will have to complete the research to provide supporting materials to regulatory departments. Potential areas of change are payment arrangements, budget payments, disconnect notice delivery method, increase disconnect fee, deposit collection in the field, SSN for account setup and collections, correspondence changes for self-service, and Bill Payment Assistance for Low Income Customers. | G9: Include: 1. regulatory strategy 2. stay aligned with regulatory side of the business | P9: 1Q17 | Q9: 2020 | R9: =MROUND(VLOOKUP(D9,'Modified Costs (R) '!ProjectCostMatrix,43,0)/10^6,0.25) ->  | S9: General | T9: No | W9: 0 | X9: 0 | Y9: =IF($P9=Y$2,1,IF($Q9=Y$2,1,IF(X9=0,0,IF($Q9=X$2,0,1)))) -> 0 | Z9: 0 | AA9: 1 | AB9: 1 | AC9: 1 | AD9: 1 | AE9: 1 | AF9: 1 | AG9: 1 | AH9: 1 | AI9: 1 | AJ9: 1 | AK9: 1 | AL9: 1 | AM9: 1
D10: PM-6 | E10: Program Mobilization and Planning | F10: This includes the funding and resources for the GTZ program initiation. | O10: product or SI selection, Including detailed project initiation for first year investment and on going services, Break down of onCloud and on Premise software's | P10: 4Q16 | Q10: 2Q17 | R10: =MROUND(VLOOKUP(D10,'Modified Costs (R) '!ProjectCostMatrix,43,0)/10^6,0.25) ->  | S10: General | T10: No | W10: 0 | X10: 0 | Y10: =IF($P10=Y$2,1,IF($Q10=Y$2,1,IF(X10=0,0,IF($Q10=X$2,0,1)))) -> 0 | Z10: 1 | AA10: 1 | AB10: 1 | AC10: 0 | AD10: 0 | AE10: 0 | AF10: 0 | AG10: 0 | AH10: 0 | AI10: 0 | AJ10: 0 | AK10: 0 | AL10: 0 | AM10: 0
D11: PM-8 | E11: Customer Experience Journey Mapping | F11: Stand-up internal journey mapping capability. | P11: 1Q17 | Q11: 2020 | R11: =MROUND(VLOOKUP(D11,'Modified Costs (R) '!ProjectCostMatrix,43,0)/10^6,0.25) ->  | S11: General | T11: No | W11: 0 | X11: 0 | Y11: =IF($P11=Y$2,1,IF($Q11=Y$2,1,IF(X11=0,0,IF($Q11=X$2,0,1)))) -> 0 | Z11: 0 | AA11: 1 | AB11: 1 | AC11: 1 | AD11: 1 | AE11: 1 | AF11: 1 | AG11: 1 | AH11: 1 | AI11: 1 | AJ11: 1 | AK11: 1 | AL11: 1 | AM11: 1
A12: Super Five | D12: =+'Modified Costs (R) '!B17 -> Super 5 Scenarios:
A13: Super 5 - 1) Explain my Bill | D13: Super 5 - 1) Explain my Bill
A14: Scenario: Understand my Energy Usage | E14: =+'Modified Costs (R) '!B18 -> Scenario: Understand my Energy Usage
D15: S1-2 | E15: Bill Code Enhancement CSA - Phase 2 | F15: Identify accurate description of the Miscellaneous Adjustments (MA) on residential & collective accounts bills for approximately 18 scenarios. Missing or unclear information on bills Decrease cost of postage due to the number of bill pages and resolve overage print charges received System checks to prevent inaccurate data being entered into fields (converting free form to drop-down menus) for non-consumption and SAP Sales and Distribution (SD) charges created by employees | J15: Add ph 2 costs | L15: Phase two is included | P15: 2Q16 | Q15: 2Q17 | R15: =MROUND(VLOOKUP(D15,'Modified Costs (R) '!ProjectCostMatrix,43,0)/10^6,0.25) ->  | S15: BPCC | T15: No | V15: 1 | W15: =IF($P15=W$2,1,IF($Q15=W$2,1,IF(R15=0,0,IF($Q15=R$2,0,1)))) ->  | X15: =IF($P15=X$2,1,IF($Q15=X$2,1,IF(W15=0,0,IF($Q15=W$2,0,1)))) -> 1 | Y15: =IF($P15=Y$2,1,IF($Q15=Y$2,1,IF(X15=0,0,IF($Q15=X$2,0,1)))) -> 1 | Z15: =IF($P15=Z$2,1,IF($Q15=Z$2,1,IF(Y15=0,0,IF($Q15=Y$2,0,1)))) -> 1 | AA15: 1 | AB15: 1 | AC15: 0 | AD15: 0 | AE15: 0 | AF15: 0 | AG15: 0 | AH15: 0 | AI15: 0 | AJ15: 0 | AK15: 0 | AL15: 0 | AM15: 0 | AN15: (10) Real-time Payment Posting
D16: S1-3 | E16: Full realization of Energy Usage across Digital Core | F16: Refine Billing and Usage Process to utilize Digital Core capabilities and develop business and functional requirements for implementation by DC team. Thereby provide consistent Billing Explanation experience across all customer facing channels as well as enabling CSR. | G16: - Refined Billing Process and Business requirement - Functional requirements, design and testing - User Acceptance Testing | H16: Consistent Billing and Usage experience across all customer facing channels as well as enabling CSR. To provide a customer with accurate and up to date information specific to an account that allows that transaction to be performed seamlessly, providing a confirmation of transactions performed. | J16: DCI - Consistent Cross Channel Experience DCII - Guided Call Center Experience P3a - SAP Work Management System (WMS) P3b - Workforce Scheduling P3c - Workforce Mobility DC IV - IWM DC V - Data | O16: UAT needs to be included | P16: 1Q17 | Q16: 4Q18 | R16: =MROUND(VLOOKUP(D16,'Modified Costs (R) '!ProjectCostMatrix,43,0)/10^6,0.25) ->  | S16: BPCC | T16: No | W16: =IF($P16=W$2,1,IF($Q16=W$2,1,IF(R16=0,0,IF($Q16=R$2,0,1)))) ->  | X16: =IF($P16=X$2,1,IF($Q16=X$2,1,IF(W16=0,0,IF($Q16=W$2,0,1)))) ->  | Y16: =IF($P16=Y$2,1,IF($Q16=Y$2,1,IF(X16=0,0,IF($Q16=X$2,0,1)))) ->  | AA16: 1 | AB16: 1 | AC16: 1 | AD16: d | AE16: 1 | AF16: 1 | AG16: 1 | AH16: 1 | AI16: 0 | AJ16: 0 | AK16: 0 | AL16: 0 | AM16: 0
A17: Scenario: Understand energy efficiency options and programs | E17: =+'Modified Costs (R) '!B24 -> Scenario: Understand energy efficiency options and programs
A18: Refine Energy Efficiency to utilize Digital Core capabilities and develop business and functional requirements for implementation by DC team. | B18: 250 | C18: 50 | D18: S1-4 | E18: Full realization of energy efficiency across Digital Core | F18: Linking EE systems to the digital core (NEXANT, OPower, SAP and others). Customer is proactively notified of high usage through preferred channel and are directed to self service resource that identifies specific areas whereby customer can become more energy and cost efficient. Specifically, late paying customers are directly marketed to based on channel preferences with regard to energy efficiency / savings opportunities. Provide API for residential and business customers to pull PSE energy usage date into the system of their choice? | G18: Proactively notify customer of high usage, advanced IVR capability to recognize high bill via usage verse an additional charge, temp data for web and printed bill are the same. Link DSM to customer facing platform. Refined Billing Process and Business requirement - Functional requirements, design and testing - User Acceptance Testing. (GTZ will do work and EE will pay for it) Linking EE systems to the digital core (NEXANT, OPower, SAP). 1. The temperature shown on the PSEWeb for a given area will be the same temperature information on the customers bill (utilize same temperature date). 2. Customer will have the ability to process their Energy Efficiency rebates online via PSE.com as well as options int eh form of that rebate (i.e. ACH, pre-paid bank card, etc.). 3. Opower services will be offered to commercial customers 4. The Customer Service Rep has access to the Opower data that the customer has been receiving. 5. SAP will include premise information such as size, year built, window type to better inform he energy usage predictions from Opower. 6. The IVR will identify if the bill is high due to energy usage or high bill due to an additional charge, this will allow the customer to be routed to the correct agent the first time. | H18: To provide a customer with accurate and up to date information specific to energy usage as apart of an explanation to their bill. | J18: DCI - Consistent Cross Channel Experience DCII - Guided Call Center Experience P3a - SAP Work Management System (WMS) P3b - Workforce Scheduling P3c - Workforce Mobility DC IV - IWM DC V - Data | K18: EE projects being completed | L18: This includes budget for technology changes related directly to EE. Linking EE systems to the digital core (any heavy lifting for new EE programs or functionality will be funded by EE) | O18: Because of the separate regulatory complications the costs of the integration of EE to Digital Core, 2.25 million will be covered by EE. NEED TO DISCUSS WITH EE | P18: 1Q17 | Q18: 4Q18 | R18: =MROUND(VLOOKUP(D18,'Modified Costs (R) '!ProjectCostMatrix,43,0)/10^6,0.25) ->  | S18: CI | T18: No | W18: =IF($P18=W$2,1,IF($Q18=W$2,1,IF(R18=0,0,IF($Q18=R$2,0,1)))) ->  | X18: =IF($P18=X$2,1,IF($Q18=X$2,1,IF(W18=0,0,IF($Q18=W$2,0,1)))) ->  | AA18: 1 | AB18: 1 | AC18: 1 | AD18: d | AE18: 1 | AF18: 1 | AG18: 1 | AH18: 1 | AI18: 0 | AJ18: 0 | AK18: 0 | AL18: 0 | AM18: =IF($P18=AM$2,1,IF($Q18=AM$2,1,IF(AL18=0,0,IF($Q18=AL$2,0,1)))) -> 0 | AN18: (37) Temperature Source, (38) Rebate Payment Options, (39) Interactive Website for EE Options, (41) Opower for Commercial Customers, (54) Home Center Update
A19: Super 5 - 2)Pay my Bill | D19: Super 5 - 2)Pay my Bill
A20: Scenario : Bill and make / manage payment | E20: =+'Modified Costs (R) '!B29 -> Scenario : Bill and make / manage payment
A21: Customer is provided accurate, clear and timely billing details and history via proactive communication with capability to make both payments easily, and see them consistently reflected in real-time / same day. Customers will have multiple, no-fee payment options across pertinent channels. | B21: 260 | C21: 10 | D21: S2-1 | E21: No Fee Bank Card | F21: This project was identified as a result of the Billing and Payment Roadmap completion in April and UTC’s approval of the no fee bank card processing on 3/26/2016. This project is addressing the Bill Matrix payment channel that processes 1.2 million transactions annually. The forecast is to grow this channel 64% to 2.2 million transactions the first year. The no-fee bank card processing capabilities completion by August 2016 is included in Docket UE-160203 and Docket UG-160204 order 01 Granting the Amended Accounting Petition, which includes rate recover of the fee-free payment program. | G21: This project has three major business capabilities included for this payment channel; 1) Provide customer single sign on and present the real-time account balance though this payment channel 2) implement a no bank card fee for residential and small commercial customers who use a credit/debit card to make their monthly payment and 3) identify and assess a fee for large commercial customers who use credit/debit card to make their monthly payment. | P21: 2Q16 | Q21: 3Q16 | R21: =MROUND(VLOOKUP(D21,'Modified Costs (R) '!ProjectCostMatrix,43,0)/10^6,0.25) ->  | S21: BPCC | T21: No | V21: 1 | W21: 0 | X21: =IF($P21=X$2,1,IF($Q21=X$2,1,IF(W21=0,0,IF($Q21=W$2,0,1)))) -> 1 | Y21: =IF($P21=Y$2,1,IF($Q21=Y$2,1,IF(X21=0,0,IF($Q21=X$2,0,1)))) -> 1 | Z21: 0 | AA21: 0 | AB21: 0 | AC21: 0 | AD21: 0 | AE21: 0 | AF21: 0 | AG21: 0 | AH21: 0 | AI21: 0 | AJ21: 0 | AK21: 0 | AL21: 0 | AM21: 0 | AN21: (9) Payment Processing
D22: S2-2 | E22: Billing Performance Improvements | F22: Reduce the number of billing exceptions from 22,000 per year to approximately 7,000 EMMA Cases and correct within the new 60 day billing rule. There are management processes, training along with Metering and SAP system enhancements required to achieve this goal. | J22: AMI DC-IV-1, IWM P3a-P3c, DC-I-5 | L22: Will gain from AMI implementation | O22: About $300k has been approved to date for Capital until IT is able to estimate the execution phase. Reduction in billing exceptions resulting from AMR hardware issues Reduced billing exceptions: Elimination of zero-consumption based retro-bills Reduction in estimated bills Improved accuracy of demand billing Reduction in lost and mixed meters | P22: 2Q16 | Q22: 4Q16 | R22: =MROUND(VLOOKUP(D22,'Modified Costs (R) '!ProjectCostMatrix,43,0)/10^6,0.25) ->  | S22: BPCC | T22: No | V22: 1 | W22: 0 | X22: =IF($P22=X$2,1,IF($Q22=X$2,1,IF(W22=0,0,IF($Q22=W$2,0,1)))) -> 1 | Y22: 1 | Z22: 1 | AA22: 0 | AB22: 0 | AC22: 0 | AD22: 0 | AE22: 0 | AF22: 0 | AG22: 0 | AH22: 0 | AI22: 0 | AJ22: 0 | AK22: 0 | AL22: 0 | AM22: 0 | AN22: (10) Real-time Payment Posting
D23: S2-3 | E23: Bill Due Reminder | F23: Provide a notification to users who have not paid or scheduled a payment within 5 days of their due date that their payment date is approaching, along with a prompt to pay now for Fiserv customers. | J23: DC-I-1, DC-I-7, DC-I-8 | P23: 2Q16 | Q23: 3Q16 | R23: =MROUND(VLOOKUP(D23,'Modified Costs (R) '!ProjectCostMatrix,43,0)/10^6,0.25) ->  | S23: BPCC | T23: No | V23: 1 | W23: 0 | X23: =IF($P23=X$2,1,IF($Q23=X$2,1,IF(W23=0,0,IF($Q23=W$2,0,1)))) -> 1 | Y23: 1 | Z23: 0 | AA23: 0 | AB23: 0 | AC23: 0 | AD23: 0 | AE23: 0 | AF23: 0 | AG23: 0 | AH23: 0 | AI23: 0 | AJ23: 0 | AK23: 0 | AL23: 0 | AM23: 0
D24: S2-4 | E24: Fiserv Balance | F24: Display a real time balance, explanation of type of account (active or closed) and remove closed accounts if they are paid in full through the Bank Withdrawal Pay Page through FISERV. | P24: 2Q16 | Q24: 3Q16 | R24: =MROUND(VLOOKUP(D24,'Modified Costs (R) '!ProjectCostMatrix,43,0)/10^6,0.25) ->  | S24: BPCC | T24: No | V24: 1 | W24: 0 | X24: =IF($P24=X$2,1,IF($Q24=X$2,1,IF(W24=0,0,IF($Q24=W$2,0,1)))) -> 1 | Y24: 1 | Z24: 0 | AA24: 0 | AB24: 0 | AC24: 0 | AD24: 0 | AE24: 0 | AF24: 0 | AG24: 0 | AH24: 0 | AI24: 0 | AJ24: 0 | AK24: 0 | AL24: 0 | AM24: 0
D25: S2-5 | E25: Non Consumption Billing | F25: Enhance the SAP system and automate the process to provide a comprehensive billing experience for customers who receive, make payment and collections for non-consumption bills. | J25: Automate New Const. Req.,DC-I-9 (ph 1) | K25: Hana on CRM | L25: This will be tested on Hana (increase scope) | M25: Implementing enhancements while doing technical improvements at the same time is a large risk on scope, schedule and functionality. | O25: Will this be competing with FTIP and ECC on CRM will resources be competing? The operations team has an ITSR in process for a short term solution | P25: 4Q17 | Q25: 1Q18 | R25: =MROUND(VLOOKUP(D25,'Modified Costs (R) '!ProjectCostMatrix,43,0)/10^6,0.25) ->  | S25: BPCC | T25: No | V25: 1 | W25: 0 | X25: =IF($P25=X$2,1,IF($Q25=X$2,1,IF(W25=0,0,IF($Q25=W$2,0,1)))) -> 0 | Y25: 0 | Z25: 0 | AA25: 0 | AB25: 0 | AC25: 0 | AD25: 1 | AE25: 1 | AF25: 0 | AG25: 0 | AH25: 0 | AI25: 0 | AJ25: 0 | AK25: 0 | AL25: 0 | AM25: 0
D26: S2-6 | E26: Customer Pre-payment (incl real time presentment, bill on-demand) | F26: The customer will have the ability to pre-pay their energy bill, ensuring they are always within their budget. | G26: Pre-payment vs. billing on demand? Bill code changes for the presentation of bill, Tariff changes, CSR training. | J26: AMI DC-IV-1, 102, DC-I-5 | K26: SAP AMI and CRM on Hana needed for this capability | L26: Following AMI roll-out schedule presented in AMI CSA. We will receive Tariff approval by roll-out. We would have some AMI functionality for the implementation of this project. | M26: Current CSA schedule does not include breaks for Hana implementation, could affect timeline (if AMI is making changes with ECC on CRM). Tariff is approved by UTC to allow pre-payment | O26: There are a lot of changes to ECC from AMI meter installation. To the system this meter is new so integrating the information into the ECC. There are two sides meter; in the field and once the information to meter data management then to SAP. When they say they've just enabled the basic functionality, GTZ will need to understand their use-cases and their impact to SAP. | P26: 2Q18 | Q26: 1Q19 | R26: =MROUND(VLOOKUP(D26,'Modified Costs (R) '!ProjectCostMatrix,43,0)/10^6,0.25) ->  | S26: BPCC | T26: No | V26: 1 | W26: 0 | X26: =IF($P26=X$2,1,IF($Q26=X$2,1,IF(W26=0,0,IF($Q26=W$2,0,1)))) -> 0 | Y26: 0 | Z26: 0 | AA26: 0 | AB26: 0 | AC26: 0 | AD26: 0 | AE26: 0 | AF26: 1 | AG26: 1 | AH26: 1 | AI26: 1 | AJ26: 0 | AK26: 0 | AL26: 0 | AM26: 0
D27: S2-7 | E27: Billing and Payment Improvement (M2C) | F27: SAP changes to support Billing Exception Processing, payment arrangement, budget billing, installment and deposit plans. Business Rule changes to optimize the meter to cash process within SAP Quality Control Dashboards from source information | G27: SAP allows budget billing to be set up automatically on the Web. Syncing up payment arrangements between channels. | J27: Web and IVR | O27: SAP changes to allow budget billing to be set up automatically on the Web. Syncing up payment arrangements between channels. | P27: 1Q17 | Q27: 4Q17 | R27: =MROUND(VLOOKUP(D27,'Modified Costs (R) '!ProjectCostMatrix,43,0)/10^6,0.25) ->  | S27: BPCC | T27: No | V27: 1 | W27: 0 | X27: =IF($P27=X$2,1,IF($Q27=X$2,1,IF(W27=0,0,IF($Q27=W$2,0,1)))) -> 0 | Y27: 0 | Z27: 0 | AA27: 1 | AB27: 1 | AC27: 1 | AD27: 1 | AE27: 0 | AF27: 0 | AG27: 0 | AH27: 0 | AI27: 0 | AJ27: 0 | AK27: 0 | AL27: 0 | AM27: 0
D28: S2-8 | E28: Enable Digital Billing and Payment Capabilities (Mobile, IVR, Web) | F28: Billing and Payment transactions via all self serve channels Decommission and Convert customers from previous provider service Consolidated Bills for Customers Customer Notification Preference E-wallet for customer bank card - reoccurring payments Payment History Clarity | G28: Fiserv 4.0 | J28: DC-I-1, DC-I-2, DC-I-4, DC-I-5,DC-I-7,DC-I-8 | L28: Includes Fiserv 4.0 in costs of ($2 Mil) | P28: 1Q17 | Q28: 4Q17 | R28: =MROUND(VLOOKUP(D28,'Modified Costs (R) '!ProjectCostMatrix,43,0)/10^6,0.25) ->  | S28: BPCC | T28: No | V28: 1 | W28: 0 | X28: =IF($P28=X$2,1,IF($Q28=X$2,1,IF(W28=0,0,IF($Q28=W$2,0,1)))) -> 0 | Y28: 0 | Z28: 0 | AA28: 1 | AB28: 1 | AC28: 1 | AD28: 1 | AE28: 0 | AF28: 0 | AG28: 0 | AH28: 0 | AI28: 0 | AJ28: 0 | AK28: 0 | AL28: 0 | AM28: 0
D29: S2-9 | E29: Faster Pmt Posting | F29: Posting the payment to the customer account in real time from the Customer and Field Collections workforce mobility | G29: The moment a payment is made, it will show that the payment was completed to the customer. (includes ACH, AFT, Credit Card and mail check) | H29: Allow PSE to post payments in real-time (expect Kiosk) | J29: DC-I-1, DC-I-2, DC-I-4, DC-I-5,DC-I-7,DC-I-8,P3a,P3c | L29: Fiserv 4.0 is moving forward | O29: The moment a payment is made, it will show that the payment was completed to the customer. (includes ACH, Credit Card and mail check) Does not include - | P29: 1Q17 | Q29: 4Q17 | R29: =MROUND(VLOOKUP(D29,'Modified Costs (R) '!ProjectCostMatrix,43,0)/10^6,0.25) ->  | S29: BPCC | T29: No | V29: 1 | W29: 0 | X29: =IF($P29=X$2,1,IF($Q29=X$2,1,IF(W29=0,0,IF($Q29=W$2,0,1)))) -> 0 | Y29: 0 | Z29: 0 | AA29: 1 | AB29: 1 | AC29: 1 | AD29: 1 | AE29: 0 | AF29: 0 | AG29: 0 | AH29: 0 | AI29: 0 | AJ29: 0 | AK29: 0 | AL29: 0 | AM29: 0
D30: S2-10 | E30: Full realization of bill and make / manage payment across Digital Core | F30: Refine Billing and Payment processes to utilize Digital Core capabilities and develop business and functional requirements for implementation by DC team. Thereby providing consistent Billing and Payment experiences across all customer facing channels as well as enabling CSR. | G30: - Refined Billing and Payment Process and Business requirement - Functional requirements, design and testing - User Acceptance Testing | H30: Consistent Billing and Payment experience across all customer facing channels as well as enabling CSR. To provide a customer with accurate and up to date information specific to an account that allows that transaction to be performed seamlessly, providing a confirmation of transactions performed. | J30: DCI - Consistent Cross Channel Experience DCII - Guided Call Center Experience P3a - SAP Work Management System (WMS) P3b - Workforce Scheduling P3c - Workforce Mobility DC IV - IWM DC V - Data | P30: 1Q17 | Q30: 4Q17 | R30: =MROUND(VLOOKUP(D30,'Modified Costs (R) '!ProjectCostMatrix,43,0)/10^6,0.25) ->  | S30: BPCC | T30: No | W30: 0 | X30: =IF($P30=X$2,1,IF($Q30=X$2,1,IF(W30=0,0,IF($Q30=W$2,0,1)))) -> 0 | Y30: 0 | Z30: 0 | AA30: 1 | AB30: 1 | AC30: 1 | AD30: 1 | AE30: 0 | AF30: 0 | AG30: 0 | AH30: 0 | AI30: 0 | AJ30: 0 | AK30: 0 | AL30: 0 | AM30: 0
A31: Super 5 - 3 )Financial Assistance | D31: Super 5 - 3 )Financial Assistance
A32: Scenario: Customer propensity to pay, budgeting, arrangements and C&C | E32: =+'Modified Costs (R) '!B43 -> Scenario: Customer propensity to pay, budgeting, arrangements and C&C
A33: payment arrangement terms will be flexible enough to meet customer needs, while balanced with collection risk for minimizing bad-debt expense. | B33: 200 | C33: 50 | D33: S3-1 | E33: TSI Dunning | F33: The “TSI–Dunning” Project will implement a behavioral scoring software solution purchased from Total Solutions Inc. (“TSI”) leveraging a vendor-hosted strategy. This will result in eliminating the customers who have a high propensity to pay although late. The actual customers who are likely not to pay are acted upon in the collection process immediately. | P33: 2Q16 | Q33: 2Q16 | R33: =MROUND(VLOOKUP(D33,'Modified Costs (R) '!ProjectCostMatrix,43,0)/10^6,0.25) ->  | S33: BPCC | T33: No | V33: 1 | W33: Complete | AN33: (31) Flexible Payment dates
D34: S3-2 | E34: Payment Arrangement/Budget/Deposit | F34: Auto -Payment Arrangement/Budget/Deposit via all self serve channels - This includes account set-up requirements and management of account changes. This will allow PSE to leverage SSN's with Experian and TSI to determine deposit requirements. | G34: Utilizes TSI and Experian information to offer payment arrangements and/or deposit requirements based on customers credit score. | J34: DC-I-1, DC-I-2, DC-I-4, DC-I-5,DC-I-7,DC-I-8 | K34: S5-3 (public facing platform for backend changes in S3-2) | L34: Need Experian in real-time, have ability to capture SSN numbers with current system. Costs assume the deposit/SSN integration with Experian Credit Bureau | M34: Experian information availability to provide analytics | P34: 2Q17 | Q34: 1Q18 | R34: =MROUND(VLOOKUP(D34,'Modified Costs (R) '!ProjectCostMatrix,43,0)/10^6,0.25) ->  | S34: BPCC | T34: No | V34: 1 | W34: 0 | X34: =IF($P34=X$2,1,IF($Q34=X$2,1,IF(W34=0,0,IF($Q34=W$2,0,1)))) -> 0 | Y34: 0 | Z34: 0 | AA34: 0 | AB34: 1 | AC34: 1 | AD34: 1 | AE34: 1 | AF34: 0 | AG34: 0 | AH34: 0 | AI34: 0 | AJ34: 0 | AK34: 0 | AL34: 0 | AM34: 0 | AN34: (30) Pre-Pay Enablement
D35: S3-3 | E35: Collection Cycle Improvement & Agency Integration | F35: Expedite Collection activities and payment application (reduce cycle time from 111 days to 45 days) and integration with the collection agencies. | G35: Reduce Cycle time to 45 days, work with multiple agency's to consolidate process | I35: 45 day cycle, reduction of field collections over 6 years of AMI rollout | J35: DC-I-5 | K35: AMI Phase II Rollout timeline, to realize full benefits | L35: Field collections would still need to occur for gas even with AMI | P35: 1Q17 | Q35: 4Q17 | R35: =MROUND(VLOOKUP(D35,'Modified Costs (R) '!ProjectCostMatrix,43,0)/10^6,0.25) ->  | S35: BPCC | T35: Yes | U35: Services | V35: 1 | W35: 0 | X35: 0 | Y35: 0 | Z35: 0 | AA35: 1 | AB35: 1 | AC35: 1 | AD35: 1 | AE35: 0 | AF35: 0 | AG35: 0 | AH35: 0 | AI35: 0 | AJ35: 0 | AK35: 0 | AL35: 0 | AM35: 0 | AN35: (29) Prior Obligation
D36: S3-4 | E36: Full realization across Digital Core | F36: Refine Financial Assistance processes to utilize Digital Core capabilities and develop business and functional requirements for implementation by Digital Core team. Thereby provide consistent experience across all customer facing channels, as well as enabling CSR for customer propensity to pay, budgeting, arrangements and C&C | G36: - Refined Process and Business requirement for Customer propensity to pay, budgeting, arrangements and C&C - Functional requirements, design and testing - User Acceptance Testing | H36: Consistent experience for customer propensity to pay, budgeting, arrangements and C&C experience across all customer facing channels and for CSR. To provide a customer with accurate and up to date information specific to an account that allows their budgeting and arrangements to be performed seamlessly, providing a confirmation of transactions performed. | J36: DCI - Consistent Cross Channel Experience DCII - Guided Call Center Experience P3a - SAP Work Management System (WMS) P3b - Workforce Scheduling P3c - Workforce Mobility DC IV - IWM DC V - Data | P36: 3Q17 | Q36: 4Q18 | R36: =MROUND(VLOOKUP(D36,'Modified Costs (R) '!ProjectCostMatrix,43,0)/10^6,0.25) ->  | S36: BPCC | T36: No | W36: 0 | X36: 0 | Y36: 0 | Z36: 0 | AA36: 0 | AB36: 0 | AC36: 1 | AD36: 1 | AE36: 1 | AF36: 1 | AG36: 1 | AH36: 1 | AI36: 0 | AJ36: 0 | AK36: 0 | AL36: 0 | AM36: 0 | AN36: (27) Consistent Payment Arrange. Policies
A37: Scenario: Improve customer ability to leverage low energy assistance programs | E37: =+'Modified Costs (R) '!B51 -> Scenario: Improve customer ability to leverage low energy assistance programs
A38: The process of eligibility for low income agencies is automated with PSE improving customer experience, fund distribution and operational efficiency | B38: 200 | C38: 200 | D38: S3-5 | E38: Energy Assistance (Low Income) | F38: Improve Customer Access to Low Income Funds (LIHEAP, PSE HELP and WARM funds) along with timely Application of Customer Pledge Credits to Active Accounts. This real-time integration with the agencies enables on-line customer scheduling, application and status checking. There is also a data component to identify candidate customers who may qualify for bill payment assistance, performance of the agencies and relationship between low income customers and delinquency. | G38: Automated Pledge process | I38: Reduction in bad debt | J38: DC-I-5, 105 | L38: Working with other WA utilities. Begin with PSE Help to show the agency's how much more effective the process can be. | M38: Leaving money on the table ever year and not reducing our bad debt by leveraging our pledge agencies | O38: The costs identified need to be included in the roadmap until such time GTZ confirms the administrative fee can cover these costs | P38: 4Q16 | Q38: 4Q17 | R38: =MROUND(VLOOKUP(D38,'Modified Costs (R) '!ProjectCostMatrix,43,0)/10^6,0.25) ->  | S38: BPCC | T38: Yes | U38: Services | V38: 1 | W38: 0 | X38: 0 | Y38: 0 | Z38: 1 | AA38: 1 | AB38: 1 | AC38: 1 | AD38: 1 | AE38: 0 | AF38: 0 | AG38: 0 | AH38: 0 | AI38: 0 | AJ38: 0 | AK38: 0 | AL38: 0 | AM38: 0 | AN38: (16) Agency Process Improvements
D39: S3-6 | E39: Full realization of leveraging low energy assistance programs across Digital Core | F39: Refine Energy Assistance Programs to utilize Digital Core capabilities and develop business and functional requirements for implementation by Digital Core team. Thereby provide consistent experience across all customer facing channels, as well as enabling CSR for customer propensity to pay, budgeting, arrangements and C&C | G39: - Refined Process and Business requirement for Energy Assistance Programs - Functional requirements, design and testing - User Acceptance Testing | H39: Consistent experience for Energy Assistance Programs experience across all customer facing channels and for CSR. To provide a customer with up to date information on energy assistance programs pertaining to them. | J39: DCI - Consistent Cross Channel Experience DCII - Guided Call Center Experience P3a - SAP Work Management System (WMS) P3b - Workforce Scheduling P3c - Workforce Mobility DC IV - IWM DC V - Data | P39: 3Q17 | Q39: 4Q18 | R39: =MROUND(VLOOKUP(D39,'Modified Costs (R) '!ProjectCostMatrix,43,0)/10^6,0.25) ->  | S39: BPCC | T39: No | W39: 0 | X39: 0 | Y39: 0 | Z39: 0 | AA39: 0 | AB39: 0 | AC39: 1 | AD39: 1 | AE39: 1 | AF39: 1 | AG39: 1 | AH39: 1 | AI39: 0 | AJ39: 0 | AK39: 0 | AL39: 0 | AM39: 0 | AN39: (15) Qual. Determination via PSE.com
A40: Super 5 - 4) Unexpected Service Interruption | D40: Super 5 - 4) Unexpected Service Interruption
A41: Scenario : Investigate Outages & Restoration | E41: =+'Modified Costs (R) '!B57 -> Scenario : Investigate Outages & Restoration
A42: Customers receive proactive notification and can view outage maps via the channel of their choice. The same tools (such as AMI) that enable these proactive communications will also help drive down outages by pinpointing the sources of outages more quickly and by providing diagnostic information (such as voltage-time signatures) that insure a self-correcting network schematic all leading to the for more efficient dispatch and tracking of crews. | B42: 200 | C42: 250 | D42: S4-1 | E42: Manage Outage Orders | F42: Outage orders captured from initiation to resolution presented to the customer across all channels. This would be the process of designing the UX for outage management (planned and unplanned) for all channels. It would include the user flow for submission of outages as well as what notifications customers ideally want, what kind of updates and how often, etc. this would be part of the Customer Experience Design project. This should occur before providing interim solutions that could fall short of customer expectations and erode trust. A process and tools to create and execute proactive outage notifications to customers across all applicable channels. The channel and type of outage notification will be maintained through "Manage Outage Preferences" (Preference Center DCI-7). Physical comm to customers will be via Comm Gateway service (DCI-8) | G42: Customer interface of Outage Orders through all channels | J42: DC-I-1, DC-I-2, DC-I-4, DC-I-5,95,DC-I-7,DC-I-8,P3a,P3c | P42: 2Q17 | Q42: 1Q18 | R42: =MROUND(VLOOKUP(D42,'Modified Costs (R) '!ProjectCostMatrix,43,0)/10^6,0.25) ->  | S42: CI | T42: Yes | U42: Services; SI | V42: 2 | W42: 0 | X42: =IF($P42=X$2,1,IF($Q42=X$2,1,IF(W42=0,0,IF($Q42=W$2,0,1)))) -> 0 | Y42: 0 | Z42: 0 | AA42: 0 | AB42: 1 | AC42: 1 | AD42: 1 | AE42: 1 | AF42: 0 | AG42: 0 | AH42: 0 | AI42: 0 | AJ42: 0 | AK42: 0 | AL42: 0 | AM42: 0 | AN42: (17) Outage/Hazard Reporting interface
D43: S4-2 | E43: SAP Mutli Channel Foundation for Utilities (MCF) | F43: Develop new description with Joe | G43: A digital experience delivering the preference management, opt-in and opt-out, and messaging and implementation of functionality to send and manage communications and customer preferences. | J43: 54,55,DC-I-7,DC-I-8 | K43: OMS Data Integration needs to be in place | P43: 3Q16 | Q43: 4Q16 | R43: =MROUND(VLOOKUP(D43,'Modified Costs (R) '!ProjectCostMatrix,43,0)/10^6,0.25) ->  | S43: IWM | V43: 1 | W43: 0 | X43: =IF($P43=X$2,1,IF($Q43=X$2,1,IF(W43=0,0,IF($Q43=W$2,0,1)))) -> 0 | Y43: 1 | Z43: 1 | AA43: 0 | AB43: 0 | AC43: 0 | AD43: 0 | AE43: 0 | AF43: 0 | AG43: 0 | AH43: 0 | AI43: 0 | AJ43: 0 | AK43: 0 | AL43: 0 | AM43: 0 | AN43: (18) Outage Map (21) Real-time Data Captured/Distributed
D44: S4-3 | E44: P15 - OMS-AMI (Outage Support) | F44: To interface AMI meter exception data (power on / power off messages) with the Electric Operations OMS to augment the outage prediction models in OMS. To proactively manage communication to AMI enabled customers regarding outage occurrences and restoration. | J44: DC-I-7,AMI,DC-V-2 | L44: Any new meter would automatically pick up the new process | O44: Quicker situational awareness of an outage Increased reliability in meter pings resulting in reduction of field visits to confirm status Reduction in lost and mixed meters Outage predictions without customer calls | P44: 4Q19 | Q44: 2020 | R44: =MROUND(VLOOKUP(D44,'Modified Costs (R) '!ProjectCostMatrix,43,0)/10^6,0.25) ->  | S44: IWM | T44: Yes | V44: 1 | W44: 0 | X44: =IF($P44=X$2,1,IF($Q44=X$2,1,IF(W44=0,0,IF($Q44=W$2,0,1)))) -> 0 | Y44: 0 | Z44: 0 | AA44: 0 | AB44: 0 | AC44: 0 | AD44: 0 | AE44: 0 | AF44: 0 | AG44: 0 | AH44: 0 | AI44: 0 | AJ44: 0 | AK44: 0 | AL44: 1 | AM44: 1 | AN44: (22) Social Network Data Mining
D45: S4-4 | E45: P1 - AMR to OMS Integration | F45: Integration of residential electric meter "last gasp" indications though the AMR MDMS system with the Power On Outage Management system to provide indication of power outage to a meter and groupings of meters. | P45: 3Q16 | Q45: 4Q16 | R45: =MROUND(VLOOKUP(D45,'Modified Costs (R) '!ProjectCostMatrix,43,0)/10^6,0.25) ->  | S45: IWM | T45: No | V45: 1 | W45: 0 | X45: =IF($P45=X$2,1,IF($Q45=X$2,1,IF(W45=0,0,IF($Q45=W$2,0,1)))) -> 0 | Y45: 1 | Z45: 1 | AA45: 0 | AB45: 0 | AC45: 0 | AD45: 0 | AE45: 0 | AF45: 0 | AG45: 0 | AH45: 0 | AI45: 0 | AJ45: 0 | AK45: 0 | AL45: 0 | AM45: 0
D46: S4-5 | E46: Full realization of outage and restoration across Digital Core | F46: Refine Outage and Restoration Process to utilize Digital Core capabilities and develop business and functional requirements for implementation by Digital Core team. Thereby provide consistent experience across all customer facing channels, as well as enabling CSR for customer propensity to pay, budgeting, arrangements and C&C. | G46: - Refined Process and Business requirement for Outage and Restoration Process - Functional requirements, design and testing - User Acceptance Testing | H46: Consistent experience for Outage and Restoration Process across all customer facing channels as well as enabling CSR. To provide a customer with accurate and current information specific to outages and provide timely updates on restoration. | J46: DCI - Consistent Cross Channel Experience DCII - Guided Call Center Experience P3a - SAP Work Management System (WMS) P3b - Workforce Scheduling P3c - Workforce Mobility DC IV - IWM DC V - Data | O46: Information includes, their outage order status (dispatched, arrived on-site), the outage cause, ETRs, and confirmation when their power has been restored. Information will address: Does PSE know my power is out? What caused the outage? How big is the outage? Are they working on the problem? When should I expect my power will come back on? Has my power been restored and do I need to do anything more? | P46: 1Q17 | Q46: 4Q18 | R46: =MROUND(VLOOKUP(D46,'Modified Costs (R) '!ProjectCostMatrix,43,0)/10^6,0.25) ->  | S46: IWM | T46: No | W46: 0 | X46: =IF($P46=X$2,1,IF($Q46=X$2,1,IF(W46=0,0,IF($Q46=W$2,0,1)))) -> 0 | Y46: 0 | Z46: 0 | AA46: 1 | AB46: 1 | AC46: 1 | AD46: 1 | AE46: 1 | AF46: 1 | AG46: 1 | AH46: 1 | AI46: 0 | AJ46: 0 | AK46: 0 | AL46: 0 | AM46: 0
A47: Scenario : Street light requests and outage | E47: =+'Modified Costs (R) '!B64 -> Scenario : Street light requests and outage
A48: Customer request for new streetlight is captured in SAP. In event that a storm impacts the schedule of new installations, technology enables auto notifications to customers notifying them of a delay in work due to a storm. Field worker has mobile access to scheduling system updated in real time. Customer online submittal should prompt customer to answer required questions. Customer can report a street light outage using PSE mobile web, PSE mobile app or online | B48: 200 | C48: 50 | D48: S4-6 | E48: Full realization of street light across Digital Core | F48: Refine Street Light processes to utilize Digital Core capabilities and develop business and functional requirements for implementation by Digital Core team. Thereby provide consistent experience across all customer facing channels, as well as enabling CSR. 1. Automate Street Light Request 2. Street Light Online Reporting Sys. 3. GIS Updates 4. Street Light Outage Map | G48: - Refined Process and Business requirement for Street Light and Vegetation Management processes - Functional requirements, design and testing - User Acceptance Testing : A self service process for customers to request for new street light service : A Self service guided process for customers to submit Street light outages concerns : GIS updates to include the make a model of street lights : A Self-Service Street light outage map (utilizing internal mapping system) to allow customer to report a street light outage directly from the map | H48: Consistent information to customers related to Street Light and Vegetation Management processes all customer facing channels and for CSR. | J48: DCI - Consistent Cross Channel Experience DCII - Guided Call Center Experience P3a - SAP Work Management System (WMS) P3b - Workforce Scheduling P3c - Workforce Mobility DC IV - IWM DC V - Data | O48: Customer online submittal should prompt customer to answer required questions i.e. image of yellow tag on pole. Make & model info of street lights is captured within GIS. | P48: 2020 | Q48: 2020 | R48: =MROUND(VLOOKUP(D48,'Modified Costs (R) '!ProjectCostMatrix,43,0)/10^6,0.25) ->  | S48: CI | T48: Yes | W48: 0 | X48: =IF($P48=X$2,1,IF($Q48=X$2,1,IF(W48=0,0,IF($Q48=W$2,0,1)))) -> 0 | Y48: 0 | Z48: 0 | AA48: 0 | AB48: 0 | AC48: 0 | AD48: 0 | AE48: 0 | AF48: 0 | AG48: 0 | AH48: 0 | AI48: 0 | AJ48: 0 | AK48: 0 | AL48: 0 | AM48: 1 | AN48: (33) Auto Storm Notification to Customers, (34) Enhanced Mobile/Web Outage Reporting (SL, veg) (35) GIS Data Improvements (36) Public Facing SL Outage Map
A49: Super 5 - 5) Planned Service Event | D49: Super 5 - 5) Planned Service Event
A50: Scenario : Stop, Start and Transfer my Account | E50: =+'Modified Costs (R) '!B69 -> Scenario : Stop, Start and Transfer my Account
A51: A new or existing customer can quickly and simply access or create their customer profile and start/stop/transfer functionality. They can verify their address and authenticate seamlessly. If they are both Gas & Electric, they can check if both services are provided at new address and request transfer apply to both. If new construction is required they can get an estimate through website. If a service visit is required, they can schedule it on-line. The experience should be similar for a business customer e.g. landlord with the addition of being able to provide tenant details. This process should culminate in a completed transaction as requested by the customer including updates to CIS and IWM systems, and confirm that the transaction was completed successfully. | B51: 200 | C51: 50 | D51: S5-1 | E51: Self Service for customer, ability to add additional authorized user | F51: A self service process that allows the customer to add an authorized user to their account. | G51: Self Service option for customers to add an additional person to their account | L51: Preference center will be able to handle multiple account users | P51: 4Q17 | Q51: 1Q18 | R51: =MROUND(VLOOKUP(D51,'Modified Costs (R) '!ProjectCostMatrix,43,0)/10^6,0.25) ->  | S51: CI | T51: No | V51: 3 | W51: 0 | X51: =IF($P51=X$2,1,IF($Q51=X$2,1,IF(W51=0,0,IF($Q51=W$2,0,1)))) -> 0 | Y51: 0 | Z51: 0 | AA51: 0 | AB51: 0 | AC51: 0 | AD51: 1 | AE51: 1 | AF51: 0 | AG51: 0 | AH51: 0 | AI51: 0 | AJ51: 0 | AK51: 0 | AL51: 0 | AM51: 0 | AN51: (42) SST Automation for Leasing Customers
D52: S5-2 | E52: One-step transfer (Incl. account close out) | F52: Refinements to the combined self service process to take care of customer account transfer including the stop (close out service) at old address and start (new connection) at the new address. Includes technical master data create/edit in SAP | G52: THIS WAS COMPLETED AS PART OF SST | J52: Reach out to connective and check what else needs to be done? | P52: 2Q16 | Q52: 2Q16 | R52: =MROUND(VLOOKUP(D52,'Modified Costs (R) '!ProjectCostMatrix,43,0)/10^6,0.25) ->  | S52: CI | T52: No | V52: 2 | W52: 0 | X52: =IF($P52=X$2,1,IF($Q52=X$2,1,IF(W52=0,0,IF($Q52=W$2,0,1)))) -> 1 | Y52: 0 | Z52: 0 | AA52: 0 | AB52: 0 | AC52: 0 | AD52: 0 | AE52: 0 | AF52: 0 | AG52: 0 | AH52: 0 | AI52: 0 | AJ52: 0 | AK52: 0 | AL52: 0 | AM52: 0
D53: S5-3 | E53: Manage Account(s) and Profile | F53: A self service process for a new customer to create, manage and setup an account online - the integration aspect with SAP data must also be considered | G53: Account set up requirements defined from business. Predictive address validation with type (google product) | J53: DC-I-1,DC-I-2,DC-I-4,DC-I-5 | L53: Complete | P53: 1Q17 | Q53: 1Q18 | R53: =MROUND(VLOOKUP(D53,'Modified Costs (R) '!ProjectCostMatrix,43,0)/10^6,0.25) ->  | S53: CI | T53: No | V53: 1 | W53: 0 | X53: =IF($P53=X$2,1,IF($Q53=X$2,1,IF(W53=0,0,IF($Q53=W$2,0,1)))) -> 0 | Y53: 0 | Z53: 0 | AA53: 1 | AB53: 1 | AC53: 1 | AD53: 1 | AE53: 1 | AF53: 0 | AG53: 0 | AH53: 0 | AI53: 0 | AJ53: 0 | AK53: 0 | AL53: 0 | AM53: 0
D54: S5-4 | E54: Stop, Start, and Transfer for property managers and business customer | F54: The Start Stop Transfer project delivered a new self service web experience focused on residential customers. Commercial accounts and landlords have complexities that could not be addressed in the original project but would mitigate additional call volume. | G54: Connected online self-service experiences for landlords. May manifest as modifications to existing SST flow or new experience designed specifically for these type of accounts. | J54: DC-I-1,DC-I-2,DC-I-4,DC-I-5 | L54: included in web interface design | O54: Ask for property managers to try and utilize current tool prior to moving forward with this project. May be more of a process change | P54: 3Q17 | Q54: 1Q18 | R54: =MROUND(VLOOKUP(D54,'Modified Costs (R) '!ProjectCostMatrix,43,0)/10^6,0.25) ->  | S54: CI | T54: No | V54: 1 | W54: 0 | X54: =IF($P54=X$2,1,IF($Q54=X$2,1,IF(W54=0,0,IF($Q54=W$2,0,1)))) -> 0 | Y54: 0 | Z54: 0 | AA54: 0 | AB54: 0 | AC54: 1 | AD54: 1 | AE54: 1 | AF54: 0 | AG54: 0 | AH54: 0 | AI54: 0 | AJ54: 0 | AK54: 0 | AL54: 0 | AM54: 0
